Workbook

Sheet IKW_I_Eingabe
B1: W e r t ä s t u n g | C1: Lokalität > | F1: Besitz | K1: RFA | O1: Abt.
B3: I n v e s t i t i o n s k a l k u l a t i o n | C3: vom | D3: Adresse | O3: GK-RW
B5: Erst.:FAR Schmitz, LB Wald u. Holz NRW; LVFA Arnsberger Wald | C5: =TODAY() -> 2014-01-07 | D5: Resultat | G5: =IF($C$170>0,"Netto-Rendite je geäst.Erntebaum bis "&C121,IF($C$170<0,"Netto-Verlust je geäst.Erntebaum bis "&C121,"")) ->  | N5: =$C$170 ->  | O5: GK-HW
B7: I. Bestand
B9: I A. Ist-Daten E i n g a b e f o r m u l a r | G9: I B. Soll-Daten | N9: Eingabe erforderlich = | O9: !
B11: Bestand [Baumart] | G11: erwarteter BHD (d1,3) o. R. im Alter U [cm] | Q11: !
B13: Ertragsklasse [EKl.] | G13: jährlicher BHD-Zuwachs bis Alter U [cm] | Q13: !
B15: Bestandesbegründung [Jahr] | E15: ! | G15: verbleibender Zeitraum bis Alter U [Jahre] | P15: =IF($P$13=0,"",ROUNDUP(($P$11-$C$19)/$P$13,0)) -> 
B17: Aktuelle Bestandesaufnahme [Jahr] | E17: ! | G17: Resultierende Umtriebszeit [Jahre] | P17: =IF(OR($C$15="",$C$17="",$P$15=""),"",$C$17-$C$15+$P$15) -> 
B19: aktueller BHD der zu ästenden Bäume o. R. [cm] | E19: ! | G19: entspricht Kalenderjahr im Alter U [Jahr] | P19: =IF($P$17="","",$C$15+$P$17) -> 
B21: Abholzigkeit Güteklasse A (Durchmesser-Abnahme) [cm / lfdm] | E21: ! | G21: Ggf. abweichende Umtriebszeit [U] | N21: =IF(OR($C$19="",$O$23=""),"",IF(($O$23-$C$19)/2<20,"Zu gering!","")) -> 
B23: Abholzigkeit Güteklasse B (GKl. C = AbhzkB+1cm) [cm / lfdm] | E23: ! | G23: = astfreie Schicht [cm] / BHD [cm] / Jahr | N23: =(O23-C19)/2 -> 0.00 | O23: =IF($P$11="",0,IF($P$23>$P$19,$P$11+($P$23-$P$19)*$P$13,IF($P$23<$P$19,$P$11+($P$23-$P$19)*$P$13,$P$11))) -> 0.0 | P23: =IF(AND($P$21="",$P$19=""),"",IF($P$21>0,$C$15+$P$21,$P$19)) -> 
B28: II. Maßnahme | C28: Stufe I | D28: =IF(OR($C$33="",$C$37="",$C$37=0),"",(($P$11+$C$21)-($C$37*$C$21))/2-((($C$19+$C$21)-($C$37*$C$21)+($C$33-$C$17)*$P$13)/2)) ->  | E28: =(($P$11+$C$21)-($C$37*$C$21))/2-((($C$19+$C$21)-($C$37*$C$21)+($C$33-$C$17)*$P$13)/2) -> 0.0 | H28: Stufe II | I28: =IF(OR($H$33="",$H$37="",$H$37=0),"",(($P$11+$C$21)-($H$37*$C$21))/2-((($C$19+$C$21)-($H$37*$C$21)+($H$33-$C$17)*$P$13)/2)) ->  | J28: =IF($I$28<>"","cm","") ->  | N28: Stufe III | O28: =IF(OR($N$33="",$N$37="",$N$37=0),"",(($P$11+$C$21)-($N$37*$C$21))/2-((($C$19+$C$21)-($N$37*$C$21)+($N$33-$C$17)*$P$13)/2)) ->  | P28: =IF(OR($O$28<>"",$I$28<>"",$D$28<>""),"cm astfr. Schicht","") -> 
B33: Maßnahme-Ausführung [Jahr] | E33: ! | I33: (!) | J33: =IF(AND($H$33="",$C$33=""),"",IF($H$33="",$C$33,$H$33)) ->  | O33: (!) | P33: =IF(AND($N$33="",$J$33="",$C$33=""),"",IF($N$33="",$J$33,$N$33)) -> 
B35: Ästungshöhe von ... [m] | C35: 0.0 | H35: =$C$37 -> 0.0 | N35: =$H$37 -> 0.0
B37: Ästungshöhe bis ... [m] | E37: ! | I37: ! | J37: =IF(AND(OR($H$70>0,$H$76>0,),OR($H$37="",$H$37=0)),"<=W e r t ?","") ->  | O37: ! | P37: =IF(AND(OR($N$70>0,$N$76>0,),OR($N$37="",$N$37=0)),"<=W e r t ?","") -> 
B39: Baumabstand: (Optimale Verteilung; 3-Eckverband) [m] | G39: [n] | H39: =10000/($C$39^2*0.8660254) ->  | I39: (errechn. Anzahl /ha) | M39: [n] | N39: =10000/($C$39^2*0.8660254) -> 
B41: Anzahl zu ästender Bäume je ha [Stück / ha] | E41: ! | I41: (!) | J41: =IF(AND($H$41="",$C$41=""),"",IF($H$41="",$C$41,$H$41)) ->  | O41: (!) | P41: =IF(AND($N$41="",$J$41="",$C$41=""),"",IF($N$41="",$J$41,$N$41)) -> 
B43: Maßnahmefläche [ha]
B45: Beschreibung:[Maschineneinsatz / Werkzeug / Verfahren]
B51: Ggf. Behandlungsmittel [Produktbezeichng] / [Menge/Baum]
B55: Dokumentation der Realisierung: [Jahr]/[Bemerkung]
B61: III. Kosten
B62: III A. Basisdaten | C62: Stufe I | H62: Stufe II | N62: Stufe III
B64: Alternative 1: Entgelt / lfdm (aktuellerWert/Folgejahre) [€ / lfdm] | E64: [!] | I64: [!] | J64: =IF($H$64="","",IF(AND($H$64>0,$J$84>0),$H$64*$J$84,IF($H$64>0,$H$64,""))) ->  | O64: [!] | P64: =IF($N$64="","",IF(AND($N$64>0,$P$84>0),$N$64*$P$84,IF($N$64>0,$N$64,""))) -> 
B66: "" 2: Stundenlohn (Folgejahre: Lohn x Steigerungsfaktor [LSF]) [€/h] | E66: ! | H66: =IF(AND($C$66>0,$J$84>0),$C$66*$J$84,IF($C$66>0,$C$66,"")) ->  | I66: in Jahren | J66: =IF(AND($C$33>0,$J$33>0),$J$33-$C$33,"") ->  | N66: =IF(AND($C$66>0,$P$84>0),$C$66*$P$84,IF($C$66>0,$C$66,"")) ->  | O66: in Jahren | P66: =IF(AND($C$33>0,$P$33>0),$P$33-$C$33,"") -> 
B68: Erschwerniszuschlag (ggf. Baumbesteigung ) [%]
B70: Zeitvorgabe Arbeitskraft (GAZ) [min. / Baum] | D70: =IF(AND(OR($C$70>0,$C$76>0,),OR($C$37="",$C$37=0)),"H?","") ->  | E70: ! | I70: (!) | J70: =IF(AND($H$70>0,$H$66>0,$H$64>0),"Nicht 1: und 2:!!!","") ->  | O70: (!) | P70: =IF(AND($N$70>0,$N$66>0,$N$64>0),"Nicht 1: und 2:!!!","") -> 
B72: Verwaltungskostenzuschlag / Dokumentationskosten [%] | J72: =IF(H72<>"",H72,IF($C$72="","",$C$72)) ->  | P72: =IF($N$72<>"",$N$72,IF($C$72="","",$C$72)) -> 
B74: Maschineneinsatz [€ / MAS]
B76: Zeitvorgabe Maschineneinsatz (MAS) [min. / Baum] | D76: =IF(AND(OR($C$70>0,$C$76>0,),OR($C$37="",$C$37=0)),"H?","") ->  | J76: =IF(AND(OR($H$70>0,$H$76>0,),OR($H$37="",$H$37=0)),"Ästg.-Höhe?","") ->  | P76: =IF(AND(OR($N$70>0,$N$76>0,),OR($N$37="",$N$37=0)),"Ästg.-Höhe?","") -> 
B78: Werkzeug (Entschädigung / Abnutzung) [€ / h]
B80: Behandlungsmittel [€ / Einheit]
B82: Zinssatz für Aufzinsung der Investitionskosten (p) [%] | C82: 3.00 | E82: ! | H82: Lohnsteigerung [%] | J82: 2.50 | K82: ! | N82: Lohnsteigerung (p) [% / a] | P82: =IF($J$82>0,$J$82,0) -> 2.50
B84: Aufzinsungsfaktor (Askontierung; p = % Zinsen) [(1+p)n] | C84: =IF(OR($C$82="",$C$86=""),"",(1+$C$82/100)^$C$86) ->  | H84: =IF(OR($J$41="",$H$86=""),"",(1+$J$86/100)^$H$86) ->  | I84: [LSF] | J84: =IF(OR($J$41="",$J$66=""),"",(1+$J$82/100)^$J$66) ->  | N84: =IF(OR($J$41="",$N$86=""),"",(1+$P$86/100)^$N$86) ->  | O84: [LSF] | P84: =IF(OR($P$41="",$P$66=""),"",(1+$P$82/100)^$P$66) -> 
B86: Aufzinsungs-Zeitraum bis Alter U (n) [Jahre] | C86: =IF(OR($C$15="",$C$33="",$P$23=""),"",$P$23-$C$33) ->  | H86: =IF(OR($C$15="",$J$33="",$P$23=""),"",$P$23-$J$33) ->  | I86: zu [%] | J86: =IF($C$82="","",$C$82) -> 3.00 | N86: =IF(OR($C$15="",$P$33="",$P$23=""),"",$P$23-$P$33) ->  | O86: zu [%] | P86: =IF($C$82="","",$C$82) -> 3.00
B89: III B. Kalkulation der Maßnahme | C89: Stufe I | H89: Stufe II | N89: Stufe III
B91: Reine Arbeitskosten [€ / Baum] | C91: =IF(AND($C$64="",OR($C$66="",$C$70="")),"",IF(AND($C$64>0,$C$37>0),$C$37*$C$64,IF($C$68="",($C$66/60)*$C$70,($C$66/60)*$C$70*(1+$C$68/100)))) ->  | H91: =IF(AND($H$64="",OR($H$66="",$H$70="")),"",IF(AND($H$64>0,$H$37>0),($H$37-$C$37)*$J$64,IF($H$68="",($H$66/60)*$H$70,($H$66/60)*$H$70*(1+$H$68/100)))) ->  | N91: =IF(AND($N$64="",OR($N$66="",$N$70="")),"",IF(AND($N$64>0,$N$37>0),($N$37-$H$37)*$P$64,IF($N$68="",($N$66/60)*$N$70,($N$66/60)*$N$70*(1+$N$68/100)))) -> 
B93: Verwaltungskosten / Dokumentation [€ / Baum] | C93: =IF(OR($C$72="",$C$91=""),"",($C$91/100)*$C$72) ->  | H93: =IF(OR($J$72="",$H$91=""),"",($H$91/100)*$J$72) ->  | N93: =IF(OR($P$72="",$N$91=""),"",($N$91/100)*$P$72) -> 
B95: Maschineneinsatz [€ / Baum] | C95: =IF(OR($C$74="",$C$76=""),"",($C$74/60)*$C$76) ->  | H95: =IF(OR($H$74="",$H$76=""),"",($H$74/60)*$H$76) ->  | N95: =IF(OR($N$74="",$N$76=""),"",($N$74/60)*$N$76) -> 
B97: Werkzeug [€ / Baum] | C97: =IF(OR($C$70="",$C$78=""),"",($C$78/60)*$C$70) ->  | H97: =IF(OR($H$70="",$H$78=""),"",($H$78/60)*$H$70) ->  | N97: =IF(OR($N$70="",$N$78=""),"",($N$78/60)*$N$70) -> 
B99: Behandlungsmittel [€ / Baum] | C99: =IF(OR($C$51="",$C$80=""),"",$C$51*$C$80) ->  | H99: =IF(OR($H$51="",$H$80=""),"",$H$51*$H$80) ->  | N99: =IF(OR($N$51="",$N$80=""),"",$N$51*$N$80) -> 
B101: Maßnahme insgesamt (unverzinst) [€ / Baum] | C101: =SUM($C$91,$C$93,$C$95,$C$97,$C$99) -> 0.00 € | H101: =SUM($H$91,$H$93,$H$95,$H$97,$H$99) -> 0.00 € | N101: =SUM($N$91,$N$93,$N$95,$N$97,$N$99) -> 0.00 €
B103: Maßnahme insgesamt (unverzinst) [€ / ha] | C103: =IF(OR($C$41="",$C$101=""),"",$C$101*$C$41) ->  | H103: =IF(OR($J$41="",$H$101=""),"",$H$101*$J$41) ->  | N103: =IF(OR($P$41="",$N$101=""),"",$N$101*$P$41) -> 
B105: Zinskosten bis Alter U [€ / Baum] | C105: =IF(OR($C$84="",$C$101=""),"",($C$101)*($C$84-1)) ->  | H105: =IF(OR($H$84="",$H$101=""),"",($H$101)*($H$84-1)) ->  | N105: =IF(OR($N$84="",$N$101=""),"",($N$101)*($N$84-1)) -> 
B107: Maßnahme 1 insgesamt (aufgezinst bis Alter U) [€ / Baum] | C107: =SUM($C$101,$C$105) -> 0.00 € | H107: =SUM($H$101,$H$105) -> 0.00 € | J107: (nur Maßnahme 2) | N107: =SUM($N$101,$N$105) -> 0.00 € | P107: (nur Maßnahme 3)
B109: Maßnahme insgesamt (aufgezinst bis Alter U) [€ / ha] | C109: =IF(OR($C$107="",$C$41=""),"",$C$107*$C$41) ->  | H109: =IF(OR($H$107="",$J$41=""),"",$H$107*$J$41) ->  | J109: "" "" | N109: =IF(OR($N$107="",$P$41=""),"",$N$107*$P$41) ->  | P109: "" ""
B110: III C. Gesamtkalkulation | C110: Stufe I | H110: Stufe II | N110: Stufe III
B111: Gesamtkosten je ha (aufgezinst bis Alter U) [€ / ha] | C111: =SUM($C$109) -> 0.00 € | H111: =SUM($C$109,$H$109) -> 0.00 € | J111: (insgesamt bis Stufe II) | N111: =SUM($C$109,$H$109,$N$109) -> 0.00 € | P111: (insgesamt bis Stufe III)
B113: Erwarteter Anteil geästeter Bäume mit Wertholz [%] | C113: 75.0 | E113: !
B115: Erwartete Anzahl geästeter Bäume / ha mit Wertholz [St.] | C115: =ROUNDDOWN(IF(OR($C$41="",$C$113="",$C$113=0),0,($C$41/100)*$C$113),0) -> 0
B117: Umlegung der Kosten je ha auf die erwartete Anzahl geästeter
B118: Bäume mit Wertholzanteil (aufgezinst bis Alter U) [€ /Baum] | C118: =IF(OR($C$111="",$C$115="",$C$115=0),"",$C$111/$C$115) ->  | H118: =IF(OR($H$111="",$C$115="",$C$115=0),"",$H$111/$C$115) ->  | J118: (insgesamt bis Stufe II) | N118: =IF(OR($N$111="",$C$115="",$C$115=0),"",$N$111/$C$115) ->  | P118: (insgesamt bis Stufe III)
B119: ="Diesen Betrag muß jeder der erwarteten " &C115&" Erntebäume min. zusätzlich erbringen!" -> Diesen Betrag muß jeder der erwarteten 0 Erntebäume min. zusätzlich erbringen!
B121: IV. Zu erwartende Sortierung und erzielbare Erlöse | C121: =IF(AND($N$37>0,$P$41>0,$N$91<>""),"Stufe III",IF(AND($H$37>0,$J$41>0,$H$91<>""),"Stufe II",IF(AND($C$37>0,$C$41>0,$C$91<>""),"Stufe I",""))) ->  | H121: =IF(AND($H$37>0,$J$41>0,$H$91<>""),"Stufe II",IF(AND($C$37>0,$C$41>0,$C$91<>""),"Stufe I","")) ->  | J121: =IF(AND($C$37>0,$C$41>0,$C$91<>""),"Stufe I","") ->  | N121: Ohne | O121: W e r t ä s t u n g
B122: fm / Baum | C122: =IF($C$143>0,$C$129+$C$139+$C$149,$C$129+$C$139) ->  | H122: =IF($C$143>0,$H$129+$H$139+$H$149,$H$129+$H$139) ->  | J122: =IF($C$143>0,$J$129+$J$139+$J$149,$J$129+$J$139) ->  | N122: =IF($C$143>0,$N$129+$N$139+$N$149,$N$129+$N$139) ->  | O122: =IF((($N$122-$C$122)/$C$122)*100>2,(($N$122-$C$122)/$C$122)*100,"") ->  | P122: =IF((($N$122-$C$122)/$C$122)*100>2,"% Vol.-Diff.","") -> 
B123: ="Güte-Kl. A Länge "&$C$121&" [m]" -> Güte-Kl. A Länge [m] | C123: =IF(AND($N$37="",$H$37="",$C$37=""),0,IF(OR(N64>0,AND($N$37>0,$N$70>0)),$N$37,IF(OR(H64>0,AND($H$37>0,$H$70>0)),$H$37,IF(OR(C64>0,AND($C$37>0,$C$70>0)),$C$37,0)))) -> 0.0 | D123: A | E123: =IF(AND($H$121=$C$121,$H$168<>$C$168),"??","") ->  | H123: =IF(AND($H$37="",$C$37=""),0,IF(OR($H$64>0,AND($H$37>0,$H$70>0)),$H$37,IF(OR($C$64>0,AND($C$37>0,$C$70>0)),$C$37,0))) -> 0.0 | J123: =IF(AND($H$37="",$C$37=""),0,IF(OR($C$64>0,AND($C$37>0,$C$70>0)),$C$37,IF($C$37>0,$C$37,0))) -> 0.0 | N123: 0.0 | P123: Abkürzg.-Verz.
B125: Durchmesser o. R. [cm] | C125: =IF(OR($O$23="",$O$23=0),"",$O$23+$C$21-($C$123*0.5)*$C$21) ->  | H125: =IF($C$125="","",IF($H$123/2<=$C$123,($O$23+$C$21)-($H$123/2)*$C$21,($O$23+$C$21)-(($C$123*$C$21)+(($H$123/2-$C$123)*$C$23)))) ->  | J125: =IF($C$125="","",IF($J$123/2<=$C$123,($O$23+$C$21)-($J$123/2)*$C$21,($O$23+$C$21)-(($C$123*$C$21)+(($J$123/2-$C$123)*$C$23)))) ->  | N125: =IF($C$125="","",IF($N$123/2<=$C$123,($O$23+$C$21)-($N$123/2)*$C$21,($O$23+$C$21)-(($C$123*$C$21)+(($N$123/2-$C$123)*$C$23)))) ->  | P125: GAZ
B127: Geästetes Holz (Wertholz-Stück) [€ / Efm o. R.] | E127: ! | H127: =$C$127 -> 0.00 € | J127: =$C$127 -> 0.00 € | N127: =$C$127 -> 0.00 € | P127: Gesamt-Arbeitszeit
B129: Masse [Efm o. R.] | C129: =IF(OR($C$123="",$C$125=""),"",($C$125/100*$C$125/100)/4*3.14159*$C$123) ->  | H129: =IF(OR($H$123="",$H$125=""),"",($H$125/100*$H$125/100)/4*3.14159*$H$123) ->  | J129: =IF(OR($J$123="",$J$125=""),"",($J$125/100*$J$125/100)/4*3.14159*$J$123) ->  | N129: =IF(OR($N$123="",$N$125=""),"",($N$125/100*$N$125/100)/4*3.14159*$N$123) -> 
B131: Erlös [€] | C131: =IF(OR($C$127="",$C$129=""),"",$C$127*$C$129) ->  | H131: =IF(OR($H$127="",$H$129=""),"",$H$127*$H$129) ->  | J131: =IF(OR($J$127="",$J$129=""),"",$J$127*$J$129) ->  | N131: =IF(OR($N$127="",$N$129=""),"",$N$127*$N$129) -> 
B133: ="Güte-Kl. B Länge (Restlänge vor C-Stück) "&$C$121&" [m]" -> Güte-Kl. B Länge (Restlänge vor C-Stück) [m] | D133: B | H133: =IF(AND($C$123="",$C$133=""),"",IF(AND($C$123>0,OR($C$133="",$C$133=0),OR($H$123="",$H$123=0)),$C$123,IF($H$123>0,$C$123+$C$133-$H$123,$C$123+$C$133))) -> 0.0 | J133: =IF(AND($C$123="",$C$133=""),"",IF(AND($C$123>0,OR($C$133="",$C$133=0),OR($J$123="",$J$123=0)),$C$123,IF($J$123>0,$C$123+$C$133-$J$123,$C$123+$C$133))) -> 0.0 | N133: =IF(AND($C$123="",$C$133=""),"",IF(AND($C$123>0,OR($C$133="",$C$133=0),OR($N$123="",$N$123=0)),$C$123,IF($N$123>0,$C$123+$C$133-$N$123,$C$123+$C$133))) -> 0.0 | P133: Stufe I-III in Minuten
B135: Durchmesser o. R. [cm] | C135: =IF(OR($C$133="",$C$133=0),$C$125-(($C$123*0.5*$C$21)+0.01*0.5*($C$23)),$C$125-(($C$123*0.5*$C$21)+$C$133*0.5*($C$23))) ->  | H135: =IF($C$135="","",IF(($H$123+$H$133/2)>$C$123,($O$23+$C$21)-($C$123*$C$21)-($H$123-$C$123+$H$133/2)*$C$23,($O$23+$C$21)-($H$123+$H$133/2)*$C$21)) ->  | J135: =IF($C$135="","",IF(($J$123+$J$133/2)>$C$123,($O$23+$C$21)-($C$123*$C$21)-($J$123-$C$123+$J$133/2)*$C$23,($O$23+$C$21)-($J$123+$J$133/2)*$C$21)) ->  | N135: =IF($C$135="","",IF(($N$123+$N$133/2)>$C$123,($O$23+$C$21)-($C$123*$C$21)-($N$123-$C$123+$N$133/2)*$C$23,($O$23+$C$21)-($N$123+$N$133/2)*$C$21)) -> 
B137: Preis [€ / Efm o. R.] | E137: ! | H137: =$C$137 -> 0.00 € | J137: =$C$137 -> 0.00 € | N137: =$C$137 -> 0.00 € | P137: d1,3 (= BHD)
B139: Masse [Efm o. R.] | C139: =IF(AND($C$133="",$C$135=""),"",IF(OR($C$133="",$C$133=0),0.00001,($C$135/100*$C$135/100)/4*3.14159*$C$133)) ->  | H139: =IF(OR($H$133="",$H$135=""),"",($H$135/100*$H$135/100)/4*3.14159*$H$133) ->  | J139: =IF(OR($J$133="",$J$135=""),"",($J$135/100*$J$135/100)/4*3.14159*$J$133) ->  | N139: =IF(OR($N$133="",$N$135=""),"",($N$135/100*$N$135/100)/4*3.14159*$N$133) ->  | P139: in 1,3m Höhe
B141: Erlös [€] | C141: =IF(OR($C$137="",$C$139=""),"",$C$137*$C$139) ->  | H141: =IF(OR($H$137="",$H$139=""),"",$H$137*$H$139) ->  | J141: =IF(OR($J$137="",$J$139=""),"",$J$137*$J$139) ->  | N141: =IF(OR($N$137="",$N$139=""),"",$N$137*$N$139) ->  | P141: Rm
B143: ="Güte-Kl. C Länge "&$C$121&" [m]" -> Güte-Kl. C Länge [m] | D143: C | H143: =$C$143 -> 0.0 | J143: =$C$143 -> 0.0 | N143: =$C$143 -> 0.0 | P143: Radius in der
B145: Durchmesser o. R. [cm] | C145: =IF(OR($C$143="",$C$143=0),"",$C$135-(($C$133*0.5)*$C$23)-(($C$143*0.5)*($C$23+1))) ->  | H145: =$C$145 ->  | J145: =$C$145 ->  | N145: =$C$145 ->  | P145: Mitte d. A-Stamm-
B147: Preis [€ / Efm o. R.] | H147: =$C$147 -> 0.00 € | J147: =$C$147 -> 0.00 € | N147: =$C$147 -> 0.00 € | P147: (Werholz)-stückes
B149: Masse [Efm o. R.] | C149: =IF(OR($C$143="",$C$145=""),"",($C$145/100*$C$145/100)/4*3.14159*$C$143) ->  | H149: =IF(OR($N$143="",$N$145=""),"",($N$145/100*$N$145/100)/4*3.14159*$N$143) ->  | J149: =IF(OR($N$143="",$N$145=""),"",($N$145/100*$N$145/100)/4*3.14159*$N$143) ->  | N149: =IF(OR($N$143="",$N$145=""),"",($N$145/100*$N$145/100)/4*3.14159*$N$143) ->  | P149: lfm=lfd.Meter;fm=m³
B151: Erlös [€] | C151: =IF(OR($C$147="",$C$149=""),"",$C$147*$C$149) ->  | H151: =IF(OR($H$147="",$H$149=""),"",$H$147*$H$149) ->  | J151: =IF(OR($J$147="",$J$149=""),"",$J$147*$J$149) ->  | N151: =IF(OR($N$147="",$N$149=""),"",$N$147*$N$149) ->  | P151: ZinF =Aufzinsg.=>U
B155: V. Wirtschaftlichkeit der Maßnahmen: Wertästung bis | C155: =IF(AND($N$37>0,$P$41>0,$N$91<>""),"Stufe III",IF(AND($H$37>0,$J$41>0,$H$91<>""),"Stufe II",IF(AND($C$37>0,$C$41>0,$C$91<>""),"Stufe I",""))) ->  | H155: =IF(AND($H$37>0,$J$41>0,$H$91<>""),"Stufe II",IF(AND($C$37>0,$C$41>0,$C$91<>""),"Stufe I","")) ->  | J155: =IF(AND($C$37>0,$C$41>0,$C$91<>""),"Stufe I","") ->  | N155: Ohne Ästung! | P155: Zusammenstellung
B157: Durchschnittserlös [€ / fm] | C157: =IF(C143>0,$C$164/($C$129+$C$139+$C$149),$C$164/($C$129+$C$139)) ->  | H157: =IF(H143>0,$H$164/($H$129+$H$139+$H$149),$H$164/($H$129+$H$139)) ->  | J157: =IF(J143>0,$J$164/($J$129+$J$139+$J$149),$J$164/($J$129+$J$139)) ->  | N157: =IF(N143>0,$N$164/($N$129+$N$139+$N$149),$N$164/($N$129+$N$139)) ->  | O157: ZinsF/LS | P157: =$C$84 ->  | Q157: =$J$82 -> 2.5
B158: Güte-Kl. A Erlös / Baum [€] | C158: =IF($C$131="","",$C$131) ->  | H158: =IF($H$131="","",$H$131) ->  | J158: =IF($J$131="","",$J$131) ->  | N158: =IF($N$131="","",$N$131) ->  | O158: =$C$127 -> 0 € | P158: =$C$123&"/ "&$H$123&" / "&$J$123&" /"&$N$123&"m" -> 0/ 0 / 0 /0m | Q158: =$D$123 -> A
B160: B Erlös / Baum [€] | C160: =IF($C$141="","",$C$141) ->  | H160: =IF($H$141="","",$H$141) ->  | J160: =IF($J$141="","",$J$141) ->  | N160: =IF($N$141="","",$N$141) ->  | O160: =$C$137 -> 0 € | P160: =$C$133&"/ "&$H$133&" / "&$J$133&" /"&$N$133&"m" -> / 0 / 0 /0m | Q160: =$D$133 -> B
B162: C Erlös / Baum [€] | C162: =IF($C$151="","",$C$151) ->  | H162: =IF($H$151="","",$H$151) ->  | J162: =IF($J$151="","",$J$151) ->  | N162: =IF($N$151="","",$N$151) ->  | O162: =$C$147 -> 0 € | P162: =$C$143&" / "&$H$143&" / "&$J$143&" /"&$N$143&"m" -> / 0 / 0 /0m | Q162: =$D$143 -> C
B164: Gesamterlös / Baum [€ / Baum] | C164: =IF(AND($C$158="",$C$160="",$C$162=""),"",SUM($C$158,$C$160,$C$162)) ->  | H164: =IF(AND($H$158="",$H$160="",$H$162=""),"",SUM($H$158,$H$160,$H$162)) ->  | J164: =IF(AND($J$158="",$J$160="",$J$162=""),"",SUM($J$158,$J$160,$J$162)) ->  | N164: =IF(AND($N$158="",$N$160="",$N$162=""),"",SUM($N$158,$N$160,$N$162)) ->  | O164: Bäume | P164: =$P$41&" / "&$J$41&" / "&$C$41&" / "&"0St." -> / / / 0St. | Q164: =$C$115 -> 0
B166: Ertragswert (Mehrerlös: Baum geästet zu ungeastet) [€ / Baum] | C166: =IF(OR($C$164="",$N$164=""),"",$C$164-$N$164) ->  | H166: =IF(OR($H$164="",$N$164=""),"",$H$164-$N$164) ->  | J166: =IF(OR($N$164="",$J$164=""),"",$J$164-$N$164) ->  | M166: Arbeitskraft / h | O166: =$C$66 -> 0.00 € | P166: =$N$70&"/ "&$H$70&" / "&$C$70& " /0" -> / / /0 | Q166: GAZ
B168: abzgl. Ästungsaufwand (aufgezinst bis Alter U) [€ / Baum] | C168: =IF(OR($N$111="",$C$115="",$C$115=0),"",$N$111/$C$115) ->  | H168: =IF(OR($H$111="",$C$115="",$C$115=0),"",$H$111/$C$115) ->  | J168: =IF(OR($C$111="",$C$115="",$C$115=0),"",$C$111/$C$115) ->  | M168: Rm /astfr.Schicht | O168: =$C$125/2 ->  | P168: =IF(OR($C$19="",$C$19=0,$O$23="",$O$23=0),"",$O$168-(($C$19+$C$21)-($C$123/2)*$C$21)/2) ->  | Q168: cm
B170: = Mehrertrag je geästeter Erntebaum (netto) [€ / Baum] | C170: =IF(OR($C$166="",$C$168=""),"",$C$166-$C$168) ->  | H170: =IF(OR($H$166="",$H$168=""),"",$H$166-$H$168) ->  | J170: =IF(OR($J$166="",$J$168=""),"",$J$166-$J$168) ->  | M170: Vol.: astig/astfr. | O170: =IF(OR($C$123="",$O$168="",$P$168=""),"",(($O$168-$P$168)/100*($O$168-$P$168)/100)*3.14159*$C$123) ->  | P170: =$C$129-$O$170 ->  | Q170: fm
B172: Rentabilität aller Maßnahme(n) bis Stufe ... [Faktor] | C172: =IF(OR($C$168="",$C$170=""),"",$C$170/$C$168) ->  | H172: =IF(OR($H$168="",$H$170=""),"",$H$170/$H$168) ->  | J172: =IF(OR($J$168="",$J$170=""),"",$J$170/$J$168) ->  | M172: Vol.-%: " " / " " | O172: =$O$170/$C$129*100 ->  | P172: =$P$170/$C$129*100 ->  | Q172: V%
B174: Grenzertrag der Ästungs-Stufe ... [€ / Baum] | C174: =IF(OR($C$170="",$H$170=""),"",$C$170-$H$170) ->  | H174: =IF(OR($H$170="",$J$170=""),"",$H$170-$J$170) ->  | J174: =$J$170 ->  | M174: Kosten: lfm / fm | O174: =IF(OR($C$123="",$C$168=""),"",$C$168/$C$123) ->  | P174: =IF(AND($C$129>0,$C$168>0),$C$168/$C$129,"") ->  | Q174: €
B176: Rentabilität der Einzelmaßnahme: Stufe... [Faktor] | C176: =IF(OR($C$168="",$C$170=""),"",$C$174/($C$168-$H$168)) ->  | H176: =IF(OR($H$168="",$H$170=""),"",$H$174/($H$168-$J$168)) ->  | J176: =IF(OR($J$168="",$J$170=""),"",$J$174/$J$168) ->  | M176: d1,3/astfr.Schicht | O176: =$O$23 -> 0.0 | P176: =IF(OR($C$19="",$O$23=""),"",IF(($O$23-$C$19)/2<20,"Zu gering!",($O$23-$C$19)/2)) ->  | Q176: cm
B180: IV-1. Zu erwartende Sortierung und erzielbare Erlöse
B181: IV-1 A1. Variante 3 mit Wertästung (nur Maßnahme 1)
B182: GKl. A Länge [m] | C182: 5.0
B184: GKl. A Durchmesser o. R. [cm] | C184: 76.0
B186: GKl. A Preis [€/Efm o. R.] | C186: 200.00 €
B188: GKl. A Masse [Efm o. R.] | C188: =IF(OR($C$182="",$C$184=""),"",($C$184/100*$C$184/100)/4*3.14159*$C$182) -> 2.27
B190: GKl. A Erlös [€] | C190: =IF(OR($C$186="",$C$188=""),"",$C$186*$C$188) -> 453.65 €
B192: GKl. B Länge [m] | C192: 22.0
B194: GKl. B Durchmesser o. R. [cm] | C194: 60.0
B196: GKl. B Preis [ €/ Efm o. R.] | C196: 96.00 €
B198: GKl. B Masse [Efm o. R.] | C198: =IF(OR($C$192="",$C$194=""),"",($C$194/100*$C$194/100)/4*3.14159*$C$192) -> 6.22
B200: GKl. B Erlös [€] | C200: =IF(OR($C$196="",$C$198=""),"",$C$196*$C$198) -> 597.15 €
B202: GKl. C Länge [m] | C202: 5.0
B204: GKl. C Durchmesser o. R. [cm] | C204: 39.0
B206: GKl. C Preis [€/Efm o. R.] | C206: 81.60 €
B208: GKl. C Masse [Efm o. R.] | C208: =IF(OR($C$202="",$C$204=""),"",($C$204/100*$C$204/100)/4*3.14159*$C$202) -> 0.60
B210: GKl. C Erlös [€] | C210: =IF(OR($C$206="",$C$208=""),"",$C$206*$C$208) -> 48.74 €
B212: Programmerstellung:
B214: K.-H. Schmitz; LB WuH NRW; LuVFA Arnsberger Wald -SPA Waldbau-
B216: Bemerkung
B238: Platz für Anfügungen des Anwenders:

Sheet IKW_I_Ansicht
B1: W e r t ä s t u n g | C1: Lokalität > | F1: Besitz | G1: =IF(IKW_I_Eingabe!G1="","",IKW_I_Eingabe!G1) ->  | H1: =IF(IKW_I_Eingabe!H1="","",IKW_I_Eingabe!H1) ->  | I1: =IF(IKW_I_Eingabe!I1="","",IKW_I_Eingabe!I1) ->  | J1: =IF(IKW_I_Eingabe!J1="","",IKW_I_Eingabe!J1) ->  | K1: RFA | N1: =IF(IKW_I_Eingabe!N1="","",IKW_I_Eingabe!N1) ->  | O1: Abt. | P1: =IF(IKW_I_Eingabe!P1="","",IKW_I_Eingabe!P1) -> 
B3: I n v e s t i t i o n s k a l k u l a t i o n | C3: vom | D3: Adresse | G3: =IF(IKW_I_Eingabe!G3="","",IKW_I_Eingabe!G3) ->  | H3: =IF(IKW_I_Eingabe!H3="","",IKW_I_Eingabe!H3) ->  | I3: =IF(IKW_I_Eingabe!I3="","",IKW_I_Eingabe!I3) ->  | J3: =IF(IKW_I_Eingabe!J3="","",IKW_I_Eingabe!J3) ->  | K3: =IF(IKW_I_Eingabe!K3="","",IKW_I_Eingabe!K3) ->  | L3: =IF(IKW_I_Eingabe!L3="","",IKW_I_Eingabe!L3) ->  | M3: =IF(IKW_I_Eingabe!M3="","",IKW_I_Eingabe!M3) ->  | N3: =IF(IKW_I_Eingabe!N3="","",IKW_I_Eingabe!N3) ->  | O3: GK-RW | P3: =IF(IKW_I_Eingabe!P3="","",IKW_I_Eingabe!P3) -> 
B5: Erst.:FAR Schmitz, LB Wald u. Holz NRW; LVFA Arnsberger Wald | C5: =IF(IKW_I_Eingabe!C5="","",IKW_I_Eingabe!C5) -> 2014-01-07 | D5: Resultat | G5: =IF(IKW_I_Eingabe!G5="","",IKW_I_Eingabe!G5) ->  | H5: =IF(IKW_I_Eingabe!H5="","",IKW_I_Eingabe!H5) ->  | I5: =IF(IKW_I_Eingabe!I5="","",IKW_I_Eingabe!I5) ->  | J5: =IF(IKW_I_Eingabe!J5="","",IKW_I_Eingabe!J5) ->  | K5: =IF(IKW_I_Eingabe!K5="","",IKW_I_Eingabe!K5) ->  | L5: =IF(IKW_I_Eingabe!L5="","",IKW_I_Eingabe!L5) ->  | M5: =IF(IKW_I_Eingabe!M5="","",IKW_I_Eingabe!M5) ->  | N5: =IF(IKW_I_Eingabe!N5="","",IKW_I_Eingabe!N5) ->  | O5: GK-HW | P5: =IF(IKW_I_Eingabe!P5="","",IKW_I_Eingabe!P5) -> 
B7: I. Bestand
B9: I A. Ist-Daten | G9: I B. Soll-Daten | N9: Ergänzungen möglich =
B11: Bestand [Baumart] | C11: =IF(IKW_I_Eingabe!C11="","",IKW_I_Eingabe!C11) ->  | G11: erwarteter BHD (d1,3) o. R. im Alter U [cm] | P11: =IF(IKW_I_Eingabe!P11="","",IKW_I_Eingabe!P11) ->  | Q11: !
B13: Ertragsklasse [EKl.] | C13: =IF(IKW_I_Eingabe!C13="","",IKW_I_Eingabe!C13) ->  | G13: jährlicher BHD-Zuwachs bis Alter U [cm] | P13: =IF(IKW_I_Eingabe!P13="","",IKW_I_Eingabe!P13) ->  | Q13: !
B15: Bestandesbegründung [Jahr] | C15: =IF(IKW_I_Eingabe!C15="","",IKW_I_Eingabe!C15) ->  | E15: ! | G15: verbleibender Zeitraum bis Alter U [Jahre] | P15: =IF(IKW_I_Eingabe!P15="","",IKW_I_Eingabe!P15) -> 
B17: Aktuelle Bestandesaufnahme [Jahr] | C17: =IF(IKW_I_Eingabe!C17="","",IKW_I_Eingabe!C17) ->  | E17: ! | G17: Resultierende Umtriebszeit [Jahre] | P17: =IF(IKW_I_Eingabe!P17="","",IKW_I_Eingabe!P17) -> 
B19: aktueller BHD der zu ästenden Bäume o. R. [cm] | C19: =IF(IKW_I_Eingabe!C19="","",IKW_I_Eingabe!C19) ->  | E19: ! | G19: entspricht Kalenderjahr im Alter U [Jahr] | P19: =IF(IKW_I_Eingabe!P19="","",IKW_I_Eingabe!P19) -> 
B21: Abholzigkeit Güteklasse A (Durchmesser-Abnahme)[cm / lfdm] | C21: =IF(IKW_I_Eingabe!C21="","",IKW_I_Eingabe!C21) ->  | E21: ! | G21: Ggf. abweichende Umtriebszeit [U] | N21: =IF(OR($C$19="",$O$23=""),"",IF(($O$23-$C$19)/2<20,"Zu gering!","")) ->  | P21: =IF(IKW_I_Eingabe!P21="","",IKW_I_Eingabe!P21) -> 
B23: Abholzigkeit Güteklasse B (GKl. C = AbhzkB+1cm) [cm / lfdm] | C23: =IF(IKW_I_Eingabe!C23="","",IKW_I_Eingabe!C23) ->  | E23: ! | G23: = astfreie Schicht [cm] / BHD [cm] / Jahr | N23: =IF(IKW_I_Eingabe!N23="","",IKW_I_Eingabe!N23) -> 0.00 | O23: =IF(IKW_I_Eingabe!O23="","",IKW_I_Eingabe!O23) -> 0.0 | P23: =IF(IKW_I_Eingabe!P23="","",IKW_I_Eingabe!P23) -> 
B28: II. Maßnahme | C28: Stufe I | D28: =IF(IKW_I_Eingabe!D28="","",IKW_I_Eingabe!D28) ->  | E28: =IF(IKW_I_Eingabe!E28="","",IKW_I_Eingabe!E28) -> 0.0 | H28: Stufe II | I28: =IF(IKW_I_Eingabe!I28="","",IKW_I_Eingabe!I28) ->  | J28: =IF($I$28<>"","cm","") ->  | N28: Stufe III | O28: =IF(IKW_I_Eingabe!O28="","",IKW_I_Eingabe!O28) ->  | P28: =IF(IKW_I_Eingabe!P28="","",IKW_I_Eingabe!P28) -> 
B33: Maßnahme-Ausführung [Jahr] | C33: =IF(IKW_I_Eingabe!C33="","",IKW_I_Eingabe!C33) ->  | E33: ! | H33: =IF(IKW_I_Eingabe!H33="","",IKW_I_Eingabe!H33) ->  | I33: (!) | J33: =IF(IKW_I_Eingabe!J33="","",IKW_I_Eingabe!J33) ->  | N33: =IF(IKW_I_Eingabe!N33="","",IKW_I_Eingabe!N33) ->  | O33: (!) | P33: =IF(IKW_I_Eingabe!P33="","",IKW_I_Eingabe!P33) -> 
B35: Ästungshöhe von ... [m] | C35: =IF(IKW_I_Eingabe!C35="","",IKW_I_Eingabe!C35) -> 0.0 | H35: =IF(IKW_I_Eingabe!H35="","",IKW_I_Eingabe!H35) -> 0.0 | N35: =IF(IKW_I_Eingabe!N35="","",IKW_I_Eingabe!N35) -> 0.0
B37: Ästungshöhe bis ... [m] | C37: =IF(IKW_I_Eingabe!C37="","",IKW_I_Eingabe!C37) ->  | E37: ! | H37: =IF(IKW_I_Eingabe!H37="","",IKW_I_Eingabe!H37) ->  | I37: ! | J37: =IF(AND(OR($H$70>0,$H$76>0,),OR($H$37="",$H$37=0)),"<=W e r t ?","") -> <=W e r t ? | N37: =IF(IKW_I_Eingabe!N37="","",IKW_I_Eingabe!N37) ->  | O37: ! | P37: =IF(AND(OR($N$70>0,$N$76>0,),OR($N$37="",$N$37=0)),"<=W e r t ?","") -> <=W e r t ?
B39: Baumabstand: (Optimale Verteilung; 3-Eckverband) [m] | C39: =IF(IKW_I_Eingabe!C39="","",IKW_I_Eingabe!C39) ->  | G39: [n] | H39: =IF(IKW_I_Eingabe!H39="","",IKW_I_Eingabe!H39) ->  | I39: (errechn. Anzahl /ha) | M39: [n] | N39: =IF(IKW_I_Eingabe!N39="","",IKW_I_Eingabe!N39) -> 
B41: Anzahl zu ästender Bäume je ha [Stück / ha] | C41: =IF(IKW_I_Eingabe!C41="","",IKW_I_Eingabe!C41) ->  | E41: ! | H41: =IF(IKW_I_Eingabe!H41="","",IKW_I_Eingabe!H41) ->  | I41: (!) | J41: =IF(IKW_I_Eingabe!J41="","",IKW_I_Eingabe!J41) ->  | N41: =IF(IKW_I_Eingabe!N41="","",IKW_I_Eingabe!N41) ->  | O41: (!) | P41: =IF(IKW_I_Eingabe!P41="","",IKW_I_Eingabe!P41) -> 
B43: Maßnahmefläche [ha]
B45: Beschreibung:[Maschineneinsatz / Werkzeug / Verfahren]
B51: Ggf. Behandlungsmittel [Produktbezeichng] / [Menge/Baum] | C51: =IF(IKW_I_Eingabe!C51="","",IKW_I_Eingabe!C51) ->  | H51: =IF(IKW_I_Eingabe!H51="","",IKW_I_Eingabe!H51) ->  | N51: =IF(IKW_I_Eingabe!N51="","",IKW_I_Eingabe!N51) -> 
B55: Dokumentation der Realisierung: [Jahr]/[Bemerkung]
B61: III. Kosten
B62: III A. Basisdaten | C62: Stufe I | H62: Stufe II | N62: Stufe III
B64: Alternative 1: Entgelt / lfdm (aktuellerWert/Folgejahre) [€ / lfdm] | C64: =IF(IKW_I_Eingabe!C64="","",IKW_I_Eingabe!C64) ->  | E64: [!] | H64: =IF(IKW_I_Eingabe!H64="","",IKW_I_Eingabe!H64) ->  | I64: [!] | J64: =IF(IKW_I_Eingabe!J64="","",IKW_I_Eingabe!J64) ->  | N64: =IF(IKW_I_Eingabe!N64="","",IKW_I_Eingabe!N64) ->  | O64: [!] | P64: =IF(IKW_I_Eingabe!P64="","",IKW_I_Eingabe!P64) -> 
B66: "" 2: Stundenlohn (Folgejahre: Lohn x Steigerungsfaktor [LSF]) [€/h] | C66: =IF(IKW_I_Eingabe!C66="","",IKW_I_Eingabe!C66) ->  | E66: ! | H66: =IF(IKW_I_Eingabe!H66="","",IKW_I_Eingabe!H66) ->  | I66: in Jahren | J66: =IF(IKW_I_Eingabe!J66="","",IKW_I_Eingabe!J66) ->  | N66: =IF(IKW_I_Eingabe!N66="","",IKW_I_Eingabe!N66) ->  | O66: in Jahren | P66: =IF(IKW_I_Eingabe!P66="","",IKW_I_Eingabe!P66) -> 
B68: Erschwerniszuschlag (ggf. Baumbesteigung) [%] | C68: =IF(IKW_I_Eingabe!C68="","",IKW_I_Eingabe!C68) ->  | H68: =IF(IKW_I_Eingabe!H68="","",IKW_I_Eingabe!H68) ->  | N68: =IF(IKW_I_Eingabe!N68="","",IKW_I_Eingabe!N68) -> 
B70: Zeitvorgabe Arbeitskraft (GAZ) [min. / Baum] | C70: =IF(IKW_I_Eingabe!C70="","",IKW_I_Eingabe!C70) ->  | D70: =IF(AND(OR($C$70>0,$C$76>0,),OR($C$37="",$C$37=0)),"H?","") -> H? | E70: ! | H70: =IF(IKW_I_Eingabe!H70="","",IKW_I_Eingabe!H70) ->  | I70: (!) | J70: =IF(IKW_I_Eingabe!J70="","",IKW_I_Eingabe!J70) ->  | N70: =IF(IKW_I_Eingabe!N70="","",IKW_I_Eingabe!N70) ->  | O70: (!) | P70: =IF(IKW_I_Eingabe!P70="","",IKW_I_Eingabe!P70) -> 
B72: Verwaltungskostenzuschlag / Dokumentationskosten [%] | C72: =IF(IKW_I_Eingabe!C72="","",IKW_I_Eingabe!C72) ->  | H72: =IF(IKW_I_Eingabe!H72="","",IKW_I_Eingabe!H72) ->  | J72: =IF(IKW_I_Eingabe!J72="","",IKW_I_Eingabe!J72) ->  | N72: =IF(IKW_I_Eingabe!N72="","",IKW_I_Eingabe!N72) ->  | P72: =IF(IKW_I_Eingabe!P72="","",IKW_I_Eingabe!P72) -> 
B74: Maschineneinsatz [€ / MAS] | C74: =IF(IKW_I_Eingabe!C74="","",IKW_I_Eingabe!C74) ->  | H74: =IF(IKW_I_Eingabe!H74="","",IKW_I_Eingabe!H74) ->  | N74: =IF(IKW_I_Eingabe!N74="","",IKW_I_Eingabe!N74) -> 
B76: Zeitvorgabe Maschineneinsatz (MAS) [min. / Baum] | C76: =IF(IKW_I_Eingabe!C76="","",IKW_I_Eingabe!C76) ->  | D76: =IF(AND(OR($C$70>0,$C$76>0,),OR($C$37="",$C$37=0)),"H?","") -> H? | H76: =IF(IKW_I_Eingabe!H76="","",IKW_I_Eingabe!H76) ->  | J76: =IF(AND(OR($H$70>0,$H$76>0,),OR($H$37="",$H$37=0)),"Ästg.-Höhe?","") -> Ästg.-Höhe? | N76: =IF(IKW_I_Eingabe!N76="","",IKW_I_Eingabe!N76) ->  | P76: =IF(AND(OR($N$70>0,$N$76>0,),OR($N$37="",$N$37=0)),"Ästg.-Höhe?","") -> Ästg.-Höhe?
B78: Werkzeug (Entschädigung / Abnutzung) [€ / h] | C78: =IF(IKW_I_Eingabe!C78="","",IKW_I_Eingabe!C78) ->  | H78: =IF(IKW_I_Eingabe!H78="","",IKW_I_Eingabe!H78) ->  | N78: =IF(IKW_I_Eingabe!N78="","",IKW_I_Eingabe!N78) -> 
B80: Behandlungsmittel [€ / Einheit] | C80: =IF(IKW_I_Eingabe!C80="","",IKW_I_Eingabe!C80) ->  | H80: =IF(IKW_I_Eingabe!H80="","",IKW_I_Eingabe!H80) ->  | N80: =IF(IKW_I_Eingabe!N80="","",IKW_I_Eingabe!N80) -> 
B82: Zinssatz für Aufzinsung der Investitionskosten (p) [%] | C82: =IF(IKW_I_Eingabe!C82="","",IKW_I_Eingabe!C82) -> 3.00 | E82: ! | H82: Lohnsteigerung [%] | J82: =IF(IKW_I_Eingabe!J82="","",IKW_I_Eingabe!J82) -> 2.50 | K82: ! | N82: Lohnsteigerung (p) [% / a] | P82: =IF(IKW_I_Eingabe!P82="","",IKW_I_Eingabe!P82) -> 2.50
B84: Aufzinsungsfaktor (Askontierung; p = % Zinsen) [(1+p)n] | C84: =IF(IKW_I_Eingabe!C84="","",IKW_I_Eingabe!C84) ->  | H84: =IF(IKW_I_Eingabe!H84="","",IKW_I_Eingabe!H84) ->  | I84: [LSF] | J84: =IF(IKW_I_Eingabe!J84="","",IKW_I_Eingabe!J84) ->  | N84: =IF(IKW_I_Eingabe!N84="","",IKW_I_Eingabe!N84) ->  | O84: [LSF] | P84: =IF(IKW_I_Eingabe!P84="","",IKW_I_Eingabe!P84) -> 
B86: Aufzinsungs-Zeitraum bis Alter U (n) [Jahre] | C86: =IF(IKW_I_Eingabe!C86="","",IKW_I_Eingabe!C86) ->  | H86: =IF(IKW_I_Eingabe!H86="","",IKW_I_Eingabe!H86) ->  | I86: zu [%] | J86: =IF(IKW_I_Eingabe!J86="","",IKW_I_Eingabe!J86) -> 3.00 | N86: =IF(IKW_I_Eingabe!N86="","",IKW_I_Eingabe!N86) ->  | O86: zu [%] | P86: =IF(IKW_I_Eingabe!P86="","",IKW_I_Eingabe!P86) -> 3.00
B89: III B. Kalkulation der Maßnahme | C89: Stufe I | H89: Stufe II | N89: Stufe III
B91: Reine Arbeitskosten [€ / Baum] | C91: =IF(IKW_I_Eingabe!C91="","",IKW_I_Eingabe!C91) ->  | H91: =IF(IKW_I_Eingabe!H91="","",IKW_I_Eingabe!H91) ->  | N91: =IF(IKW_I_Eingabe!N91="","",IKW_I_Eingabe!N91) -> 
B93: Verwaltungskosten / Dokumentation [€ / Baum] | C93: =IF(IKW_I_Eingabe!C93="","",IKW_I_Eingabe!C93) ->  | H93: =IF(IKW_I_Eingabe!H93="","",IKW_I_Eingabe!H93) ->  | N93: =IF(IKW_I_Eingabe!N93="","",IKW_I_Eingabe!N93) -> 
B95: Maschineneinsatz [€ / Baum] | C95: =IF(IKW_I_Eingabe!C95="","",IKW_I_Eingabe!C95) ->  | H95: =IF(IKW_I_Eingabe!H95="","",IKW_I_Eingabe!H95) ->  | N95: =IF(IKW_I_Eingabe!N95="","",IKW_I_Eingabe!N95) -> 
B97: Werkzeug [€ / Baum] | C97: =IF(IKW_I_Eingabe!C97="","",IKW_I_Eingabe!C97) ->  | H97: =IF(IKW_I_Eingabe!H97="","",IKW_I_Eingabe!H97) ->  | N97: =IF(IKW_I_Eingabe!N97="","",IKW_I_Eingabe!N97) -> 
B99: Behandlungsmittel [€ / Baum] | C99: =IF(IKW_I_Eingabe!C99="","",IKW_I_Eingabe!C99) ->  | H99: =IF(IKW_I_Eingabe!H99="","",IKW_I_Eingabe!H99) ->  | N99: =IF(IKW_I_Eingabe!N99="","",IKW_I_Eingabe!N99) -> 
B101: Maßnahme insgesamt (unverzinst) [€ / Baum] | C101: =IF(IKW_I_Eingabe!C101="","",IKW_I_Eingabe!C101) -> 0.00 € | H101: =IF(IKW_I_Eingabe!H101="","",IKW_I_Eingabe!H101) -> 0.00 € | N101: =IF(IKW_I_Eingabe!N101="","",IKW_I_Eingabe!N101) -> 0.00 €
B103: Maßnahme insgesamt (unverzinst) [€ / ha] | C103: =IF(IKW_I_Eingabe!C103="","",IKW_I_Eingabe!C103) ->  | H103: =IF(IKW_I_Eingabe!H103="","",IKW_I_Eingabe!H103) ->  | N103: =IF(IKW_I_Eingabe!N103="","",IKW_I_Eingabe!N103) -> 
B105: Zinskosten bis Alter U [€ / Baum] | C105: =IF(IKW_I_Eingabe!C105="","",IKW_I_Eingabe!C105) ->  | H105: =IF(IKW_I_Eingabe!H105="","",IKW_I_Eingabe!H105) ->  | N105: =IF(IKW_I_Eingabe!N105="","",IKW_I_Eingabe!N105) -> 
B107: Maßnahme 1 insgesamt (aufgezinst bis Alter U) [€ / Baum] | C107: =IF(IKW_I_Eingabe!C107="","",IKW_I_Eingabe!C107) -> 0.00 € | H107: =IF(IKW_I_Eingabe!H107="","",IKW_I_Eingabe!H107) -> 0.00 € | J107: (nur Maßnahme 2) | N107: =IF(IKW_I_Eingabe!N107="","",IKW_I_Eingabe!N107) -> 0.00 € | P107: (nur Maßnahme 3)
B109: Maßnahme insgesamt (aufgezinst bis Alter U) [€ / ha] | C109: =IF(IKW_I_Eingabe!C109="","",IKW_I_Eingabe!C109) ->  | H109: =IF(IKW_I_Eingabe!H109="","",IKW_I_Eingabe!H109) ->  | J109: "" "" | N109: =IF(IKW_I_Eingabe!N109="","",IKW_I_Eingabe!N109) ->  | P109: "" ""
B110: III C. Gesamtkalkulation | C110: Stufe I | H110: Stufe II | N110: Stufe III
B111: Gesamtkosten je ha (aufgezinst bis Alter U) [€ / ha] | C111: =IF(IKW_I_Eingabe!C111="","",IKW_I_Eingabe!C111) -> 0.00 € | H111: =IF(IKW_I_Eingabe!H111="","",IKW_I_Eingabe!H111) -> 0.00 € | J111: (insgesamt bis Stufe II) | N111: =IF(IKW_I_Eingabe!N111="","",IKW_I_Eingabe!N111) -> 0.00 € | P111: (insgesamt bis Stufe III)
B113: Erwarteter Anteil geästeter Bäume mit Wertholz [%] | C113: =IF(IKW_I_Eingabe!C113="","",IKW_I_Eingabe!C113) -> 75.0 | E113: !
B115: Erwartete Anzahl geästeter Bäume / ha mit Wertholz [St.] | C115: =IF(IKW_I_Eingabe!C115="","",IKW_I_Eingabe!C115) -> 0
B117: Umlegung der Kosten je ha auf die erwartete Anzahl geästeter
B118: Bäume mit Wertholzanteil (aufgezinst bis Alter U) [€ /Baum] | C118: =IF(IKW_I_Eingabe!C118="","",IKW_I_Eingabe!C118) ->  | H118: =IF(IKW_I_Eingabe!H118="","",IKW_I_Eingabe!H118) ->  | J118: (insgesamt bis Stufe II) | N118: =IF(IKW_I_Eingabe!N118="","",IKW_I_Eingabe!N118) ->  | P118: (insgesamt bis Stufe III)
B119: ="Diesen Betrag muß jeder der erwarteten " &C115&" Erntebäume min. zusätzlich erbringen!" -> Diesen Betrag muß jeder der erwarteten 0 Erntebäume min. zusätzlich erbringen!
B121: IV. Zu erwartende Sortierung und erzielbare Erlöse | C121: =IF(IKW_I_Eingabe!C121="","",IKW_I_Eingabe!C121) ->  | H121: =IF(IKW_I_Eingabe!H121="","",IKW_I_Eingabe!H121) ->  | J121: =IF(IKW_I_Eingabe!J121="","",IKW_I_Eingabe!J121) ->  | N121: =IF(IKW_I_Eingabe!N121="","",IKW_I_Eingabe!N121) -> Ohne | O121: W e r t ä s t u n g
B122: =IF(IKW_I_Eingabe!B122="","",IKW_I_Eingabe!B122) -> fm / Baum | C122: =IF(IKW_I_Eingabe!C122="","",IKW_I_Eingabe!C122) ->  | H122: =IF(IKW_I_Eingabe!H122="","",IKW_I_Eingabe!H122) ->  | J122: =IF(IKW_I_Eingabe!J122="","",IKW_I_Eingabe!J122) ->  | N122: =IF(IKW_I_Eingabe!N122="","",IKW_I_Eingabe!N122) ->  | O122: =IF((($N$122-$C$122)/$C$122)*100>2,(($N$122-$C$122)/$C$122)*100,"") ->  | P122: =IF((($N$122-$C$122)/$C$122)*100>2,"% Vol.-Diff.","") -> 
B123: =IF(IKW_I_Eingabe!B123="","",IKW_I_Eingabe!B123) -> Güte-Kl. A Länge [m] | C123: =IF(IKW_I_Eingabe!C123="","",IKW_I_Eingabe!C123) -> 0.0 | D123: A | E123: =IF(AND($H$121=$C$121,$H$168<>$C$168),"??","") ->  | H123: =IF(IKW_I_Eingabe!H123="","",IKW_I_Eingabe!H123) -> 0.0 | J123: =IF(IKW_I_Eingabe!J123="","",IKW_I_Eingabe!J123) -> 0.0 | N123: =IF(IKW_I_Eingabe!N123="","",IKW_I_Eingabe!N123) -> 0.0 | P123: Abkürzg.-Verz.
B125: Durchmesser o. R. [cm] | C125: =IF(IKW_I_Eingabe!C125="","",IKW_I_Eingabe!C125) ->  | H125: =IF(IKW_I_Eingabe!H125="","",IKW_I_Eingabe!H125) ->  | J125: =IF(IKW_I_Eingabe!J125="","",IKW_I_Eingabe!J125) ->  | N125: =IF(IKW_I_Eingabe!N125="","",IKW_I_Eingabe!N125) ->  | P125: GAZ
B127: Geästetes Holz (Wertholz-Stück) [€ / Efm o. R.] | C127: =IF(IKW_I_Eingabe!C127="","",IKW_I_Eingabe!C127) ->  | E127: ! | H127: =IF(IKW_I_Eingabe!H127="","",IKW_I_Eingabe!H127) -> 0.00 € | J127: =IF(IKW_I_Eingabe!J127="","",IKW_I_Eingabe!J127) -> 0.00 € | N127: =IF(IKW_I_Eingabe!N127="","",IKW_I_Eingabe!N127) -> 0.00 € | P127: Gesamt-Ar-
B129: Masse [Efm o. R.] | C129: =IF(IKW_I_Eingabe!C129="","",IKW_I_Eingabe!C129) ->  | H129: =IF(IKW_I_Eingabe!H129="","",IKW_I_Eingabe!H129) ->  | J129: =IF(IKW_I_Eingabe!J129="","",IKW_I_Eingabe!J129) ->  | N129: =IF(IKW_I_Eingabe!N129="","",IKW_I_Eingabe!N129) ->  | P129: beits-Zeit für
B131: Erlös [€] | C131: =IF(IKW_I_Eingabe!C131="","",IKW_I_Eingabe!C131) ->  | H131: =IF(IKW_I_Eingabe!H131="","",IKW_I_Eingabe!H131) ->  | J131: =IF(IKW_I_Eingabe!J131="","",IKW_I_Eingabe!J131) ->  | N131: =IF(IKW_I_Eingabe!N131="","",IKW_I_Eingabe!N131) ->  | P131: Ästungs-Stufe
B133: =IF(IKW_I_Eingabe!B133="","",IKW_I_Eingabe!B133) -> Güte-Kl. B Länge (Restlänge vor C-Stück) [m] | C133: =IF(IKW_I_Eingabe!C133="","",IKW_I_Eingabe!C133) ->  | D133: B | H133: =IF(IKW_I_Eingabe!H133="","",IKW_I_Eingabe!H133) -> 0.0 | J133: =IF(IKW_I_Eingabe!J133="","",IKW_I_Eingabe!J133) -> 0.0 | N133: =IF(IKW_I_Eingabe!N133="","",IKW_I_Eingabe!N133) -> 0.0 | P133: I-III in Minuten
B135: Durchmesser o. R. [cm] | C135: =IF(IKW_I_Eingabe!C135="","",IKW_I_Eingabe!C135) ->  | H135: =IF(IKW_I_Eingabe!H135="","",IKW_I_Eingabe!H135) ->  | J135: =IF(IKW_I_Eingabe!J135="","",IKW_I_Eingabe!J135) ->  | N135: =IF(IKW_I_Eingabe!N135="","",IKW_I_Eingabe!N135) ->  | P135: d1,3 (= BHD)
B137: Preis [€ / Efm o. R.] | C137: =IF(IKW_I_Eingabe!C137="","",IKW_I_Eingabe!C137) ->  | E137: ! | H137: =IF(IKW_I_Eingabe!H137="","",IKW_I_Eingabe!H137) -> 0.00 € | J137: =IF(IKW_I_Eingabe!J137="","",IKW_I_Eingabe!J137) -> 0.00 € | N137: =IF(IKW_I_Eingabe!N137="","",IKW_I_Eingabe!N137) -> 0.00 € | P137: Durchmesser
B139: Masse [Efm o. R.] | C139: =IF(IKW_I_Eingabe!C139="","",IKW_I_Eingabe!C139) ->  | H139: =IF(IKW_I_Eingabe!H139="","",IKW_I_Eingabe!H139) ->  | J139: =IF(IKW_I_Eingabe!J139="","",IKW_I_Eingabe!J139) ->  | N139: =IF(IKW_I_Eingabe!N139="","",IKW_I_Eingabe!N139) ->  | P139: in 1,3m Höhe
B141: Erlös [€] | C141: =IF(IKW_I_Eingabe!C141="","",IKW_I_Eingabe!C141) ->  | H141: =IF(IKW_I_Eingabe!H141="","",IKW_I_Eingabe!H141) ->  | J141: =IF(IKW_I_Eingabe!J141="","",IKW_I_Eingabe!J141) ->  | N141: =IF(IKW_I_Eingabe!N141="","",IKW_I_Eingabe!N141) ->  | P141: Rm
B143: =IF(IKW_I_Eingabe!B143="","",IKW_I_Eingabe!B143) -> Güte-Kl. C Länge [m] | C143: =IF(IKW_I_Eingabe!C143="","",IKW_I_Eingabe!C143) ->  | D143: C | H143: =IF(IKW_I_Eingabe!H143="","",IKW_I_Eingabe!H143) -> 0.0 | J143: =IF(IKW_I_Eingabe!J143="","",IKW_I_Eingabe!J143) -> 0.0 | N143: =IF(IKW_I_Eingabe!N143="","",IKW_I_Eingabe!N143) -> 0.0 | P143: Radius in der
B145: Durchmesser o. R. [cm] | C145: =IF(IKW_I_Eingabe!C145="","",IKW_I_Eingabe!C145) ->  | H145: =IF(IKW_I_Eingabe!H145="","",IKW_I_Eingabe!H145) ->  | J145: =IF(IKW_I_Eingabe!J145="","",IKW_I_Eingabe!J145) ->  | N145: =IF(IKW_I_Eingabe!N145="","",IKW_I_Eingabe!N145) ->  | P145: Mitte d. A-Stamm-
B147: Preis [€ / Efm o. R.] | C147: =IF(IKW_I_Eingabe!C147="","",IKW_I_Eingabe!C147) ->  | H147: =IF(IKW_I_Eingabe!H147="","",IKW_I_Eingabe!H147) -> 0.00 € | J147: =IF(IKW_I_Eingabe!J147="","",IKW_I_Eingabe!J147) -> 0.00 € | N147: =IF(IKW_I_Eingabe!N147="","",IKW_I_Eingabe!N147) -> 0.00 € | P147: (Werholz)-stückes
B149: Masse [Efm o. R.] | C149: =IF(IKW_I_Eingabe!C149="","",IKW_I_Eingabe!C149) ->  | H149: =IF(IKW_I_Eingabe!H149="","",IKW_I_Eingabe!H149) ->  | J149: =IF(IKW_I_Eingabe!J149="","",IKW_I_Eingabe!J149) ->  | N149: =IF(IKW_I_Eingabe!N149="","",IKW_I_Eingabe!N149) ->  | P149: lfm=lfd.Meter;fm=m³
B151: Erlös [€] | C151: =IF(IKW_I_Eingabe!C151="","",IKW_I_Eingabe!C151) ->  | H151: =IF(IKW_I_Eingabe!H151="","",IKW_I_Eingabe!H151) ->  | J151: =IF(IKW_I_Eingabe!J151="","",IKW_I_Eingabe!J151) ->  | N151: =IF(IKW_I_Eingabe!N151="","",IKW_I_Eingabe!N151) ->  | P151: ZinF =Aufzinsg.=>U
B155: V. Wirtschaftlichkeit der Maßnahmen: Wertästung bis | C155: =IF(IKW_I_Eingabe!C155="","",IKW_I_Eingabe!C155) ->  | H155: =IF(IKW_I_Eingabe!H155="","",IKW_I_Eingabe!H155) ->  | J155: =IF(IKW_I_Eingabe!J155="","",IKW_I_Eingabe!J155) ->  | N155: =IF(IKW_I_Eingabe!N155="","",IKW_I_Eingabe!N155) -> Ohne Ästung! | P155: Zusammenstellung
B157: Durchschnittserlös [€ / fm] | C157: =IF(IKW_I_Eingabe!C157="","",IKW_I_Eingabe!C157) ->  | H157: =IF(IKW_I_Eingabe!H157="","",IKW_I_Eingabe!H157) ->  | J157: =IF(IKW_I_Eingabe!J157="","",IKW_I_Eingabe!J157) ->  | N157: =IF(IKW_I_Eingabe!N157="","",IKW_I_Eingabe!N157) ->  | O157: =IF(IKW_I_Eingabe!O157="","",IKW_I_Eingabe!O157) -> ZinsF/LS | P157: =IF(IKW_I_Eingabe!P157="","",IKW_I_Eingabe!P157) ->  | Q157: =IF(IKW_I_Eingabe!Q157="","",IKW_I_Eingabe!Q157) -> 2.5
B158: Güte-Kl. A Erlös / Baum [€] | C158: =IF(IKW_I_Eingabe!C158="","",IKW_I_Eingabe!C158) ->  | H158: =IF(IKW_I_Eingabe!H158="","",IKW_I_Eingabe!H158) ->  | J158: =IF(IKW_I_Eingabe!J158="","",IKW_I_Eingabe!J158) ->  | N158: =IF(IKW_I_Eingabe!N158="","",IKW_I_Eingabe!N158) ->  | O158: =IF(IKW_I_Eingabe!O158="","",IKW_I_Eingabe!O158) -> 0 € | P158: =IF(IKW_I_Eingabe!P158="","",IKW_I_Eingabe!P158) -> 0/ 0 / 0 /0m | Q158: =IF(IKW_I_Eingabe!Q158="","",IKW_I_Eingabe!Q158) -> A
B160: B Erlös / Baum [€] | C160: =IF(IKW_I_Eingabe!C160="","",IKW_I_Eingabe!C160) ->  | H160: =IF(IKW_I_Eingabe!H160="","",IKW_I_Eingabe!H160) ->  | J160: =IF(IKW_I_Eingabe!J160="","",IKW_I_Eingabe!J160) ->  | N160: =IF(IKW_I_Eingabe!N160="","",IKW_I_Eingabe!N160) ->  | O160: =IF(IKW_I_Eingabe!O160="","",IKW_I_Eingabe!O160) -> 0 € | P160: =IF(IKW_I_Eingabe!P160="","",IKW_I_Eingabe!P160) -> / 0 / 0 /0m | Q160: =IF(IKW_I_Eingabe!Q160="","",IKW_I_Eingabe!Q160) -> B
B162: C Erlös / Baum [€] | C162: =IF(IKW_I_Eingabe!C162="","",IKW_I_Eingabe!C162) ->  | H162: =IF(IKW_I_Eingabe!H162="","",IKW_I_Eingabe!H162) ->  | J162: =IF(IKW_I_Eingabe!J162="","",IKW_I_Eingabe!J162) ->  | N162: =IF(IKW_I_Eingabe!N162="","",IKW_I_Eingabe!N162) ->  | O162: =IF(IKW_I_Eingabe!O162="","",IKW_I_Eingabe!O162) -> 0 € | P162: =IF(IKW_I_Eingabe!P162="","",IKW_I_Eingabe!P162) -> / 0 / 0 /0m | Q162: =IF(IKW_I_Eingabe!Q162="","",IKW_I_Eingabe!Q162) -> C
B164: Gesamterlös / Baum [€ / Baum] | C164: =IF(IKW_I_Eingabe!C164="","",IKW_I_Eingabe!C164) ->  | H164: =IF(IKW_I_Eingabe!H164="","",IKW_I_Eingabe!H164) ->  | J164: =IF(IKW_I_Eingabe!J164="","",IKW_I_Eingabe!J164) ->  | N164: =IF(IKW_I_Eingabe!N164="","",IKW_I_Eingabe!N164) ->  | O164: =IF(IKW_I_Eingabe!O164="","",IKW_I_Eingabe!O164) -> Bäume | P164: =IF(IKW_I_Eingabe!P164="","",IKW_I_Eingabe!P164) -> / / / 0St. | Q164: =IF(IKW_I_Eingabe!Q164="","",IKW_I_Eingabe!Q164) -> 0
B166: Ertragswert (Mehrerlös: Baum geästet zu ungeastet) [€ / Baum] | C166: =IF(IKW_I_Eingabe!C166="","",IKW_I_Eingabe!C166) ->  | H166: =IF(IKW_I_Eingabe!H166="","",IKW_I_Eingabe!H166) ->  | J166: =IF(IKW_I_Eingabe!J166="","",IKW_I_Eingabe!J166) ->  | M166: Arbeitskraft / h | O166: =IF(IKW_I_Eingabe!O166="","",IKW_I_Eingabe!O166) -> 0.00 € | P166: =IF(IKW_I_Eingabe!P166="","",IKW_I_Eingabe!P166) -> / / /0 | Q166: =IF(IKW_I_Eingabe!Q166="","",IKW_I_Eingabe!Q166) -> GAZ
B168: abzgl. Ästungsaufwand (aufgezinst bis Alter U) [€ / Baum] | C168: =IF(IKW_I_Eingabe!C168="","",IKW_I_Eingabe!C168) ->  | H168: =IF(IKW_I_Eingabe!H168="","",IKW_I_Eingabe!H168) ->  | J168: =IF(IKW_I_Eingabe!J168="","",IKW_I_Eingabe!J168) ->  | M168: Rm /astfr.Schicht | O168: =IF(IKW_I_Eingabe!O168="","",IKW_I_Eingabe!O168) ->  | P168: =IF(IKW_I_Eingabe!P168="","",IKW_I_Eingabe!P168) ->  | Q168: =IF(IKW_I_Eingabe!Q168="","",IKW_I_Eingabe!Q168) -> cm
B170: = Mehrertrag je geästeter Erntebaum (netto) [€ / Baum] | C170: =IF(IKW_I_Eingabe!C170="","",IKW_I_Eingabe!C170) ->  | H170: =IF(IKW_I_Eingabe!H170="","",IKW_I_Eingabe!H170) ->  | J170: =IF(IKW_I_Eingabe!J170="","",IKW_I_Eingabe!J170) ->  | M170: Vol.: astig/astfr. | O170: =IF(IKW_I_Eingabe!O170="","",IKW_I_Eingabe!O170) ->  | P170: =IF(IKW_I_Eingabe!P170="","",IKW_I_Eingabe!P170) ->  | Q170: =IF(IKW_I_Eingabe!Q170="","",IKW_I_Eingabe!Q170) -> fm
B172: Rentabilität aller Maßnahme(n) bis Stufe ... [Faktor] | C172: =IF(IKW_I_Eingabe!C172="","",IKW_I_Eingabe!C172) ->  | H172: =IF(IKW_I_Eingabe!H172="","",IKW_I_Eingabe!H172) ->  | J172: =IF(IKW_I_Eingabe!J172="","",IKW_I_Eingabe!J172) ->  | M172: Vol.-%: " " / " " | O172: =IF(IKW_I_Eingabe!O172="","",IKW_I_Eingabe!O172) ->  | P172: =IF(IKW_I_Eingabe!P172="","",IKW_I_Eingabe!P172) ->  | Q172: =IF(IKW_I_Eingabe!Q172="","",IKW_I_Eingabe!Q172) -> V%
B174: Grenzertrag der Ästungs-Stufe ... [€ / Baum] | C174: =IF(IKW_I_Eingabe!C174="","",IKW_I_Eingabe!C174) ->  | H174: =IF(IKW_I_Eingabe!H174="","",IKW_I_Eingabe!H174) ->  | J174: =IF(IKW_I_Eingabe!J174="","",IKW_I_Eingabe!J174) ->  | M174: Kosten: lfm / fm | O174: =IF(IKW_I_Eingabe!O174="","",IKW_I_Eingabe!O174) ->  | P174: =IF(IKW_I_Eingabe!P174="","",IKW_I_Eingabe!P174) ->  | Q174: =IF(IKW_I_Eingabe!Q174="","",IKW_I_Eingabe!Q174) -> €
B176: Rentabilität der Einzelmaßnahme: Stufe... [Faktor] | C176: =IF(IKW_I_Eingabe!C176="","",IKW_I_Eingabe!C176) ->  | H176: =IF(IKW_I_Eingabe!H176="","",IKW_I_Eingabe!H176) ->  | J176: =IF(IKW_I_Eingabe!J176="","",IKW_I_Eingabe!J176) ->  | M176: d1,3/astfr.Schicht | O176: =IF(IKW_I_Eingabe!O176="","",IKW_I_Eingabe!O176) -> 0.0 | P176: =IF(IKW_I_Eingabe!P176="","",IKW_I_Eingabe!P176) ->  | Q176: =IF(IKW_I_Eingabe!Q176="","",IKW_I_Eingabe!Q176) -> cm
B180: IV-1. Zu erwartende Sortierung und erzielbare Erlöse
B181: IV-1 A1. Variante 3 mit Wertästung (nur Maßnahme 1)
B182: GKl. A Länge [m] | C182: 5.0
B184: GKl. A Durchmesser o. R. [cm] | C184: 76.0
B186: GKl. A Preis [€/Efm o. R.] | C186: 200.00 €
B188: GKl. A Masse [Efm o. R.] | C188: =IF(OR($C$182="",$C$184=""),"",($C$184/100*$C$184/100)/4*3.14159*$C$182) -> 2.27
B190: GKl. A Erlös [€] | C190: =IF(OR($C$186="",$C$188=""),"",$C$186*$C$188) -> 453.65 €
B192: GKl. B Länge [m] | C192: 22.0
B194: GKl. B Durchmesser o. R. [cm] | C194: 60.0
B196: GKl. B Preis [ €/ Efm o. R.] | C196: 96.00 €
B198: GKl. B Masse [Efm o. R.] | C198: =IF(OR($C$192="",$C$194=""),"",($C$194/100*$C$194/100)/4*3.14159*$C$192) -> 6.22
B200: GKl. B Erlös [€] | C200: =IF(OR($C$196="",$C$198=""),"",$C$196*$C$198) -> 597.15 €
B202: GKl. C Länge [m] | C202: 5.0
B204: GKl. C Durchmesser o. R. [cm] | C204: 39.0
B206: GKl. C Preis [€/Efm o. R.] | C206: 81.60 €
B208: GKl. C Masse [Efm o. R.] | C208: =IF(OR($C$202="",$C$204=""),"",($C$204/100*$C$204/100)/4*3.14159*$C$202) -> 0.60
B210: GKl. C Erlös [€] | C210: =IF(OR($C$206="",$C$208=""),"",$C$206*$C$208) -> 48.74 €
B212: Programmerstellung:
B214: K.-H. Schmitz; LB WuH NRW; LuVFA Arnsberger Wald -SPA Waldbau-
B216: Bemerkung
B238: Platz für Anfügungen des Anwenders:

Sheet IKW_II_Eingabe
B1: W e r t ä s t u n g | C1: Lokalität > | F1: Besitz | K1: RFA | O1: Abt.
B3: I n v e s t i t i o n s k a l k u l a t i o n | C3: vom | D3: Adresse | O3: GK-RW
B5: Erst.:FAR Schmitz, LB Wald u. Holz NRW; LVFA Arnsberger Wald | C5: =TODAY() -> 2014-01-07 | D5: Resultat | G5: =IF($C$170>0,"Netto-Rendite je geäst.Erntebaum bis "&C121,IF($C$170<0,"Netto-Verlust je geäst.Erntebaum bis "&C121,"")) ->  | N5: =$C$170 ->  | O5: GK-HW
B7: I. Bestand
B9: I A. Ist-Daten E i n g a b e f o r m u l a r | G9: I B. Soll-Daten | N9: Eingabe erforderlich = | O9: !
B11: Bestand [Baumart] | G11: erwarteter BHD (d1,3) o. R. im Alter U [cm] | Q11: !
B13: Ertragsklasse [EKl.] | G13: jährlicher BHD-Zuwachs bis Alter U [cm] | Q13: !
B15: Bestandesbegründung [Jahr] | E15: ! | G15: verbleibender Zeitraum bis Alter U [Jahre] | P15: =IF($P$13=0,"",ROUNDUP(($P$11-$C$19)/$P$13,0)) -> 
B17: Aktuelle Bestandesaufnahme [Jahr] | E17: ! | G17: Resultierende Umtriebszeit [Jahre] | P17: =IF(OR($C$15="",$C$17="",$P$15=""),"",$C$17-$C$15+$P$15) -> 
B19: aktueller BHD der zu ästenden Bäume o. R. [cm] | E19: ! | G19: entspricht Kalenderjahr im Alter U [Jahr] | P19: =IF($P$17="","",$C$15+$P$17) -> 
B21: Abholzigkeit Güteklasse A (Durchmesser-Abnahme)[cm / lfdm] | E21: ! | G21: Ggf. abweichende Umtriebszeit [U] | N21: =IF(OR($C$19="",$O$23=""),"",IF(($O$23-$C$19)/2<20,"Zu gering!","")) -> 
B23: Abholzigkeit Güteklasse B (GKl. C = AbhzkB+1cm) [cm / lfdm] | E23: ! | G23: = astfreie Schicht [cm] / BHD [cm] / Jahr | N23: =(O23-C19)/2 -> 0.00 | O23: =IF($P$11="",0,IF($P$23>$P$19,$P$11+($P$23-$P$19)*$P$13,IF($P$23<$P$19,$P$11+($P$23-$P$19)*$P$13,$P$11))) -> 0.0 | P23: =IF(AND($P$21="",$P$19=""),"",IF($P$21>0,$C$15+$P$21,$P$19)) -> 
B28: II. Maßnahme | C28: Stufe I | D28: =IF(OR($C$33="",$C$37="",$C$37=0),"",(($P$11+$C$21)-($C$37*$C$21))/2-((($C$19+$C$21)-($C$37*$C$21)+($C$33-$C$17)*$P$13)/2)) ->  | E28: =(($P$11+$C$21)-($C$37*$C$21))/2-((($C$19+$C$21)-($C$37*$C$21)+($C$33-$C$17)*$P$13)/2) -> 0.0 | H28: Stufe II | I28: =IF(OR($H$33="",$H$37="",$H$37=0),"",(($P$11+$C$21)-($H$37*$C$21))/2-((($C$19+$C$21)-($H$37*$C$21)+($H$33-$C$17)*$P$13)/2)) ->  | J28: =IF($I$28<>"","cm","") ->  | N28: Stufe III | O28: =IF(OR($N$33="",$N$37="",$N$37=0),"",(($P$11+$C$21)-($N$37*$C$21))/2-((($C$19+$C$21)-($N$37*$C$21)+($N$33-$C$17)*$P$13)/2)) ->  | P28: =IF(OR($O$28<>"",$I$28<>"",$D$28<>""),"cm astfr. Schicht","") -> 
B33: Maßnahme-Ausführung [Jahr] | E33: ! | I33: (!) | J33: =IF(AND($H$33="",$C$33=""),"",IF($H$33="",$C$33,$H$33)) ->  | O33: (!) | P33: =IF(AND($N$33="",$J$33="",$C$33=""),"",IF($N$33="",$J$33,$N$33)) -> 
B35: Ästungshöhe von ... [m] | C35: 0.0 | H35: =$C$37 -> 0.0 | N35: =$H$37 -> 0.0
B37: Ästungshöhe bis ... [m] | E37: ! | I37: ! | J37: =IF(AND(OR($H$70>0,$H$76>0,),OR($H$37="",$H$37=0)),"<=W e r t ?","") ->  | O37: ! | P37: =IF(AND(OR($N$70>0,$N$76>0,),OR($N$37="",$N$37=0)),"<=W e r t ?","") -> 
B39: Baumabstand: (Optimale Verteilung; 3-Eckverband) [m] | G39: [n] | H39: =10000/($C$39^2*0.8660254) ->  | I39: (errechn. Anzahl /ha) | M39: [n] | N39: =10000/($C$39^2*0.8660254) -> 
B41: Anzahl zu ästender Bäume je ha [Stück / ha] | E41: ! | I41: (!) | J41: =IF(AND($H$41="",$C$41=""),"",IF($H$41="",$C$41,$H$41)) ->  | O41: (!) | P41: =IF(AND($N$41="",$J$41="",$C$41=""),"",IF($N$41="",$J$41,$N$41)) -> 
B43: Maßnahmefläche [ha]
B45: Beschreibung:[Maschineneinsatz / Werkzeug / Verfahren]
B51: Ggf. Behandlungsmittel [Produktbezeichng] / [Menge/Baum]
B55: Dokumentation der Realisierung: [Jahr]/[Bemerkung]
B61: III. Kosten
B62: III A. Basisdaten | C62: Stufe I | H62: Stufe II | N62: Stufe III
B64: Alternative 1: Entgelt / lfdm (aktuellerWert/Folgejahre) [€ / lfdm] | E64: [!] | I64: [!] | J64: =IF(AND($H$64>0,$J$84>0),$H$64*$J$84,IF($H$64>0,$H$64,"")) ->  | O64: [!] | P64: =IF(AND($N$64>0,$P$84>0),$N$64*$P$84,IF($N$64>0,$N$64,"")) -> 
B66: "" 2: Stundenlohn (Folgejahre: Lohn x Steigerungsfaktor [LSF]) [€/h] | E66: ! | H66: =IF(AND($C$66>0,$J$84>0),$C$66*$J$84,IF($C$66>0,$C$66,"")) ->  | I66: in Jahren | J66: =IF(AND($C$33>0,$J$33>0),$J$33-$C$33,"") ->  | N66: =IF(AND($C$66>0,$P$84>0),$C$66*$P$84,IF($C$66>0,$C$66,"")) ->  | O66: in Jahren | P66: =IF(AND($C$33>0,$P$33>0),$P$33-$C$33,"") -> 
B68: Erschwerniszuschlag (ggf. Baumbesteigung) [%]
B70: Zeitvorgabe Arbeitskraft (GAZ) [min. / Baum] | D70: =IF(AND(OR($C$70>0,$C$76>0,),OR($C$37="",$C$37=0)),"H?","") ->  | E70: ! | I70: (!) | J70: =IF(AND($H$70>0,$H$66>0,$H$64>0),"Nicht 1: und 2:!!!","") ->  | O70: (!) | P70: =IF(AND($N$70>0,$N$66>0,$N$64>0),"Nicht 1: und 2:!!!","") -> 
B72: Verwaltungskostenzuschlag / Dokumentationskosten [%] | J72: =IF(H72<>"",H72,IF($C$72="","",$C$72)) ->  | P72: =IF($N$72<>"",$N$72,IF($C$72="","",$C$72)) -> 
B74: Maschineneinsatz [€ / MAS]
B76: Zeitvorgabe Maschineneinsatz (MAS) [min. / Baum] | D76: =IF(AND(OR($C$70>0,$C$76>0,),OR($C$37="",$C$37=0)),"H?","") ->  | J76: =IF(AND(OR($H$70>0,$H$76>0,),OR($H$37="",$H$37=0)),"Ästg.-Höhe?","") ->  | P76: =IF(AND(OR($N$70>0,$N$76>0,),OR($N$37="",$N$37=0)),"Ästg.-Höhe?","") -> 
B78: Werkzeug (Entschädigung / Abnutzung) [€ / h]
B80: Behandlungsmittel [€ / Einheit]
B82: Zinssatz für Aufzinsung der Investitionskosten (p) [%] | C82: 3.00 | E82: ! | H82: Lohnsteigerung [%] | J82: 2.50 | K82: ! | N82: Lohnsteigerung (p) [% / a] | P82: =IF($J$82>0,$J$82,0) -> 2.50
B84: Aufzinsungsfaktor (Askontierung; p = % Zinsen) [(1+p)n] | C84: =IF(OR($C$82="",$C$86=""),"",(1+$C$82/100)^$C$86) ->  | H84: =IF(OR($J$41="",$H$86=""),"",(1+$J$86/100)^$H$86) ->  | I84: [LSF] | J84: =IF(OR($J$41="",$J$66=""),"",(1+$J$82/100)^$J$66) ->  | N84: =IF(OR($J$41="",$N$86=""),"",(1+$P$86/100)^$N$86) ->  | O84: [LSF] | P84: =IF(OR($P$41="",$P$66=""),"",(1+$P$82/100)^$P$66) -> 
B86: Aufzinsungs-Zeitraum bis Alter U (n) [Jahre] | C86: =IF(OR($C$15="",$C$33="",$P$23=""),"",$P$23-$C$33) ->  | H86: =IF(OR($C$15="",$J$33="",$P$23=""),"",$P$23-$J$33) ->  | I86: zu [%] | J86: =IF($C$82="","",$C$82) -> 3.00 | N86: =IF(OR($C$15="",$P$33="",$P$23=""),"",$P$23-$P$33) ->  | O86: zu [%] | P86: =IF($C$82="","",$C$82) -> 3.00
B89: III B. Kalkulation der Maßnahme | C89: Stufe I | H89: Stufe II | N89: Stufe III
B91: Reine Arbeitskosten [€ / Baum] | C91: =IF(AND($C$64="",OR($C$66="",$C$70="")),"",IF(AND($C$64>0,$C$37>0),$C$37*$C$64,IF($C$68="",($C$66/60)*$C$70,($C$66/60)*$C$70*(1+$C$68/100)))) ->  | H91: =IF(AND($H$64="",OR($H$66="",$H$70="")),"",IF(AND($H$64>0,$H$37>0),($H$37-$C$37)*$J$64,IF($H$68="",($H$66/60)*$H$70,($H$66/60)*$H$70*(1+$H$68/100)))) ->  | N91: =IF(AND($N$64="",OR($N$66="",$N$70="")),"",IF(AND($N$64>0,$N$37>0),($N$37-$H$37)*$P$64,IF($N$68="",($N$66/60)*$N$70,($N$66/60)*$N$70*(1+$N$68/100)))) -> 
B93: Verwaltungskosten / Dokumentation [€ / Baum] | C93: =IF(OR($C$72="",$C$91=""),"",($C$91/100)*$C$72) ->  | H93: =IF(OR($J$72="",$H$91=""),"",($H$91/100)*$J$72) ->  | N93: =IF(OR($P$72="",$N$91=""),"",($N$91/100)*$P$72) -> 
B95: Maschineneinsatz [€ / Baum] | C95: =IF(OR($C$74="",$C$76=""),"",($C$74/60)*$C$76) ->  | H95: =IF(OR($H$74="",$H$76=""),"",($H$74/60)*$H$76) ->  | N95: =IF(OR($N$74="",$N$76=""),"",($N$74/60)*$N$76) -> 
B97: Werkzeug [€ / Baum] | C97: =IF(OR($C$70="",$C$78=""),"",($C$78/60)*$C$70) ->  | H97: =IF(OR($H$70="",$H$78=""),"",($H$78/60)*$H$70) ->  | N97: =IF(OR($N$70="",$N$78=""),"",($N$78/60)*$N$70) -> 
B99: Behandlungsmittel [€ / Baum] | C99: =IF(OR($C$51="",$C$80=""),"",$C$51*$C$80) ->  | H99: =IF(OR($H$51="",$H$80=""),"",$H$51*$H$80) ->  | N99: =IF(OR($N$51="",$N$80=""),"",$N$51*$N$80) -> 
B101: Maßnahme insgesamt (unverzinst) [€ / Baum] | C101: =SUM($C$91,$C$93,$C$95,$C$97,$C$99) -> 0.00 € | H101: =SUM($H$91,$H$93,$H$95,$H$97,$H$99) -> 0.00 € | N101: =SUM($N$91,$N$93,$N$95,$N$97,$N$99) -> 0.00 €
B103: Maßnahme insgesamt (unverzinst) [€ / ha] | C103: =IF(OR($C$41="",$C$101=""),"",$C$101*$C$41) ->  | H103: =IF(OR($J$41="",$H$101=""),"",$H$101*$J$41) ->  | N103: =IF(OR($P$41="",$N$101=""),"",$N$101*$P$41) -> 
B105: Zinskosten bis Alter U [€ / Baum] | C105: =IF(OR($C$84="",$C$101=""),"",($C$101)*($C$84-1)) ->  | H105: =IF(OR($H$84="",$H$101=""),"",($H$101)*($H$84-1)) ->  | N105: =IF(OR($N$84="",$N$101=""),"",($N$101)*($N$84-1)) -> 
B107: Maßnahme 1 insgesamt (aufgezinst bis Alter U) [€ / Baum] | C107: =SUM($C$101,$C$105) -> 0.00 € | H107: =SUM($H$101,$H$105) -> 0.00 € | J107: (nur Maßnahme 2) | N107: =SUM($N$101,$N$105) -> 0.00 € | P107: (nur Maßnahme 3)
B109: Maßnahme insgesamt (aufgezinst bis Alter U) [€ / ha] | C109: =IF(OR($C$107="",$C$41=""),"",$C$107*$C$41) ->  | H109: =IF(OR($H$107="",$J$41=""),"",$H$107*$J$41) ->  | J109: "" "" | N109: =IF(OR($N$107="",$P$41=""),"",$N$107*$P$41) ->  | P109: "" ""
B110: III C. Gesamtkalkulation | C110: Stufe I | H110: Stufe II | N110: Stufe III
B111: Gesamtkosten je ha (aufgezinst bis Alter U) [€ / ha] | C111: =SUM($C$109) -> 0.00 € | H111: =SUM($C$109,$H$109) -> 0.00 € | J111: (insgesamt bis Stufe II) | N111: =SUM($C$109,$H$109,$N$109) -> 0.00 € | P111: (insgesamt bis Stufe III)
B113: Erwarteter Anteil geästeter Bäume mit Wertholz [%] | C113: 75.0 | E113: !
B115: Erwartete Anzahl geästeter Bäume / ha mit Wertholz [St.] | C115: =ROUNDDOWN(IF(OR($C$41="",$C$113="",$C$113=0),0,($C$41/100)*$C$113),0) -> 0
B117: Umlegung der Kosten je ha auf die erwartete Anzahl geästeter
B118: Bäume mit Wertholzanteil (aufgezinst bis Alter U) [€ /Baum] | C118: =IF(OR($C$111="",$C$115="",$C$115=0),"",$C$111/$C$115) ->  | H118: =IF(OR($H$111="",$C$115="",$C$115=0),"",$H$111/$C$115) ->  | J118: (insgesamt bis Stufe II) | N118: =IF(OR($N$111="",$C$115="",$C$115=0),"",$N$111/$C$115) ->  | P118: (insgesamt bis Stufe III)
B119: ="Diesen Betrag muß jeder der erwarteten " &C115&" Erntebäume min. zusätzlich erbringen!" -> Diesen Betrag muß jeder der erwarteten 0 Erntebäume min. zusätzlich erbringen!
B121: IV. Zu erwartende Sortierung und erzielbare Erlöse | C121: =IF(AND($N$37>0,$P$41>0,$N$91<>""),"Stufe III",IF(AND($H$37>0,$J$41>0,$H$91<>""),"Stufe II",IF(AND($C$37>0,$C$41>0,$C$91<>""),"Stufe I",""))) ->  | H121: =IF(AND($H$37>0,$J$41>0,$H$91<>""),"Stufe II",IF(AND($C$37>0,$C$41>0,$C$91<>""),"Stufe I","")) ->  | J121: =IF(AND($C$37>0,$C$41>0,$C$91<>""),"Stufe I","") ->  | N121: Ohne | O121: W e r t ä s t u n g
B122: fm / Baum | C122: =IF($C$143>0,$C$129+$C$139+$C$149,$C$129+$C$139) ->  | H122: =IF($C$143>0,$H$129+$H$139+$H$149,$H$129+$H$139) ->  | J122: =IF($C$143>0,$J$129+$J$139+$J$149,$J$129+$J$139) ->  | N122: =IF($C$143>0,$N$129+$N$139+$N$149,$N$129+$N$139) ->  | O122: =IF((($N$122-$C$122)/$C$122)*100>2,(($N$122-$C$122)/$C$122)*100,"") ->  | P122: =IF((($N$122-$C$122)/$C$122)*100>2,"% Vol.-Diff.","") -> 
B123: ="Güte-Kl. A Länge "&$C$121&" [m]" -> Güte-Kl. A Länge [m] | C123: =IF(AND($N$37="",$H$37="",$C$37=""),0,IF(OR(N64>0,AND($N$37>0,$N$70>0)),$N$37,IF(OR(H64>0,AND($H$37>0,$H$70>0)),$H$37,IF(OR(C64>0,AND($C$37>0,$C$70>0)),$C$37,0)))) -> 0.0 | D123: A | E123: =IF(AND($H$121=$C$121,$H$168<>$C$168),"??","") ->  | H123: =IF(AND($H$37="",$C$37=""),0,IF(OR($H$64>0,AND($H$37>0,$H$70>0)),$H$37,IF(OR($C$64>0,AND($C$37>0,$C$70>0)),$C$37,0))) -> 0.0 | J123: =IF(AND($H$37="",$C$37=""),0,IF(OR($C$64>0,AND($C$37>0,$C$70>0)),$C$37,IF($C$37>0,$C$37,0))) -> 0.0 | N123: 0.0 | P123: Abkürzg.-Verz.
B125: Durchmesser o. R. [cm] | C125: =IF(OR($O$23="",$O$23=0),"",$O$23+$C$21-($C$123*0.5)*$C$21) ->  | H125: =IF($C$125="","",IF($H$123/2<=$C$123,($O$23+$C$21)-($H$123/2)*$C$21,($O$23+$C$21)-(($C$123*$C$21)+(($H$123/2-$C$123)*$C$23)))) ->  | J125: =IF($C$125="","",IF($J$123/2<=$C$123,($O$23+$C$21)-($J$123/2)*$C$21,($O$23+$C$21)-(($C$123*$C$21)+(($J$123/2-$C$123)*$C$23)))) ->  | N125: =IF($C$125="","",IF($N$123/2<=$C$123,($O$23+$C$21)-($N$123/2)*$C$21,($O$23+$C$21)-(($C$123*$C$21)+(($N$123/2-$C$123)*$C$23)))) ->  | P125: GAZ
B127: Geästetes Holz (Wertholz-Stück) [€ / Efm o. R.] | E127: ! | H127: =$C$127 -> 0.00 € | J127: =$C$127 -> 0.00 € | N127: =$C$127 -> 0.00 € | P127: Gesamt-Ar-
B129: Masse [Efm o. R.] | C129: =IF(OR($C$123="",$C$125=""),"",($C$125/100*$C$125/100)/4*3.14159*$C$123) ->  | H129: =IF(OR($H$123="",$H$125=""),"",($H$125/100*$H$125/100)/4*3.14159*$H$123) ->  | J129: =IF(OR($J$123="",$J$125=""),"",($J$125/100*$J$125/100)/4*3.14159*$J$123) ->  | N129: =IF(OR($N$123="",$N$125=""),"",($N$125/100*$N$125/100)/4*3.14159*$N$123) ->  | P129: beits-Zeit für
B131: Erlös [€] | C131: =IF(OR($C$127="",$C$129=""),"",$C$127*$C$129) ->  | H131: =IF(OR($H$127="",$H$129=""),"",$H$127*$H$129) ->  | J131: =IF(OR($J$127="",$J$129=""),"",$J$127*$J$129) ->  | N131: =IF(OR($N$127="",$N$129=""),"",$N$127*$N$129) ->  | P131: Ästungs-Stufe
B133: ="Güte-Kl. B Länge (Restlänge vor C-Stück) "&$C$121&" [m]" -> Güte-Kl. B Länge (Restlänge vor C-Stück) [m] | D133: B | H133: =IF(AND($C$123="",$C$133=""),"",IF(AND($C$123>0,OR($C$133="",$C$133=0),OR($H$123="",$H$123=0)),$C$123,IF($H$123>0,$C$123+$C$133-$H$123,$C$123+$C$133))) -> 0.0 | J133: =IF(AND($C$123="",$C$133=""),"",IF(AND($C$123>0,OR($C$133="",$C$133=0),OR($J$123="",$J$123=0)),$C$123,IF($J$123>0,$C$123+$C$133-$J$123,$C$123+$C$133))) -> 0.0 | N133: =IF(AND($C$123="",$C$133=""),"",IF(AND($C$123>0,OR($C$133="",$C$133=0),OR($N$123="",$N$123=0)),$C$123,IF($N$123>0,$C$123+$C$133-$N$123,$C$123+$C$133))) -> 0.0 | P133: I-III in Minuten
B135: Durchmesser o. R. [cm] | C135: =IF(OR($C$133="",$C$133=0),$C$125-(($C$123*0.5*$C$21)+0.01*0.5*($C$23)),$C$125-(($C$123*0.5*$C$21)+$C$133*0.5*($C$23))) ->  | H135: =IF($C$135="","",IF(($H$123+$H$133/2)>$C$123,($O$23+$C$21)-($C$123*$C$21)-($H$123-$C$123+$H$133/2)*$C$23,($O$23+$C$21)-($H$123+$H$133/2)*$C$21)) ->  | J135: =IF($C$135="","",IF(($J$123+$J$133/2)>$C$123,($O$23+$C$21)-($C$123*$C$21)-($J$123-$C$123+$J$133/2)*$C$23,($O$23+$C$21)-($J$123+$J$133/2)*$C$21)) ->  | N135: =IF($C$135="","",IF(($N$123+$N$133/2)>$C$123,($O$23+$C$21)-($C$123*$C$21)-($N$123-$C$123+$N$133/2)*$C$23,($O$23+$C$21)-($N$123+$N$133/2)*$C$21)) ->  | P135: d1,3 (= BHD)
B137: Preis [€ / Efm o. R.] | E137: ! | H137: =$C$137 -> 0.00 € | J137: =$C$137 -> 0.00 € | N137: =$C$137 -> 0.00 € | P137: Durchmesser
B139: Masse [Efm o. R.] | C139: =IF(AND($C$133="",$C$135=""),"",IF(OR($C$133="",$C$133=0),0.00001,($C$135/100*$C$135/100)/4*3.14159*$C$133)) ->  | H139: =IF(OR($H$133="",$H$135=""),"",($H$135/100*$H$135/100)/4*3.14159*$H$133) ->  | J139: =IF(OR($J$133="",$J$135=""),"",($J$135/100*$J$135/100)/4*3.14159*$J$133) ->  | N139: =IF(OR($N$133="",$N$135=""),"",($N$135/100*$N$135/100)/4*3.14159*$N$133) ->  | P139: in 1,3m Höhe
B141: Erlös [€] | C141: =IF(OR($C$137="",$C$139=""),"",$C$137*$C$139) ->  | H141: =IF(OR($H$137="",$H$139=""),"",$H$137*$H$139) ->  | J141: =IF(OR($J$137="",$J$139=""),"",$J$137*$J$139) ->  | N141: =IF(OR($N$137="",$N$139=""),"",$N$137*$N$139) ->  | P141: Rm
B143: ="Güte-Kl. C Länge "&$C$121&" [m]" -> Güte-Kl. C Länge [m] | D143: C | H143: =$C$143 -> 0.0 | J143: =$C$143 -> 0.0 | N143: =$C$143 -> 0.0 | P143: Radius in der
B145: Durchmesser o. R. [cm] | C145: =IF(OR($C$143="",$C$143=0),"",$C$135-(($C$133*0.5)*$C$23)-(($C$143*0.5)*($C$23+1))) ->  | H145: =$C$145 ->  | J145: =$C$145 ->  | N145: =$C$145 ->  | P145: Mitte d. A-Stamm-
B147: Preis [€ / Efm o. R.] | H147: =$C$147 -> 0.00 € | J147: =$C$147 -> 0.00 € | N147: =$C$147 -> 0.00 € | P147: (Werholz)-stückes
B149: Masse [Efm o. R.] | C149: =IF(OR($C$143="",$C$145=""),"",($C$145/100*$C$145/100)/4*3.14159*$C$143) ->  | H149: =IF(OR($N$143="",$N$145=""),"",($N$145/100*$N$145/100)/4*3.14159*$N$143) ->  | J149: =IF(OR($N$143="",$N$145=""),"",($N$145/100*$N$145/100)/4*3.14159*$N$143) ->  | N149: =IF(OR($N$143="",$N$145=""),"",($N$145/100*$N$145/100)/4*3.14159*$N$143) ->  | P149: lfm=lfd.Meter;fm=m³
B151: Erlös [€] | C151: =IF(OR($C$147="",$C$149=""),"",$C$147*$C$149) ->  | H151: =IF(OR($H$147="",$H$149=""),"",$H$147*$H$149) ->  | J151: =IF(OR($J$147="",$J$149=""),"",$J$147*$J$149) ->  | N151: =IF(OR($N$147="",$N$149=""),"",$N$147*$N$149) ->  | P151: ZinF =Aufzinsg.=>U
B155: V. Wirtschaftlichkeit der Maßnahmen: Wertästung bis | C155: =IF(AND($N$37>0,$P$41>0,$N$91<>""),"Stufe III",IF(AND($H$37>0,$J$41>0,$H$91<>""),"Stufe II",IF(AND($C$37>0,$C$41>0,$C$91<>""),"Stufe I",""))) ->  | H155: =IF(AND($H$37>0,$J$41>0,$H$91<>""),"Stufe II",IF(AND($C$37>0,$C$41>0,$C$91<>""),"Stufe I","")) ->  | J155: =IF(AND($C$37>0,$C$41>0,$C$91<>""),"Stufe I","") ->  | N155: Ohne Ästung! | P155: Zusammenstellung
B157: Durchschnittserlös [€ / fm] | C157: =IF(C143>0,$C$164/($C$129+$C$139+$C$149),$C$164/($C$129+$C$139)) ->  | H157: =IF(H143>0,$H$164/($H$129+$H$139+$H$149),$H$164/($H$129+$H$139)) ->  | J157: =IF(J143>0,$J$164/($J$129+$J$139+$J$149),$J$164/($J$129+$J$139)) ->  | N157: =IF(N143>0,$N$164/($N$129+$N$139+$N$149),$N$164/($N$129+$N$139)) ->  | O157: ZinsF/LS | P157: =$C$84 ->  | Q157: =$J$82 -> 2.5
B158: Güte-Kl. A Erlös / Baum [€] | C158: =IF($C$131="","",$C$131) ->  | H158: =IF($H$131="","",$H$131) ->  | J158: =IF($J$131="","",$J$131) ->  | N158: =IF($N$131="","",$N$131) ->  | O158: =$C$127 -> 0 € | P158: =$C$123&"/ "&$H$123&" / "&$J$123&" /"&$N$123&"m" -> 0/ 0 / 0 /0m | Q158: =$D$123 -> A
B160: B Erlös / Baum [€] | C160: =IF($C$141="","",$C$141) ->  | H160: =IF($H$141="","",$H$141) ->  | J160: =IF($J$141="","",$J$141) ->  | N160: =IF($N$141="","",$N$141) ->  | O160: =$C$137 -> 0 € | P160: =$C$133&"/ "&$H$133&" / "&$J$133&" /"&$N$133&"m" -> / 0 / 0 /0m | Q160: =$D$133 -> B
B162: C Erlös / Baum [€] | C162: =IF($C$151="","",$C$151) ->  | H162: =IF($H$151="","",$H$151) ->  | J162: =IF($J$151="","",$J$151) ->  | N162: =IF($N$151="","",$N$151) ->  | O162: =$C$147 -> 0 € | P162: =$C$143&" / "&$H$143&" / "&$J$143&" /"&$N$143&"m" -> / 0 / 0 /0m | Q162: =$D$143 -> C
B164: Gesamterlös / Baum [€ / Baum] | C164: =IF(AND($C$158="",$C$160="",$C$162=""),"",SUM($C$158,$C$160,$C$162)) ->  | H164: =IF(AND($H$158="",$H$160="",$H$162=""),"",SUM($H$158,$H$160,$H$162)) ->  | J164: =IF(AND($J$158="",$J$160="",$J$162=""),"",SUM($J$158,$J$160,$J$162)) ->  | N164: =IF(AND($N$158="",$N$160="",$N$162=""),"",SUM($N$158,$N$160,$N$162)) ->  | O164: Bäume | P164: =$P$41&" / "&$J$41&" / "&$C$41&" / "&"0St." -> / / / 0St. | Q164: =$C$115 -> 0
B166: Ertragswert (Mehrerlös: Baum geästet zu ungeastet) [€ / Baum] | C166: =IF(OR($C$164="",$N$164=""),"",$C$164-$N$164) ->  | H166: =IF(OR($H$164="",$N$164=""),"",$H$164-$N$164) ->  | J166: =IF(OR($N$164="",$J$164=""),"",$J$164-$N$164) ->  | M166: Arbeitskraft / h | O166: =$C$66 -> 0.00 € | P166: =$N$70&"/ "&$H$70&" / "&$C$70& " /0" -> / / /0 | Q166: GAZ
B168: abzgl. Ästungsaufwand (aufgezinst bis Alter U) [€ / Baum] | C168: =IF(OR($N$111="",$C$115="",$C$115=0),"",$N$111/$C$115) ->  | H168: =IF(OR($H$111="",$C$115="",$C$115=0),"",$H$111/$C$115) ->  | J168: =IF(OR($C$111="",$C$115="",$C$115=0),"",$C$111/$C$115) ->  | M168: Rm /astfr.Schicht | O168: =$C$125/2 ->  | P168: =IF(OR($C$19="",$C$19=0,$O$23="",$O$23=0),"",$O$168-(($C$19+$C$21)-($C$123/2)*$C$21)/2) ->  | Q168: cm
B170: = Mehrertrag je geästeter Erntebaum (netto) [€ / Baum] | C170: =IF(OR($C$166="",$C$168=""),"",$C$166-$C$168) ->  | H170: =IF(OR($H$166="",$H$168=""),"",$H$166-$H$168) ->  | J170: =IF(OR($J$166="",$J$168=""),"",$J$166-$J$168) ->  | M170: Vol.: astig/astfr. | O170: =IF(OR($C$123="",$O$168="",$P$168=""),"",(($O$168-$P$168)/100*($O$168-$P$168)/100)*3.14159*$C$123) ->  | P170: =$C$129-$O$170 ->  | Q170: fm
B172: Rentabilität aller Maßnahme(n) bis Stufe ... [Faktor] | C172: =IF(OR($C$168="",$C$170=""),"",$C$170/$C$168) ->  | H172: =IF(OR($H$168="",$H$170=""),"",$H$170/$H$168) ->  | J172: =IF(OR($J$168="",$J$170=""),"",$J$170/$J$168) ->  | M172: Vol.-%: " " / " " | O172: =$O$170/$C$129*100 ->  | P172: =$P$170/$C$129*100 ->  | Q172: V%
B174: Grenzertrag der Ästungs-Stufe ... [€ / Baum] | C174: =IF(OR($C$170="",$H$170=""),"",$C$170-$H$170) ->  | H174: =IF(OR($H$170="",$J$170=""),"",$H$170-$J$170) ->  | J174: =$J$170 ->  | M174: Kosten: lfm / fm | O174: =IF(OR($C$123="",$C$168=""),"",$C$168/$C$123) ->  | P174: =IF(AND($C$129>0,$C$168>0),$C$168/$C$129,"") ->  | Q174: €
B176: Rentabilität der Einzelmaßnahme: Stufe... [Faktor] | C176: =IF(OR($C$168="",$C$170=""),"",$C$174/($C$168-$H$168)) ->  | H176: =IF(OR($H$168="",$H$170=""),"",$H$174/($H$168-$J$168)) ->  | J176: =IF(OR($J$168="",$J$170=""),"",$J$174/$J$168) ->  | M176: d1,3/astfr.Schicht | O176: =$O$23 -> 0.0 | P176: =IF(OR($C$19="",$O$23=""),"",IF(($O$23-$C$19)/2<20,"Zu gering!",($O$23-$C$19)/2)) ->  | Q176: cm
B180: IV-1. Zu erwartende Sortierung und erzielbare Erlöse
B181: IV-1 A1. Variante 3 mit Wertästung (nur Maßnahme 1)
B182: GKl. A Länge [m] | C182: 5.0
B184: GKl. A Durchmesser o. R. [cm] | C184: 76.0
B186: GKl. A Preis [€/Efm o. R.] | C186: 200.00 €
B188: GKl. A Masse [Efm o. R.] | C188: =IF(OR($C$182="",$C$184=""),"",($C$184/100*$C$184/100)/4*3.14159*$C$182) -> 2.27
B190: GKl. A Erlös [€] | C190: =IF(OR($C$186="",$C$188=""),"",$C$186*$C$188) -> 453.65 €
B192: GKl. B Länge [m] | C192: 22.0
B194: GKl. B Durchmesser o. R. [cm] | C194: 60.0
B196: GKl. B Preis [ €/ Efm o. R.] | C196: 96.00 €
B198: GKl. B Masse [Efm o. R.] | C198: =IF(OR($C$192="",$C$194=""),"",($C$194/100*$C$194/100)/4*3.14159*$C$192) -> 6.22
B200: GKl. B Erlös [€] | C200: =IF(OR($C$196="",$C$198=""),"",$C$196*$C$198) -> 597.15 €
B202: GKl. C Länge [m] | C202: 5.0
B204: GKl. C Durchmesser o. R. [cm] | C204: 39.0
B206: GKl. C Preis [€/Efm o. R.] | C206: 81.60 €
B208: GKl. C Masse [Efm o. R.] | C208: =IF(OR($C$202="",$C$204=""),"",($C$204/100*$C$204/100)/4*3.14159*$C$202) -> 0.60
B210: GKl. C Erlös [€] | C210: =IF(OR($C$206="",$C$208=""),"",$C$206*$C$208) -> 48.74 €
B212: Programmerstellung:
B214: K.-H. Schmitz; LB WuH NRW; LuVFA Arnsberger Wald -SPA Waldbau-
B216: Bemerkung
B238: Platz für Anfügungen des Anwenders:

Sheet IKW_II_Ansicht
B1: W e r t ä s t u n g | C1: Lokalität > | F1: Besitz | G1: =IF(IKW_II_Eingabe!G1="","",IKW_II_Eingabe!G1) ->  | H1: =IF(IKW_I_Eingabe!H1="","",IKW_I_Eingabe!H1) ->  | I1: =IF(IKW_I_Eingabe!I1="","",IKW_I_Eingabe!I1) ->  | J1: =IF(IKW_I_Eingabe!J1="","",IKW_I_Eingabe!J1) ->  | K1: RFA | N1: =IF(IKW_II_Eingabe!N1="","",IKW_II_Eingabe!N1) ->  | O1: Abt. | P1: =IF(IKW_II_Eingabe!P1="","",IKW_II_Eingabe!P1) -> 
B3: I n v e s t i t i o n s k a l k u l a t i o n | C3: vom | D3: Adresse | G3: =IF(IKW_II_Eingabe!G3="","",IKW_II_Eingabe!G3) ->  | H3: =IF(IKW_I_Eingabe!H3="","",IKW_I_Eingabe!H3) ->  | I3: =IF(IKW_I_Eingabe!I3="","",IKW_I_Eingabe!I3) ->  | J3: =IF(IKW_I_Eingabe!J3="","",IKW_I_Eingabe!J3) ->  | K3: =IF(IKW_I_Eingabe!K3="","",IKW_I_Eingabe!K3) ->  | L3: =IF(IKW_I_Eingabe!L3="","",IKW_I_Eingabe!L3) ->  | M3: =IF(IKW_I_Eingabe!M3="","",IKW_I_Eingabe!M3) ->  | N3: =IF(IKW_I_Eingabe!N3="","",IKW_I_Eingabe!N3) ->  | O3: GK-RW | P3: =IF(IKW_II_Eingabe!P3="","",IKW_II_Eingabe!P3) -> 
B5: Erst.:FAR Schmitz, LB Wald u. Holz NRW; LVFA Arnsberger Wald | C5: =IF(IKW_II_Eingabe!C5="","",IKW_II_Eingabe!C5) -> 2014-01-07 | D5: Resultat | G5: =IF(IKW_II_Eingabe!G5="","",IKW_II_Eingabe!G5) ->  | H5: =IF(IKW_I_Eingabe!H5="","",IKW_I_Eingabe!H5) ->  | I5: =IF(IKW_I_Eingabe!I5="","",IKW_I_Eingabe!I5) ->  | J5: =IF(IKW_I_Eingabe!J5="","",IKW_I_Eingabe!J5) ->  | K5: =IF(IKW_I_Eingabe!K5="","",IKW_I_Eingabe!K5) ->  | L5: =IF(IKW_I_Eingabe!L5="","",IKW_I_Eingabe!L5) ->  | M5: =IF(IKW_I_Eingabe!M5="","",IKW_I_Eingabe!M5) ->  | N5: =IF(IKW_II_Eingabe!N5="","",IKW_II_Eingabe!N5) ->  | O5: GK-HW | P5: =IF(IKW_II_Eingabe!P5="","",IKW_II_Eingabe!P5) -> 
B7: I. Bestand
B9: I A. Ist-Daten | G9: I B. Soll-Daten
B11: Bestand [Baumart] | C11: =IF(IKW_II_Eingabe!C11="","",IKW_II_Eingabe!C11) ->  | G11: erwarteter BHD (d1,3) o. R. im Alter U [cm] | P11: =IF(IKW_II_Eingabe!P11="","",IKW_II_Eingabe!P11) ->  | Q11: !
B13: Ertragsklasse [EKl.] | C13: =IF(IKW_II_Eingabe!C13="","",IKW_II_Eingabe!C13) ->  | G13: jährlicher BHD-Zuwachs bis Alter U [cm] | P13: =IF(IKW_II_Eingabe!P13="","",IKW_II_Eingabe!P13) ->  | Q13: !
B15: Bestandesbegründung [Jahr] | C15: =IF(IKW_II_Eingabe!C15="","",IKW_II_Eingabe!C15) ->  | E15: ! | G15: verbleibender Zeitraum bis Alter U [Jahre] | P15: =IF(IKW_II_Eingabe!P15="","",IKW_II_Eingabe!P15) -> 
B17: Aktuelle Bestandesaufnahme [Jahr] | C17: =IF(IKW_II_Eingabe!C17="","",IKW_II_Eingabe!C17) ->  | E17: ! | G17: Resultierende Umtriebszeit [Jahre] | P17: =IF(IKW_II_Eingabe!P17="","",IKW_II_Eingabe!P17) -> 
B19: aktueller BHD der zu ästenden Bäume o. R. [cm] | C19: =IF(IKW_II_Eingabe!C19="","",IKW_II_Eingabe!C19) ->  | E19: ! | G19: entspricht Kalenderjahr im Alter U [Jahr] | P19: =IF(IKW_II_Eingabe!P19="","",IKW_II_Eingabe!P19) -> 
B21: Abholzigkeit Güteklasse A (Durchmesser-Abnahme)[cm / lfdm] | C21: =IF(IKW_II_Eingabe!C21="","",IKW_II_Eingabe!C21) ->  | E21: ! | G21: Ggf. abweichende Umtriebszeit [U] | N21: =IF(OR($C$19="",$O$23=""),"",IF(($O$23-$C$19)/2<20,"Zu gering!","")) ->  | P21: =IF(IKW_II_Eingabe!P21="","",IKW_II_Eingabe!P21) -> 
B23: Abholzigkeit Güteklasse B (GKl. C = AbhzkB+1cm) [cm / lfdm] | C23: =IF(IKW_II_Eingabe!C23="","",IKW_II_Eingabe!C23) ->  | E23: ! | G23: = astfreie Schicht [cm] / BHD [cm] / Jahr | N23: =IF(IKW_II_Eingabe!N23="","",IKW_II_Eingabe!N23) -> 0.00 | O23: =IF(IKW_II_Eingabe!O23="","",IKW_II_Eingabe!O23) -> 0.0 | P23: =IF(IKW_II_Eingabe!P23="","",IKW_II_Eingabe!P23) -> 
B28: II. Maßnahme | C28: Stufe I | D28: =IF(IKW_II_Eingabe!D28="","",IKW_II_Eingabe!D28) ->  | E28: =IF(IKW_I_Eingabe!E28="","",IKW_I_Eingabe!E28) -> 0.0 | H28: Stufe II | I28: =IF(IKW_II_Eingabe!I28="","",IKW_II_Eingabe!I28) ->  | J28: =IF($I$28<>"","cm","") ->  | N28: Stufe III | O28: =IF(IKW_II_Eingabe!O28="","",IKW_II_Eingabe!O28) ->  | P28: =IF(IKW_II_Eingabe!P28="","",IKW_II_Eingabe!P28) -> 
B33: Maßnahme-Ausführung [Jahr] | C33: =IF(IKW_II_Eingabe!C33="","",IKW_II_Eingabe!C33) ->  | E33: ! | H33: =IF(IKW_II_Eingabe!H33="","",IKW_II_Eingabe!H33) ->  | I33: (!) | J33: =IF(IKW_II_Eingabe!J33="","",IKW_II_Eingabe!J33) ->  | N33: =IF(IKW_II_Eingabe!N33="","",IKW_II_Eingabe!N33) ->  | O33: (!) | P33: =IF(IKW_II_Eingabe!P33="","",IKW_II_Eingabe!P33) -> 
B35: Ästungshöhe von ... [m] | C35: =IF(IKW_II_Eingabe!C35="","",IKW_II_Eingabe!C35) -> 0.0 | H35: =IF(IKW_II_Eingabe!H35="","",IKW_II_Eingabe!H35) -> 0.0 | N35: =IF(IKW_II_Eingabe!N35="","",IKW_II_Eingabe!N35) -> 0.0
B37: Ästungshöhe bis ... [m] | C37: =IF(IKW_II_Eingabe!C37="","",IKW_II_Eingabe!C37) ->  | E37: ! | H37: =IF(IKW_II_Eingabe!H37="","",IKW_II_Eingabe!H37) ->  | I37: ! | J37: =IF(AND(OR($H$70>0,$H$76>0,),OR($H$37="",$H$37=0)),"<=W e r t ?","") -> <=W e r t ? | N37: =IF(IKW_II_Eingabe!N37="","",IKW_II_Eingabe!N37) ->  | O37: ! | P37: =IF(AND(OR($N$70>0,$N$76>0,),OR($N$37="",$N$37=0)),"<=W e r t ?","") -> <=W e r t ?
B39: Baumabstand: (Optimale Verteilung; 3-Eckverband) [m] | C39: =IF(IKW_II_Eingabe!C39="","",IKW_II_Eingabe!C39) ->  | G39: [n] | H39: =IF(IKW_II_Eingabe!H39="","",IKW_II_Eingabe!H39) ->  | I39: (errechn. Anzahl /ha) | M39: [n] | N39: =IF(IKW_II_Eingabe!N39="","",IKW_II_Eingabe!N39) -> 
B41: Anzahl zu ästender Bäume je ha [Stück / ha] | C41: =IF(IKW_II_Eingabe!C41="","",IKW_II_Eingabe!C41) ->  | E41: ! | H41: =IF(IKW_II_Eingabe!H41="","",IKW_II_Eingabe!H41) ->  | I41: (!) | J41: =IF(IKW_II_Eingabe!J41="","",IKW_II_Eingabe!J41) ->  | N41: =IF(IKW_II_Eingabe!N41="","",IKW_II_Eingabe!N41) ->  | O41: (!) | P41: =IF(IKW_II_Eingabe!P41="","",IKW_II_Eingabe!P41) -> 
B43: Maßnahmefläche [ha]
B45: Beschreibung:[Maschineneinsatz / Werkzeug / Verfahren]
B51: Ggf. Behandlungsmittel [Produktbezeichng] / [Menge/Baum] | C51: =IF(IKW_II_Eingabe!C51="","",IKW_II_Eingabe!C51) ->  | H51: =IF(IKW_II_Eingabe!H51="","",IKW_II_Eingabe!H51) ->  | N51: =IF(IKW_II_Eingabe!N51="","",IKW_II_Eingabe!N51) -> 
B55: Dokumentation der Realisierung: [Jahr]/[Bemerkung]
B61: III. Kosten
B62: III A. Basisdaten | C62: Stufe I | H62: Stufe II | N62: Stufe III
B64: Alternative 1: Entgelt / lfdm (aktuellerWert/Folgejahre) [€ / lfdm] | C64: =IF(IKW_II_Eingabe!C64="","",IKW_II_Eingabe!C64) ->  | E64: [!] | H64: =IF(IKW_II_Eingabe!H64="","",IKW_II_Eingabe!H64) ->  | I64: [!] | J64: =IF(IKW_II_Eingabe!J64="","",IKW_II_Eingabe!J64) ->  | N64: =IF(IKW_II_Eingabe!N64="","",IKW_II_Eingabe!N64) ->  | O64: [!] | P64: =IF(IKW_II_Eingabe!P64="","",IKW_II_Eingabe!P64) -> 
B66: "" 2: Stundenlohn (Folgejahre: Lohn x Steigerungsfaktor [LSF]) [€/h] | C66: =IF(IKW_II_Eingabe!C66="","",IKW_II_Eingabe!C66) ->  | E66: ! | H66: =IF(IKW_II_Eingabe!H66="","",IKW_II_Eingabe!H66) ->  | I66: in Jahren | J66: =IF(IKW_II_Eingabe!J66="","",IKW_II_Eingabe!J66) ->  | N66: =IF(IKW_II_Eingabe!N66="","",IKW_II_Eingabe!N66) ->  | O66: in Jahren | P66: =IF(IKW_II_Eingabe!P66="","",IKW_II_Eingabe!P66) -> 
B68: Erschwerniszuschlag (ggf. Baumbesteigung) [%] | C68: =IF(IKW_II_Eingabe!C68="","",IKW_II_Eingabe!C68) ->  | H68: =IF(IKW_II_Eingabe!H68="","",IKW_II_Eingabe!H68) ->  | N68: =IF(IKW_II_Eingabe!N68="","",IKW_II_Eingabe!N68) -> 
B70: Zeitvorgabe Arbeitskraft (GAZ) [min. / Baum] | C70: =IF(IKW_II_Eingabe!C70="","",IKW_II_Eingabe!C70) ->  | D70: =IF(AND(OR($C$70>0,$C$76>0,),OR($C$37="",$C$37=0)),"H?","") -> H? | E70: ! | H70: =IF(IKW_II_Eingabe!H70="","",IKW_II_Eingabe!H70) ->  | I70: (!) | J70: =IF(IKW_II_Eingabe!J70="","",IKW_II_Eingabe!J70) ->  | N70: =IF(IKW_II_Eingabe!N70="","",IKW_II_Eingabe!N70) ->  | O70: (!) | P70: =IF(IKW_II_Eingabe!P70="","",IKW_II_Eingabe!P70) -> 
B72: Verwaltungskostenzuschlag / Dokumentationskosten [%] | C72: =IF(IKW_II_Eingabe!C72="","",IKW_II_Eingabe!C72) ->  | H72: =IF(IKW_II_Eingabe!H72="","",IKW_II_Eingabe!H72) ->  | J72: =IF(IKW_II_Eingabe!J72="","",IKW_II_Eingabe!J72) ->  | N72: =IF(IKW_II_Eingabe!N72="","",IKW_II_Eingabe!N72) ->  | P72: =IF(IKW_II_Eingabe!P72="","",IKW_II_Eingabe!P72) -> 
B74: Maschineneinsatz [€ / MAS] | C74: =IF(IKW_II_Eingabe!C74="","",IKW_II_Eingabe!C74) ->  | H74: =IF(IKW_II_Eingabe!H74="","",IKW_II_Eingabe!H74) ->  | N74: =IF(IKW_II_Eingabe!N74="","",IKW_II_Eingabe!N74) -> 
B76: Zeitvorgabe Maschineneinsatz (MAS) [min. / Baum] | C76: =IF(IKW_II_Eingabe!C76="","",IKW_II_Eingabe!C76) ->  | D76: =IF(AND(OR($C$70>0,$C$76>0,),OR($C$37="",$C$37=0)),"H?","") -> H? | H76: =IF(IKW_II_Eingabe!H76="","",IKW_II_Eingabe!H76) ->  | J76: =IF(AND(OR($H$70>0,$H$76>0,),OR($H$37="",$H$37=0)),"Ästg.-Höhe?","") -> Ästg.-Höhe? | N76: =IF(IKW_II_Eingabe!N76="","",IKW_II_Eingabe!N76) ->  | P76: =IF(AND(OR($N$70>0,$N$76>0,),OR($N$37="",$N$37=0)),"Ästg.-Höhe?","") -> Ästg.-Höhe?
B78: Werkzeug (Entschädigung / Abnutzung) [€ / h] | C78: =IF(IKW_II_Eingabe!C78="","",IKW_II_Eingabe!C78) ->  | H78: =IF(IKW_II_Eingabe!H78="","",IKW_II_Eingabe!H78) ->  | N78: =IF(IKW_II_Eingabe!N78="","",IKW_II_Eingabe!N78) -> 
B80: Behandlungsmittel [€ / Einheit] | C80: =IF(IKW_II_Eingabe!C80="","",IKW_II_Eingabe!C80) ->  | H80: =IF(IKW_II_Eingabe!H80="","",IKW_II_Eingabe!H80) ->  | N80: =IF(IKW_II_Eingabe!N80="","",IKW_II_Eingabe!N80) -> 
B82: Zinssatz für Aufzinsung der Investitionskosten (p) [%] | C82: =IF(IKW_II_Eingabe!C82="","",IKW_II_Eingabe!C82) -> 3.00 | E82: ! | H82: Lohnsteigerung [%] | J82: =IF(IKW_II_Eingabe!J82="","",IKW_II_Eingabe!J82) -> 2.50 | K82: ! | N82: Lohnsteigerung (p) [% / a] | P82: =IF(IKW_II_Eingabe!P82="","",IKW_II_Eingabe!P82) -> 2.50
B84: Aufzinsungsfaktor (Askontierung; p = % Zinsen) [(1+p)n] | C84: =IF(IKW_II_Eingabe!C84="","",IKW_II_Eingabe!C84) ->  | H84: =IF(IKW_II_Eingabe!H84="","",IKW_II_Eingabe!H84) ->  | I84: [LSF] | J84: =IF(IKW_II_Eingabe!J84="","",IKW_II_Eingabe!J84) ->  | N84: =IF(IKW_II_Eingabe!N84="","",IKW_II_Eingabe!N84) ->  | O84: [LSF] | P84: =IF(IKW_II_Eingabe!P84="","",IKW_II_Eingabe!P84) -> 
B86: Aufzinsungs-Zeitraum bis Alter U (n) [Jahre] | C86: =IF(IKW_II_Eingabe!C86="","",IKW_II_Eingabe!C86) ->  | H86: =IF(IKW_II_Eingabe!H86="","",IKW_II_Eingabe!H86) ->  | I86: zu [%] | J86: =IF(IKW_II_Eingabe!J86="","",IKW_II_Eingabe!J86) -> 3.00 | N86: =IF(IKW_II_Eingabe!N86="","",IKW_II_Eingabe!N86) ->  | O86: zu [%] | P86: =IF(IKW_II_Eingabe!P86="","",IKW_II_Eingabe!P86) -> 3.00
B89: III B. Kalkulation der Maßnahme | C89: Stufe I | H89: Stufe II | N89: Stufe III
B91: Reine Arbeitskosten [€ / Baum] | C91: =IF(IKW_II_Eingabe!C91="","",IKW_II_Eingabe!C91) ->  | H91: =IF(IKW_II_Eingabe!H91="","",IKW_II_Eingabe!H91) ->  | N91: =IF(IKW_II_Eingabe!N91="","",IKW_II_Eingabe!N91) -> 
B93: Verwaltungskosten / Dokumentation [€ / Baum] | C93: =IF(IKW_II_Eingabe!C93="","",IKW_II_Eingabe!C93) ->  | H93: =IF(IKW_II_Eingabe!H93="","",IKW_II_Eingabe!H93) ->  | N93: =IF(IKW_II_Eingabe!N93="","",IKW_II_Eingabe!N93) -> 
B95: Maschineneinsatz [€ / Baum] | C95: =IF(IKW_II_Eingabe!C95="","",IKW_II_Eingabe!C95) ->  | H95: =IF(IKW_II_Eingabe!H95="","",IKW_II_Eingabe!H95) ->  | N95: =IF(IKW_II_Eingabe!N95="","",IKW_II_Eingabe!N95) -> 
B97: Werkzeug [€ / Baum] | C97: =IF(IKW_II_Eingabe!C97="","",IKW_II_Eingabe!C97) ->  | H97: =IF(IKW_II_Eingabe!H97="","",IKW_II_Eingabe!H97) ->  | N97: =IF(IKW_II_Eingabe!N97="","",IKW_II_Eingabe!N97) -> 
B99: Behandlungsmittel [€ / Baum] | C99: =IF(IKW_II_Eingabe!C99="","",IKW_II_Eingabe!C99) ->  | H99: =IF(IKW_II_Eingabe!H99="","",IKW_II_Eingabe!H99) ->  | N99: =IF(IKW_II_Eingabe!N99="","",IKW_II_Eingabe!N99) -> 
B101: Maßnahme insgesamt (unverzinst) [€ / Baum] | C101: =IF(IKW_II_Eingabe!C101="","",IKW_II_Eingabe!C101) -> 0.00 € | H101: =IF(IKW_II_Eingabe!H101="","",IKW_II_Eingabe!H101) -> 0.00 € | N101: =IF(IKW_II_Eingabe!N101="","",IKW_II_Eingabe!N101) -> 0.00 €
B103: Maßnahme insgesamt (unverzinst) [€ / ha] | C103: =IF(IKW_II_Eingabe!C103="","",IKW_II_Eingabe!C103) ->  | H103: =IF(IKW_II_Eingabe!H103="","",IKW_II_Eingabe!H103) ->  | N103: =IF(IKW_II_Eingabe!N103="","",IKW_II_Eingabe!N103) -> 
B105: Zinskosten bis Alter U [€ / Baum] | C105: =IF(IKW_II_Eingabe!C105="","",IKW_II_Eingabe!C105) ->  | H105: =IF(IKW_II_Eingabe!H105="","",IKW_II_Eingabe!H105) ->  | N105: =IF(IKW_II_Eingabe!N105="","",IKW_II_Eingabe!N105) -> 
B107: Maßnahme 1 insgesamt (aufgezinst bis Alter U) [€ / Baum] | C107: =IF(IKW_II_Eingabe!C107="","",IKW_II_Eingabe!C107) -> 0.00 € | H107: =IF(IKW_II_Eingabe!H107="","",IKW_II_Eingabe!H107) -> 0.00 € | J107: (nur Maßnahme 2) | N107: =IF(IKW_II_Eingabe!N107="","",IKW_II_Eingabe!N107) -> 0.00 € | P107: (nur Maßnahme 3)
B109: Maßnahme insgesamt (aufgezinst bis Alter U) [€ / ha] | C109: =IF(IKW_II_Eingabe!C109="","",IKW_II_Eingabe!C109) ->  | H109: =IF(IKW_II_Eingabe!H109="","",IKW_II_Eingabe!H109) ->  | J109: "" "" | N109: =IF(IKW_II_Eingabe!N109="","",IKW_II_Eingabe!N109) ->  | P109: "" ""
B110: III C. Gesamtkalkulation | C110: Stufe I | H110: Stufe II | N110: Stufe III
B111: Gesamtkosten je ha (aufgezinst bis Alter U) [€ / ha] | C111: =IF(IKW_II_Eingabe!C111="","",IKW_II_Eingabe!C111) -> 0.00 € | H111: =IF(IKW_II_Eingabe!H111="","",IKW_II_Eingabe!H111) -> 0.00 € | J111: (insgesamt bis Stufe II) | N111: =IF(IKW_II_Eingabe!N111="","",IKW_II_Eingabe!N111) -> 0.00 € | P111: (insgesamt bis Stufe III)
B113: Erwarteter Anteil geästeter Bäume mit Wertholz [%] | C113: =IF(IKW_II_Eingabe!C113="","",IKW_II_Eingabe!C113) -> 75.0 | E113: !
B115: Erwartete Anzahl geästeter Bäume / ha mit Wertholz [St.] | C115: =IF(IKW_II_Eingabe!C115="","",IKW_II_Eingabe!C115) -> 0
B117: Umlegung der Kosten je ha auf die erwartete Anzahl geästeter
B118: Bäume mit Wertholzanteil (aufgezinst bis Alter U) [€ /Baum] | C118: =IF(IKW_II_Eingabe!C118="","",IKW_II_Eingabe!C118) ->  | H118: =IF(IKW_II_Eingabe!H118="","",IKW_II_Eingabe!H118) ->  | J118: (insgesamt bis Stufe II) | N118: =IF(IKW_II_Eingabe!N118="","",IKW_II_Eingabe!N118) ->  | P118: (insgesamt bis Stufe III)
B119: ="Diesen Betrag muß jeder der erwarteten " &C115&" Erntebäume min. zusätzlich erbringen!" -> Diesen Betrag muß jeder der erwarteten 0 Erntebäume min. zusätzlich erbringen!
B121: IV. Zu erwartende Sortierung und erzielbare Erlöse | C121: =IF(IKW_II_Eingabe!C121="","",IKW_II_Eingabe!C121) ->  | H121: =IF(IKW_II_Eingabe!H121="","",IKW_II_Eingabe!H121) ->  | J121: =IF(IKW_II_Eingabe!J121="","",IKW_II_Eingabe!J121) ->  | N121: =IF(IKW_II_Eingabe!N121="","",IKW_II_Eingabe!N121) -> Ohne | O121: W e r t ä s t u n g
B122: =IF(IKW_II_Eingabe!B122="","",IKW_II_Eingabe!B122) -> fm / Baum | C122: =IF(IKW_II_Eingabe!C122="","",IKW_II_Eingabe!C122) ->  | H122: =IF(IKW_II_Eingabe!H122="","",IKW_II_Eingabe!H122) ->  | J122: =IF(IKW_II_Eingabe!J122="","",IKW_II_Eingabe!J122) ->  | N122: =IF(IKW_II_Eingabe!N122="","",IKW_II_Eingabe!N122) ->  | O122: =IF((($N$122-$C$122)/$C$122)*100>2,(($N$122-$C$122)/$C$122)*100,"") ->  | P122: =IF((($N$122-$C$122)/$C$122)*100>2,"% Vol.-Diff.","") -> 
B123: =IF(IKW_II_Eingabe!B123="","",IKW_II_Eingabe!B123) -> Güte-Kl. A Länge [m] | C123: =IF(IKW_II_Eingabe!C123="","",IKW_II_Eingabe!C123) -> 0.0 | D123: A | E123: =IF(AND($H$121=$C$121,$H$168<>$C$168),"??","") ->  | H123: =IF(IKW_II_Eingabe!H123="","",IKW_II_Eingabe!H123) -> 0.0 | J123: =IF(IKW_II_Eingabe!J123="","",IKW_II_Eingabe!J123) -> 0.0 | N123: =IF(IKW_II_Eingabe!N123="","",IKW_II_Eingabe!N123) -> 0.0 | P123: Abkürzg.-Verz.
B125: Durchmesser o. R. [cm] | C125: =IF(IKW_II_Eingabe!C125="","",IKW_II_Eingabe!C125) ->  | H125: =IF(IKW_II_Eingabe!H125="","",IKW_II_Eingabe!H125) ->  | J125: =IF(IKW_II_Eingabe!J125="","",IKW_II_Eingabe!J125) ->  | N125: =IF(IKW_II_Eingabe!N125="","",IKW_II_Eingabe!N125) ->  | P125: GAZ
B127: Geästetes Holz (Wertholz-Stück) [€ / Efm o. R.] | C127: =IF(IKW_II_Eingabe!C127="","",IKW_II_Eingabe!C127) ->  | E127: ! | H127: =IF(IKW_II_Eingabe!H127="","",IKW_II_Eingabe!H127) -> 0.00 € | J127: =IF(IKW_II_Eingabe!J127="","",IKW_II_Eingabe!J127) -> 0.00 € | N127: =IF(IKW_II_Eingabe!N127="","",IKW_II_Eingabe!N127) -> 0.00 € | P127: Gesamt-Ar-
B129: Masse [Efm o. R.] | C129: =IF(IKW_II_Eingabe!C129="","",IKW_II_Eingabe!C129) ->  | H129: =IF(IKW_II_Eingabe!H129="","",IKW_II_Eingabe!H129) ->  | J129: =IF(IKW_II_Eingabe!J129="","",IKW_II_Eingabe!J129) ->  | N129: =IF(IKW_II_Eingabe!N129="","",IKW_II_Eingabe!N129) ->  | P129: beits-Zeit für
B131: Erlös [€] | C131: =IF(IKW_II_Eingabe!C131="","",IKW_II_Eingabe!C131) ->  | H131: =IF(IKW_II_Eingabe!H131="","",IKW_II_Eingabe!H131) ->  | J131: =IF(IKW_II_Eingabe!J131="","",IKW_II_Eingabe!J131) ->  | N131: =IF(IKW_II_Eingabe!N131="","",IKW_II_Eingabe!N131) ->  | P131: Ästungs-Stufe
B133: =IF(IKW_II_Eingabe!B133="","",IKW_II_Eingabe!B133) -> Güte-Kl. B Länge (Restlänge vor C-Stück) [m] | C133: =IF(IKW_II_Eingabe!C133="","",IKW_II_Eingabe!C133) ->  | D133: B | H133: =IF(IKW_II_Eingabe!H133="","",IKW_II_Eingabe!H133) -> 0.0 | J133: =IF(IKW_II_Eingabe!J133="","",IKW_II_Eingabe!J133) -> 0.0 | N133: =IF(IKW_II_Eingabe!N133="","",IKW_II_Eingabe!N133) -> 0.0 | P133: I-III in Minuten
B135: Durchmesser o. R. [cm] | C135: =IF(IKW_II_Eingabe!C135="","",IKW_II_Eingabe!C135) ->  | H135: =IF(IKW_II_Eingabe!H135="","",IKW_II_Eingabe!H135) ->  | J135: =IF(IKW_II_Eingabe!J135="","",IKW_II_Eingabe!J135) ->  | N135: =IF(IKW_II_Eingabe!N135="","",IKW_II_Eingabe!N135) ->  | P135: d1,3 (= BHD)
B137: Preis [€ / Efm o. R.] | C137: =IF(IKW_II_Eingabe!C137="","",IKW_II_Eingabe!C137) ->  | E137: ! | H137: =IF(IKW_II_Eingabe!H137="","",IKW_II_Eingabe!H137) -> 0.00 € | J137: =IF(IKW_II_Eingabe!J137="","",IKW_II_Eingabe!J137) -> 0.00 € | N137: =IF(IKW_II_Eingabe!N137="","",IKW_II_Eingabe!N137) -> 0.00 € | P137: Durchmesser
B139: Masse [Efm o. R.] | C139: =IF(IKW_II_Eingabe!C139="","",IKW_II_Eingabe!C139) ->  | H139: =IF(IKW_II_Eingabe!H139="","",IKW_II_Eingabe!H139) ->  | J139: =IF(IKW_II_Eingabe!J139="","",IKW_II_Eingabe!J139) ->  | N139: =IF(IKW_II_Eingabe!N139="","",IKW_II_Eingabe!N139) ->  | P139: in 1,3m Höhe
B141: Erlös [€] | C141: =IF(IKW_II_Eingabe!C141="","",IKW_II_Eingabe!C141) ->  | H141: =IF(IKW_II_Eingabe!H141="","",IKW_II_Eingabe!H141) ->  | J141: =IF(IKW_II_Eingabe!J141="","",IKW_II_Eingabe!J141) ->  | N141: =IF(IKW_II_Eingabe!N141="","",IKW_II_Eingabe!N141) ->  | P141: Rm
B143: =IF(IKW_II_Eingabe!B143="","",IKW_II_Eingabe!B143) -> Güte-Kl. C Länge [m] | C143: =IF(IKW_II_Eingabe!C143="","",IKW_II_Eingabe!C143) ->  | D143: C | H143: =IF(IKW_II_Eingabe!H143="","",IKW_II_Eingabe!H143) -> 0.0 | J143: =IF(IKW_II_Eingabe!J143="","",IKW_II_Eingabe!J143) -> 0.0 | N143: =IF(IKW_II_Eingabe!N143="","",IKW_II_Eingabe!N143) -> 0.0 | P143: Radius in der
B145: Durchmesser o. R. [cm] | C145: =IF(IKW_II_Eingabe!C145="","",IKW_II_Eingabe!C145) ->  | H145: =IF(IKW_II_Eingabe!H145="","",IKW_II_Eingabe!H145) ->  | J145: =IF(IKW_II_Eingabe!J145="","",IKW_II_Eingabe!J145) ->  | N145: =IF(IKW_II_Eingabe!N145="","",IKW_II_Eingabe!N145) ->  | P145: Mitte d. A-Stamm-
B147: Preis [€ / Efm o. R.] | C147: =IF(IKW_II_Eingabe!C147="","",IKW_II_Eingabe!C147) ->  | H147: =IF(IKW_II_Eingabe!H147="","",IKW_II_Eingabe!H147) -> 0.00 € | J147: =IF(IKW_II_Eingabe!J147="","",IKW_II_Eingabe!J147) -> 0.00 € | N147: =IF(IKW_II_Eingabe!N147="","",IKW_II_Eingabe!N147) -> 0.00 € | P147: (Werholz)-stückes
B149: Masse [Efm o. R.] | C149: =IF(IKW_II_Eingabe!C149="","",IKW_II_Eingabe!C149) ->  | H149: =IF(IKW_II_Eingabe!H149="","",IKW_II_Eingabe!H149) ->  | J149: =IF(IKW_II_Eingabe!J149="","",IKW_II_Eingabe!J149) ->  | N149: =IF(IKW_II_Eingabe!N149="","",IKW_II_Eingabe!N149) ->  | P149: lfm=lfd.Meter;fm=m³
B151: Erlös [€] | C151: =IF(IKW_II_Eingabe!C151="","",IKW_II_Eingabe!C151) ->  | H151: =IF(IKW_II_Eingabe!H151="","",IKW_II_Eingabe!H151) ->  | J151: =IF(IKW_II_Eingabe!J151="","",IKW_II_Eingabe!J151) ->  | N151: =IF(IKW_II_Eingabe!N151="","",IKW_II_Eingabe!N151) ->  | P151: ZinF =Aufzinsg.=>U
B155: V. Wirtschaftlichkeit der Maßnahmen: Wertästung bis | C155: =IF(IKW_II_Eingabe!C155="","",IKW_II_Eingabe!C155) ->  | H155: =IF(IKW_II_Eingabe!H155="","",IKW_II_Eingabe!H155) ->  | J155: =IF(IKW_II_Eingabe!J155="","",IKW_II_Eingabe!J155) ->  | N155: =IF(IKW_II_Eingabe!N155="","",IKW_II_Eingabe!N155) -> Ohne Ästung! | P155: Zusammenstellung
B157: Durchschnittserlös [€ / fm] | C157: =IF(IKW_II_Eingabe!C157="","",IKW_II_Eingabe!C157) ->  | H157: =IF(IKW_II_Eingabe!H157="","",IKW_II_Eingabe!H157) ->  | J157: =IF(IKW_II_Eingabe!J157="","",IKW_II_Eingabe!J157) ->  | N157: =IF(IKW_II_Eingabe!N157="","",IKW_II_Eingabe!N157) ->  | O157: =IF(IKW_II_Eingabe!O157="","",IKW_II_Eingabe!O157) -> ZinsF/LS | P157: =IF(IKW_II_Eingabe!P157="","",IKW_II_Eingabe!P157) ->  | Q157: =IF(IKW_II_Eingabe!Q157="","",IKW_II_Eingabe!Q157) -> 2.5
B158: Güte-Kl. A Erlös / Baum [€] | C158: =IF(IKW_II_Eingabe!C158="","",IKW_II_Eingabe!C158) ->  | H158: =IF(IKW_II_Eingabe!H158="","",IKW_II_Eingabe!H158) ->  | J158: =IF(IKW_II_Eingabe!J158="","",IKW_II_Eingabe!J158) ->  | N158: =IF(IKW_II_Eingabe!N158="","",IKW_II_Eingabe!N158) ->  | O158: =IF(IKW_II_Eingabe!O158="","",IKW_II_Eingabe!O158) -> 0 € | P158: =IF(IKW_II_Eingabe!P158="","",IKW_II_Eingabe!P158) -> 0/ 0 / 0 /0m | Q158: =IF(IKW_II_Eingabe!Q158="","",IKW_II_Eingabe!Q158) -> A
B160: B Erlös / Baum [€] | C160: =IF(IKW_II_Eingabe!C160="","",IKW_II_Eingabe!C160) ->  | H160: =IF(IKW_II_Eingabe!H160="","",IKW_II_Eingabe!H160) ->  | J160: =IF(IKW_II_Eingabe!J160="","",IKW_II_Eingabe!J160) ->  | N160: =IF(IKW_II_Eingabe!N160="","",IKW_II_Eingabe!N160) ->  | O160: =IF(IKW_II_Eingabe!O160="","",IKW_II_Eingabe!O160) -> 0 € | P160: =IF(IKW_II_Eingabe!P160="","",IKW_II_Eingabe!P160) -> / 0 / 0 /0m | Q160: =IF(IKW_II_Eingabe!Q160="","",IKW_II_Eingabe!Q160) -> B
B162: C Erlös / Baum [€] | C162: =IF(IKW_II_Eingabe!C162="","",IKW_II_Eingabe!C162) ->  | H162: =IF(IKW_II_Eingabe!H162="","",IKW_II_Eingabe!H162) ->  | J162: =IF(IKW_II_Eingabe!J162="","",IKW_II_Eingabe!J162) ->  | N162: =IF(IKW_II_Eingabe!N162="","",IKW_II_Eingabe!N162) ->  | O162: =IF(IKW_II_Eingabe!O162="","",IKW_II_Eingabe!O162) -> 0 € | P162: =IF(IKW_II_Eingabe!P162="","",IKW_II_Eingabe!P162) -> / 0 / 0 /0m | Q162: =IF(IKW_II_Eingabe!Q162="","",IKW_II_Eingabe!Q162) -> C
B164: Gesamterlös / Baum [€ / Baum] | C164: =IF(IKW_II_Eingabe!C164="","",IKW_II_Eingabe!C164) ->  | H164: =IF(IKW_II_Eingabe!H164="","",IKW_II_Eingabe!H164) ->  | J164: =IF(IKW_II_Eingabe!J164="","",IKW_II_Eingabe!J164) ->  | N164: =IF(IKW_II_Eingabe!N164="","",IKW_II_Eingabe!N164) ->  | O164: =IF(IKW_II_Eingabe!O164="","",IKW_II_Eingabe!O164) -> Bäume | P164: =IF(IKW_II_Eingabe!P164="","",IKW_II_Eingabe!P164) -> / / / 0St. | Q164: =IF(IKW_II_Eingabe!Q164="","",IKW_II_Eingabe!Q164) -> 0
B166: Ertragswert (Mehrerlös: Baum geästet zu ungeastet) [€ / Baum] | C166: =IF(IKW_II_Eingabe!C166="","",IKW_II_Eingabe!C166) ->  | H166: =IF(IKW_II_Eingabe!H166="","",IKW_II_Eingabe!H166) ->  | J166: =IF(IKW_II_Eingabe!J166="","",IKW_II_Eingabe!J166) ->  | M166: Arbeitskraft / h | O166: =IF(IKW_II_Eingabe!O166="","",IKW_II_Eingabe!O166) -> 0.00 € | P166: =IF(IKW_II_Eingabe!P166="","",IKW_II_Eingabe!P166) -> / / /0 | Q166: =IF(IKW_II_Eingabe!Q166="","",IKW_II_Eingabe!Q166) -> GAZ
B168: abzgl. Ästungsaufwand (aufgezinst bis Alter U) [€ / Baum] | C168: =IF(IKW_II_Eingabe!C168="","",IKW_II_Eingabe!C168) ->  | H168: =IF(IKW_II_Eingabe!H168="","",IKW_II_Eingabe!H168) ->  | J168: =IF(IKW_II_Eingabe!J168="","",IKW_II_Eingabe!J168) ->  | M168: Rm /astfr.Schicht | O168: =IF(IKW_II_Eingabe!O168="","",IKW_II_Eingabe!O168) ->  | P168: =IF(IKW_II_Eingabe!P168="","",IKW_II_Eingabe!P168) ->  | Q168: =IF(IKW_II_Eingabe!Q168="","",IKW_II_Eingabe!Q168) -> cm
B170: = Mehrertrag je geästeter Erntebaum (netto) [€ / Baum] | C170: =IF(IKW_II_Eingabe!C170="","",IKW_II_Eingabe!C170) ->  | H170: =IF(IKW_II_Eingabe!H170="","",IKW_II_Eingabe!H170) ->  | J170: =IF(IKW_II_Eingabe!J170="","",IKW_II_Eingabe!J170) ->  | M170: Vol.: astig/astfr. | O170: =IF(IKW_II_Eingabe!O170="","",IKW_II_Eingabe!O170) ->  | P170: =IF(IKW_II_Eingabe!P170="","",IKW_II_Eingabe!P170) ->  | Q170: =IF(IKW_II_Eingabe!Q170="","",IKW_II_Eingabe!Q170) -> fm
B172: Rentabilität aller Maßnahme(n) bis Stufe ... [Faktor] | C172: =IF(IKW_II_Eingabe!C172="","",IKW_II_Eingabe!C172) ->  | H172: =IF(IKW_II_Eingabe!H172="","",IKW_II_Eingabe!H172) ->  | J172: =IF(IKW_II_Eingabe!J172="","",IKW_II_Eingabe!J172) ->  | M172: Vol.-%: " " / " " | O172: =IF(IKW_II_Eingabe!O172="","",IKW_II_Eingabe!O172) ->  | P172: =IF(IKW_II_Eingabe!P172="","",IKW_II_Eingabe!P172) ->  | Q172: =IF(IKW_II_Eingabe!Q172="","",IKW_II_Eingabe!Q172) -> V%
B174: Grenzertrag der Ästungs-Stufe ... [€ / Baum] | C174: =IF(IKW_II_Eingabe!C174="","",IKW_II_Eingabe!C174) ->  | H174: =IF(IKW_II_Eingabe!H174="","",IKW_II_Eingabe!H174) ->  | J174: =IF(IKW_II_Eingabe!J174="","",IKW_II_Eingabe!J174) ->  | M174: Kosten: lfm / fm | O174: =IF(IKW_II_Eingabe!O174="","",IKW_II_Eingabe!O174) ->  | P174: =IF(IKW_II_Eingabe!P174="","",IKW_II_Eingabe!P174) ->  | Q174: =IF(IKW_II_Eingabe!Q174="","",IKW_II_Eingabe!Q174) -> €
B176: Rentabilität der Einzelmaßnahme: Stufe... [Faktor] | C176: =IF(IKW_II_Eingabe!C176="","",IKW_II_Eingabe!C176) ->  | H176: =IF(IKW_II_Eingabe!H176="","",IKW_II_Eingabe!H176) ->  | J176: =IF(IKW_II_Eingabe!J176="","",IKW_II_Eingabe!J176) ->  | M176: d1,3/astfr.Schicht | O176: =IF(IKW_II_Eingabe!O176="","",IKW_II_Eingabe!O176) -> 0.0 | P176: =IF(IKW_II_Eingabe!P176="","",IKW_II_Eingabe!P176) ->  | Q176: =IF(IKW_II_Eingabe!Q176="","",IKW_II_Eingabe!Q176) -> cm
B180: IV-1. Zu erwartende Sortierung und erzielbare Erlöse
B181: IV-1 A1. Variante 3 mit Wertästung (nur Maßnahme 1)
B182: GKl. A Länge [m] | C182: 5.0
B184: GKl. A Durchmesser o. R. [cm] | C184: 76.0
B186: GKl. A Preis [€/Efm o. R.] | C186: 200.00 €
B188: GKl. A Masse [Efm o. R.] | C188: =IF(OR($C$182="",$C$184=""),"",($C$184/100*$C$184/100)/4*3.14159*$C$182) -> 2.27
B190: GKl. A Erlös [€] | C190: =IF(OR($C$186="",$C$188=""),"",$C$186*$C$188) -> 453.65 €
B192: GKl. B Länge [m] | C192: 22.0
B194: GKl. B Durchmesser o. R. [cm] | C194: 60.0
B196: GKl. B Preis [ €/ Efm o. R.] | C196: 96.00 €
B198: GKl. B Masse [Efm o. R.] | C198: =IF(OR($C$192="",$C$194=""),"",($C$194/100*$C$194/100)/4*3.14159*$C$192) -> 6.22
B200: GKl. B Erlös [€] | C200: =IF(OR($C$196="",$C$198=""),"",$C$196*$C$198) -> 597.15 €
B202: GKl. C Länge [m] | C202: 5.0
B204: GKl. C Durchmesser o. R. [cm] | C204: 39.0
B206: GKl. C Preis [€/Efm o. R.] | C206: 81.60 €
B208: GKl. C Masse [Efm o. R.] | C208: =IF(OR($C$202="",$C$204=""),"",($C$204/100*$C$204/100)/4*3.14159*$C$202) -> 0.60
B210: GKl. C Erlös [€] | C210: =IF(OR($C$206="",$C$208=""),"",$C$206*$C$208) -> 48.74 €
B212: Programmerstellung:
B214: K.-H. Schmitz; LB WuH NRW; LuVFA Arnsberger Wald -SPA Waldbau-
B216: Bemerkung
B238: Platz für Anfügungen des Anwenders:

Sheet Dokumentation
A1: Dokumentation der Wertästung | H1: Stand:
A2: Forstamt | F2: Revier
A3: Besitz | F3: PLZ / Ort
A4: Abt./Distrikt | D4: Gemeinde | G4: Gemarkung
G5: Flur-Stück(e)
A6: Maßnahme-Durchführung vom ... | E6: bis ... | G6: Maßnahme-Fläche (ha)
A7: Höhe v. / b. | D7: Baumart / geästet insgesamt
A8: * dÄ_max / min = maximaler /minimaler Durchmesser im Ästungssegment (Dm zu Beginn / Ende der Ästungsstufe; cm o. R.)
A9: Lfd. Nr. / | B9: Baumart | C9: Koordinaten (mind. 7-stellig) | E9: BHD / d1,3 | F9: abw. Ästungshöhe (m) | H9: Ästungssegment-Dm
A10: Baum-Nr. | B10: (Abkzg.) | C10: Rechtswert | D10: Hochwert | E10: (cm o. R.) | F10: von ... | G10: bis ... | H10: dÄ_max* | I10: dÄ_min*

Sheet Information
B1: W e r t ä s t u n g | F1: Besitz | G1: LB Wald u. Holz Nordrhein-Westfalen | K1: RFA | N1: 0904 | O1: Abt. | P1: 156 A2
B3: I n v e s t i t i o n s k a l k u l a t i o n | C3: vom | D3: Adresse | G3: LVFA Arnsberger Wald, Obereimer 13, 59821 Arnsberg | O3: GK-RW | P3: 2647530
B5: Erst.:FAR Schmitz, LB Wald u. Holz NRW; LVFA Arnsberger Wald | C5: 2013-12-20 | D5: Resultat | G5: Netto-Rendite je geäst.Erntebaum bis Stufe III | N5: 637.01 € | O5: GK-HW | P5: 5698460
B7: I. Bestand
B9: I A. Ist-Daten | G9: I B. Soll-Daten
B11: Bestand [Baumart] | C11: Bergahorn | G11: erwarteter BHD (d1,3) o. R. im Alter U [cm] | P11: 80.0 | Q11: !
B13: Ertragsklasse [EKl.] | C13: I,0 | G13: jährlicher BHD-Zuwachs bis Alter U [cm] | P13: 0.8 | Q13: !
B15: Bestandesbegründung [Jahr] | C15: 1986 | E15: ! | G15: verbleibender Zeitraum bis Alter U [Jahre] | P15: 78
B17: Aktuelle Bestandesaufnahme [Jahr] | C17: 2012 | E17: ! | G17: Resultierende Umtriebszeit [Jahre] | P17: 104
B19: aktueller BHD der zu ästenden Bäume o. R. [cm] | C19: 18.0 | E19: ! | G19: entspricht Kalenderjahr im Alter U [Jahr] | P19: 2090
B21: Abholzigkeit Güteklasse A (Durchmesser-Abnahme)[cm / lfdm] | C21: 0.3 | E21: ! | G21: Ggf. abweichende Umtriebszeit [U]
B23: Abholzigkeit Güteklasse B (GKl. C = AbhzkB+1cm) [cm / lfdm] | C23: 0.8 | E23: ! | G23: = astfreie Schicht [cm] / BHD [cm] / Jahr | N23: 31.00 | O23: 80.0 | P23: 2090
B28: II. Maßnahme | C28: Stufe I | D28: 31.0 | E28: 31.0 | H28: Stufe II | I28: 29.0 | J28: cm | N28: Stufe III | O28: 27.0 | P28: cm astfr. Schicht
B31: Handästung vom Boden aus | H31: Distel | N31: SKT
B33: Maßnahme-Ausführung Stufe I. [Jahr] | C33: 2012 | E33: ! | G33: II. | H33: 2017 | I33: (!) | J33: 2017 | M33: III. | N33: 2022 | O33: (!) | P33: 2022
B35: Ästungshöhe von ... [m] | C35: 0.0 | H35: 2.5 | N35: 6.0
B37: Ästungshöhe bis ... [m] | C37: 2.5 | E37: ! | H37: 6.0 | I37: ! | N37: 10.0 | O37: !
B39: Baumabstand: (Optimale Verteilung; 3-Eckverband) [m] | C39: 18.00 | G39: [n] | H39: 36
B41: Anzahl zu ästender Bäume je ha [Stück / ha] | C41: 36 | E41: ! | H41: 33 | I41: (!) | J41: 33 | N41: 30 | O41: (!) | P41: 30
B43: Maßnahmefläche [ha] | C43: 1.00 | H43: 1.00 | N43: 1.00
B45: Beschreibung:[Maschineneinsatz / Werkzeug / Verfahren] | C45: 1-Mann
B47: Ästung vom Boden aus; I. Stufe | H47: II. Stufe; Distel | N47: III. Stufe; SKT
B49: Stangen-Säge, 1,7m; ARS-Säge | H49: Stangen-Säge, 1,7m; ARS-Säge | N49: ARS-Säge
B51: Ggf. Behandlungsmittel [Menge/Baum] | C51: 0.00
B55: Dokumentation der Realisierung: [Jahr]/[Bemerkung] | C55: 2012
B57: Die Maßnahme wurde wie geplant umgesetzt!
B61: III. Kosten
B62: III A. Basisdaten | C62: Stufe I | H62: Stufe II | N62: Stufe III
B64: Alternative 1: Entgelt / lfdm (aktuellerWert/Folgejahre) [€ / lfdm] | E64: [!] | I64: [!] | O64: [!]
B66: "" 2: Stundenlohn (Folgejahre: Lohn x Steigerungsfaktor [LSF]) [€/h] | C66: 37.20 € | E66: ! | H66: 42.09 € | I66: in Jahren | J66: 5 | N66: 47.62 € | O66: in Jahren | P66: 10
B68: Erschwerniszuschlag (ggf. Baumbesteigung) [%]
B70: Arbeitskraft (Gesamtarbeitszeit, GAZ) [min. / Baum] | C70: 5.0 | E70: ! | H70: 10.0 | I70: ! | N70: 20.0 | O70: !
B72: Verwaltungskostenzuschlag / Dokumentationskosten [%] | C72: 30.0 | J72: 30.0 | P72: 30.0
B74: Maschineneinsatz [€ / MAS]
B76: Zeitvorgabe Maschineneinsatz (MAS) [min. / Baum]
B78: Werkzeug (Entschädigung / Abnutzung) [€ / h] | C78: 3.00 € | H78: 3.00 € | N78: 3.00 €
B80: Behandlungsmittel (Wundverschluss etc.) [€ / Einheit]
B82: Zinssatz für Aufzinsung der Investitionskosten (p) [%] | C82: 3.00 | E82: ! | H82: Lohnsteigerung [%] | J82: 2.50 | K82: ! | N82: Lohnsteigerung (p) [% / a] | P82: 2.50
B84: Aufzinsungsfaktor (Askontierung; p = % Zinsen) [(1+p)n] | C84: 10.030 | H84: 8.652 | I84: [LSF] | J84: 1.131 | N84: 7.463 | O84: [LSF] | P84: 1.280
B86: Aufzinsungs-Zeitraum bis Alter U (n) [Jahre] | C86: 78 | H86: 73 | I86: zu [%] | J86: 3.00 | N86: 68 | O86: zu [%] | P86: 3.00
B89: III B. Kalkulation der Maßnahme | C89: Stufe I | H89: Stufe II | N89: Stufe III
B91: Reine Arbeitskosten [€ / Baum] | C91: 3.10 € | H91: 7.01 € | N91: 15.87 €
B93: Verwaltungskosten / Dokumentation [€ / Baum] | C93: 0.93 € | H93: 2.10 € | N93: 4.76 €
B95: Maschineneinsatz [€ / Baum]
B97: Werkzeug [€ / Baum] | C97: 0.25 € | H97: 0.50 € | N97: 1.00 €
B99: Behandlungsmittel [€ / Baum]
B101: Maßnahme insgesamt (unverzinst) [€ / Baum] | C101: 4.28 € | H101: 9.62 € | N101: 21.63 €
B103: Maßnahme insgesamt (unverzinst) [€ / ha] | C103: 154.08 € | H103: 317.43 € | N103: 649.05 €
B105: Zinskosten bis Alter U [€ / Baum] | C105: 38.65 € | H105: 73.61 € | N105: 139.83 €
B107: Maßnahme 1 insgesamt (aufgezinst bis Alter U) [€ / Baum] | C107: 42.93 € | H107: 83.23 € | N107: 161.47 €
B109: Maßnahme insgesamt (aufgezinst bis Alter U) [€ / ha] | C109: 1,545.43 € | H109: 2,746.43 € | N109: 4,844.05 €
B110: III C. Gesamtkalkulation | C110: Stufe I | H110: Stufe II | N110: Stufe III
B111: Gesamtkosten je ha (aufgezinst bis Alter U) [€ / ha] | C111: 1,545.43 € | H111: 4,291.86 € | N111: 9,135.91 €
B113: Erwarteter Anteil geästeter Bäume mit Wertholz [%] | C113: 75.0 | E113: !
B115: Erwartete Anzahl geästeter Bäume / ha mit Wertholz [St.] | C115: 27
B117: Umlegung der Kosten je ha auf die erwartete Anzahl geästeter
B118: Bäume mit Wertholzanteil (aufgezinst bis Alter U) [€ /Baum] | C118: 57.24 € | H118: 158.96 € | N118: 338.37 €
B119: Diesen Betrag müssen die geästeten Erntebäume min. zusätzlich erbringen!
B121: Zu erwartende Sortierung und erzielbare Erlöse | C121: Stufe III | H121: Stufe II | J121: Stufe I | N121: Ohne | O121: W e r t ä s t u n g
B122: fm / Baum | C122: 9.57 | H122: 9.62 | J122: 9.65 | N122: 9.64
B123: Güte-Kl. A Länge Stufe III [m] | C123: 10.0 | D123: A | H123: 6.0 | J123: 2.5 | N123: 0.0 | P123: Legende
B125: Durchmesser o. R. [cm] | C125: 78.8 | H125: 79.4 | J125: 79.9 | N125: 80.30 | P125: Eingabe erforderlich => | Q125: !
B127: Geästetes Holz (Wertholz-Stück) [€ / Efm o. R.] | C127: 400.00 € | E127: ! | H127: 400.00 € | J127: 400.00 € | N127: 400.00 € | O127: Rm | P127: Radius (Mitte A)
B129: Masse [Efm o. R.] | C129: 4.88 | H129: 2.97 | J129: 1.25 | N129: 0.00
B131: Erlös [€] | C131: 1,950.75 € | H131: 1,188.34 € | J131: 501.71 € | N131: 0.00 €
B133: Güte-Kl. B Länge (Restlänge vor C-Stück) Stufe III [m] | C133: 5.00 | D133: B | E133: ! | H133: 9.0 | J133: 12.5 | N133: 15.0 | O133: d1,3 | P133: Durchm. in 1,3m H
B135: Durchmesser o. R. [cm] | C135: 77.30 | H135: 77.90 | J135: 78.4 | N135: 78.8
B137: Preis [€ / Efm o. R.] | C137: 200.00 € | E137: ! | H137: 200.00 € | J137: 200.00 € | N137: 200.00 € | O137: GAZ | P137: Gesamtarbeitszeit
B139: Masse [Efm o. R.] | C139: 0.00 | H139: 1.91 | J139: 3.62 | N139: 4.88
B141: Erlös [€] | C141: 0.00 € | H141: 381.29 € | J141: 724.59 € | N141: 975.38 €
B143: Güte-Kl. C Länge Stufe III [m] | C143: 7.0 | D143: C | H143: 7.0 | J143: 7.0 | N143: 7.0 | O143: MAS | P143: Arbeitstd. Maschine
B145: Durchmesser o. R. [cm] | C145: 71.0 | H145: 71.0 | J145: 71.0 | N145: 71.0
B147: Preis [€ / Efm o. R.] | C147: 50.00 € | H147: 50.00 € | J147: 50.00 € | N147: 50.00 € | O147: LSF | P147: Faktor Lohnsteigg.
B149: Masse [Efm o. R.] | C149: 2.77 | H149: 2.77 | J149: 2.77 | N149: 2.77 | P149: lfm= lfd. Meter
B151: Erlös [€] | C151: 138.57 € | H151: 138.57 € | J151: 138.57 € | N151: 138.57 € | P151: fm = Festmeter
B155: Wirtschaftlichkeit der Maßnahmen: Wertästung bis | C155: Stufe III | H155: Stufe II | J155: Stufe I | N155: Ohne Ästung!
B157: Durchschnittserlös [€ / fm] | C157: 273.17 € | H157: 223.33 € | J157: 178.45 € | N157: 145.65 € | O157: ZinsF/LS | P157: 10.030 | Q157: 2.5
B158: Güte-Kl. A Erlös / Baum [€] | C158: 1,950.75 € | H158: 1,188.34 € | J158: 501.71 € | N158: 0.00 € | O158: 400 € | P158: 10 / 6 / 2,5 / 0m | Q158: A
B160: B Erlös / Baum [€] | C160: 0.00 € | H160: 381.29 € | J160: 724.59 € | N160: 975.38 € | O160: 200 € | P160: 0,00001 / 4,00001 / 7,50001 / 10,00001m | Q160: B
B162: C Erlös / Baum [€] | C162: 138.57 € | H162: 138.57 € | J162: 138.57 € | N162: 138.57 € | O162: 50 € | P162: 7 / 7 / 7 / 7m | Q162: C
B164: Gesamterlös / Baum [€ / Baum] | C164: 2,519.48 € | H164: 2,147.76 € | J164: 1,809.77 € | N164: 1,558.74 € | O164: Bäume | P164: 30 / 33 / 36 / 0St. | Q164: 27
B166: Ertragswert (Mehrerlös: Baum geästet zu ungeästet) [€ / Baum] | C166: 960.73 € | H166: 589.01 € | J166: 251.02 € | M166: Arbeitskraft / h | O166: 37.20 € | P166: 20 / 10 / 5 / 0 | Q166: min
B168: abzgl. Ästungsaufwand (aufgezinst bis Alter U) [€ / Baum] | C168: 338.37 € | H168: 158.96 € | J168: 57.24 € | M168: Rm /astfr.Schicht | O168: 39.4 | P168: 31.0 | Q168: cm
B170: = Mehrertrag je geästeter Erntebaum (net [€ / Baum] | C170: 622.37 € | H170: 430.06 € | J170: 193.78 € | M170: Vol.: astig/astfr. | O170: 0.22 | P170: 4.66 | Q170: fm
B172: Rentabilität aller Maßnahmen bis Stufe ... [Faktor] | C172: 1.84 | H172: 2.71 | J172: 3.39 | M172: Vol.-%: " " / " " | O172: 4.5 | P172: 95.5 | Q172: V%
B174: Grenzertrag der Ästungs-Stufe ... [€ / Baum] | C174: 192.31 € | H174: 236.27 € | J174: 193.78 € | M174: Kosten: lfm / fm " | O174: 33.84 | P174: 69.38 | Q174: €
B176: Rentabilität der Einzelmaßnahme: Stufe... [Faktor] | C176: 1.07 | H176: 2.32 | J176: 3.39 | M176: d1,3/astfr.Schicht | O176: 80.0 | P176: 31.0 | Q176: cm
B180: IV-1. Zu erwartende Sortierung und erzielbare Erlöse
B181: IV-1 A1. Variante 3 mit Wertästung (nur Maßnahme 1)
B182: GKl. A Länge [m] | C182: 5.0
B184: GKl. A Durchmesser o. R. [cm] | C184: 76.0
B186: GKl. A Preis [€/Efm o. R.] | C186: 200.00 €
B188: GKl. A Masse [Efm o. R.] | C188: 2.27
B190: GKl. A Erlös [€] | C190: 453.65 €
B192: GKl. B Länge [m] | C192: 22.0
B194: GKl. B Durchmesser o. R. [cm] | C194: 60.0
B196: GKl. B Preis [ €/ Efm o. R.] | C196: 96.00 €
B198: GKl. B Masse [Efm o. R.] | C198: 6.22
B200: GKl. B Erlös [€] | C200: 597.15 €
B202: GKl. C Länge [m] | C202: 5.0
B204: GKl. C Durchmesser o. R. [cm] | C204: 39.0
B206: GKl. C Preis [€/Efm o. R.] | C206: 81.60 €
B208: GKl. C Masse [Efm o. R.] | C208: 0.60
B210: GKl. C Erlös [€] | C210: 48.74 €
B212: Programmerstellung:
B214: K.-H. Schmitz; LB WuH NRW; LuVFA Arnsberger Wald -SPA Waldbau-
B216: Bemerkung

Sheet Beispiel
B1: W e r t ä s t u n g | C1: Lokalität > | F1: Besitz | G1: LB Wald u. Holz Nordrhein-Westfalen | K1: RFA | N1: 0904 | O1: Abt. | P1: 156 A2
B3: I n v e s t i t i o n s k a l k u l a t i o n | C3: vom | D3: Adresse | G3: LVFA Arnsberger Wald, Obereimer 13, 59821 Arnsberg | O3: GK-RW | P3: 2647530
B5: Erst.:FAR Schmitz, LB Wald u. Holz NRW; LVFA Arnsberger Wald | C5: =TODAY() -> 2014-01-07 | D5: Resultat | G5: =IF($C$168>0,"Netto-Rendite je geäst.Erntebaum bis "&C119,IF($C$168<0,"Netto-Verlust je geäst.Erntebaum bis "&C119,"")) -> Netto-Rendite je geäst.Erntebaum bis Stufe III | N5: =$C$168 -> 622.37 € | O5: GK-HW | P5: 5698460
B7: I. Bestand
B9: I A. Ist-Daten | G9: I B. Soll-Daten | N9: Eingabe erforderlich = | O9: !
B11: Bestand [Baumart] | C11: BAh | G11: erwarteter BHD (d1,3) o. R. im Alter U [cm] | P11: 80.0 | Q11: !
B13: Ertragsklasse [EKl.] | C13: I,0 | G13: jährlicher BHD-Zuwachs bis Alter U [cm] | P13: 0.8 | Q13: !
B15: Bestandesbegründung [Jahr] | C15: 1986 | E15: ! | G15: verbleibender Zeitraum bis Alter U [Jahre] | P15: =IF($P$13=0,"",ROUNDUP(($P$11-$C$19)/$P$13,0)) -> 78
B17: Aktuelle Bestandesaufnahme [Jahr] | C17: 2012 | E17: ! | G17: Resultierende Umtriebszeit [Jahre] | P17: =IF(OR($C$15="",$C$17="",$P$15=""),"",$C$17-$C$15+$P$15) -> 104
B19: aktueller BHD der zu ästenden Bäume o. R. [cm] | C19: 18.0 | E19: ! | G19: entspricht Kalenderjahr im Alter U [Jahr] | P19: =IF($P$17="","",$C$15+$P$17) -> 2090
B21: Abholzigkeit Güteklasse A (Durchmesser-Abnahme)[cm / lfdm] | C21: 0.3 | E21: ! | G21: Ggf. abweichende Umtriebszeit [U] | N21: =IF(OR($C$19="",$O$23=""),"",IF(($O$23-$C$19)/2<20,"Zu gering!","")) -> 
B23: Abholzigkeit Güteklasse B (GKl. C = AbhzkB+1cm) [cm / lfdm] | C23: 0.8 | E23: ! | G23: = astfreie Schicht [cm] / BHD [cm] / Jahr | N23: =(O23-C19)/2 -> 31.00 | O23: =IF($P$11="",0,IF($P$23>$P$19,$P$11+($P$23-$P$19)*$P$13,IF($P$23<$P$19,$P$11+($P$23-$P$19)*$P$13,$P$11))) -> 80.0 | P23: =IF(AND($P$21="",$P$19=""),"",IF($P$21>0,$C$15+$P$21,$P$19)) -> 2090
B28: II. Maßnahme | C28: Stufe I | D28: =IF(OR($C$33="",$C$37="",$C$37=0),"",(($P$11+$C$21)-($C$37*$C$21))/2-((($C$19+$C$21)-($C$37*$C$21)+($C$33-$C$17)*$P$13)/2)) -> 31.0 | E28: =(($P$11+$C$21)-($C$37*$C$21))/2-((($C$19+$C$21)-($C$37*$C$21)+($C$33-$C$17)*$P$13)/2) -> 31.0 | H28: Stufe II | I28: =IF(OR($H$33="",$H$37="",$H$37=0),"",(($P$11+$C$21)-($H$37*$C$21))/2-((($C$19+$C$21)-($H$37*$C$21)+($H$33-$C$17)*$P$13)/2)) -> 29.0 | J28: =IF($I$28<>"","cm","") -> cm | N28: Stufe III | O28: =IF(OR($N$33="",$N$37="",$N$37=0),"",(($P$11+$C$21)-($N$37*$C$21))/2-((($C$19+$C$21)-($N$37*$C$21)+($N$33-$C$17)*$P$13)/2)) -> 27.0 | P28: =IF(OR($O$28<>"",$I$28<>"",$D$28<>""),"cm astfr. Schicht","") -> cm astfr. Schicht
B31: Bodenästung | H31: Distel | N31: SKT
B33: Maßnahme-Ausführung [Jahr] | C33: 2012 | E33: ! | H33: 2017 | I33: (!) | J33: =IF(AND($H$33="",$C$33=""),"",IF($H$33="",$C$33,$H$33)) -> 2017 | N33: 2022 | O33: (!) | P33: =IF(AND($N$33="",$J$33="",$C$33=""),"",IF($N$33="",$J$33,$N$33)) -> 2022
B35: Ästungshöhe von ... [m] | C35: 0.0 | H35: =$C$37 -> 2.5 | N35: =$H$37 -> 6.0
B37: Ästungshöhe bis ... [m] | C37: 2.5 | D37: =IF(AND(OR($C$68>0,$C$74>0,),OR($C$37="",$C$37=0)),"??","") ->  | E37: ! | H37: 6.0 | I37: ! | J37: =IF(AND(OR($H$68>0,$H$74>0,),OR($H$37="",$H$37=0)),"<=W e r t ?","") ->  | N37: 10.0 | O37: ! | P37: =IF(AND(OR($N$68>0,$N$74>0,),OR($N$37="",$N$37=0)),"<=W e r t ?","") -> 
B39: Baumabstand: (Optimale Verteilung; 3-Eckverband) [m] | C39: 18.00 | G39: [n] | H39: =10000/($C$39^2*0.8660254) -> 36 | I39: (errechn. Anzahl /ha) | M39: [n] | N39: =10000/($C$39^2*0.8660254) -> 36
B41: Anzahl zu ästender Bäume je ha [Stück / ha] | C41: 36 | E41: ! | H41: 33 | I41: (!) | J41: =IF(AND($H$41="",$C$41=""),"",IF($H$41="",$C$41,$H$41)) -> 33 | N41: 30 | O41: (!) | P41: =IF(AND($N$41="",$J$41="",$C$41=""),"",IF($N$41="",$J$41,$N$41)) -> 30
B43: Maßnahmefläche [ha] | C43: 1.00 | H43: 1.00 | N43: 1.00
B45: Beschreibung:[Maschineneinsatz / Werkzeug / Verfahren] | C45: 1-Mann
B47: Ästung vom Boden aus; I. Stufe | H47: II. Stufe; Distel | N47: III. Stufe; SKT
B49: Stangen-Säge, 1,7m; ARS-Säge | H49: Distel-Leiter, ARS-Säge | N49: ARS-Säge
B51: Ggf. Behandlungsmittel [Produktbezeichng] / [Menge/Baum]
B55: Dokumentation der Realisierung: [Jahr]/[Bemerkung] | C55: 2012
B57: Die Maßnahme wurde wie geplant umgesetzt!
B61: III. Kosten
B62: III A. Basisdaten | C62: Stufe I | H62: Stufe II | N62: Stufe III
B64: Stundenlohn (Folgejahre: Lohn x Steigerungsfaktor [LSF]) [€ / h] | C64: 37.20 € | E64: ! | H64: =IF(AND($C$64>0,$J$82>0),$C$64*$J$82,IF($C$64>0,$C$64,"")) -> 42.09 € | I64: in Jahren | J64: =IF(AND($C$33>0,$J$33>0),$J$33-$C$33,"") -> 5 | N64: =IF(AND($C$64>0,$P$82>0),$C$64*$P$82,IF($C$64>0,$C$64,"")) -> 47.62 € | O64: in Jahren | P64: =IF(AND($C$33>0,$P$33>0),$P$33-$C$33,"") -> 10
B66: Erschwerniszuschlag (f. Baumbesteigung; max. 56%) [%]
B68: Zeitvorgabe Arbeitskraft (GAZ) [min. / Baum] | C68: 5.0 | D68: =IF(AND(OR($C$68>0,$C$74>0,),OR($C$37="",$C$37=0)),"H?","") ->  | E68: ! | H68: 10.0 | I68: ! | J68: =IF(AND(OR($H$68>0,$H$74>0,),OR($H$37="",$H$37=0)),"Ästg.-Höhe?","") ->  | N68: 20.0 | O68: ! | P68: =IF(AND(OR($N$68>0,$N$74>0,),OR($N$37="",$N$37=0)),"Ästg.-Höhe?","") -> 
B70: Verwaltungskostenzuschlag / Dokumentationskosten [%] | C70: 30.0 | J70: =IF(H70<>"",H70,IF($C$70="","",$C$70)) -> 30.0 | P70: =IF($N$70<>"",$N$70,IF($C$70="","",$C$70)) -> 30.0
B72: Maschineneinsatz [€ / MAS]
B74: Zeitvorgabe Maschineneinsatz (MAS) [min. / Baum] | D74: =IF(AND(OR($C$68>0,$C$74>0,),OR($C$37="",$C$37=0)),"H?","") ->  | J74: =IF(AND(OR($H$68>0,$H$74>0,),OR($H$37="",$H$37=0)),"Ästg.-Höhe?","") ->  | P74: =IF(AND(OR($N$68>0,$N$74>0,),OR($N$37="",$N$37=0)),"Ästg.-Höhe?","") -> 
B76: Werkzeug (Entschädigung / Abnutzung) [€ / h] | C76: 3.00 € | H76: 3.00 € | N76: 3.00 €
B78: Behandlungsmittel [€ / Einheit]
B80: Zinssatz für Aufzinsung der Investitionskosten (p) [%] | C80: 3.00 | E80: ! | H80: Lohnsteigerung [%] | J80: 2.50 | K80: ! | N80: Lohnsteigerung (p) [% / a] | P80: =IF($J$80>0,$J$80,0) -> 2.50
B82: Aufzinsungsfaktor (Askontierung; p = % Zinsen) [(1+p)n] | C82: =IF(OR($C$80="",$C$84=""),"",(1+$C$80/100)^$C$84) -> 10.030 | H82: =IF(OR($J$41="",$H$84=""),"",(1+$J$84/100)^$H$84) -> 8.652 | I82: [LSF] | J82: =IF(OR($J$41="",$J$64=""),"",(1+$J$80/100)^$J$64) -> 1.131 | N82: =IF(OR($J$41="",$N$84=""),"",(1+$P$84/100)^$N$84) -> 7.463 | O82: [LSF] | P82: =IF(OR($P$41="",$P$64=""),"",(1+$P$80/100)^$P$64) -> 1.280
B84: Aufzinsungs-Zeitraum bis Alter U (n) [Jahre] | C84: =IF(OR($C$15="",$C$33="",$P$23=""),"",$P$23-$C$33) -> 78 | H84: =IF(OR($C$15="",$J$33="",$P$23=""),"",$P$23-$J$33) -> 73 | I84: zu [%] | J84: =IF($C$80="","",$C$80) -> 3.00 | N84: =IF(OR($C$15="",$P$33="",$P$23=""),"",$P$23-$P$33) -> 68 | O84: zu [%] | P84: =IF($C$80="","",$C$80) -> 3.00
B87: III B. Kalkulation der Maßnahme | C87: Stufe I | H87: Stufe II | N87: Stufe III
B89: Reine Arbeitskosten [€ / Baum] | C89: =IF(OR($C$64="",$C$68=""),"",IF($C$66="",($C$64/60)*$C$68,($C$64/60)*$C$68*(1+$C$66/100))) -> 3.10 € | H89: =IF(OR($H$64="",$H$68=""),"",IF($H$66="",($H$64/60)*$H$68,($H$64/60)*$H$68*(1+$H$66/100))) -> 7.01 € | N89: =IF(OR($N$64="",$N$68=""),"",IF($N$66="",($N$64/60)*$N$68,($N$64/60)*$N$68*(1+$N$66/100))) -> 15.87 €
B91: Verwaltungskosten / Dokumentation [€ / Baum] | C91: =IF(OR($C$70="",$C$89=""),"",($C$89/100)*$C$70) -> 0.93 € | H91: =IF(OR($J$70="",$H$89=""),"",($H$89/100)*$J$70) -> 2.10 € | N91: =IF(OR($P$70="",$N$89=""),"",($N$89/100)*$P$70) -> 4.76 €
B93: Maschineneinsatz [€ / Baum] | C93: =IF(OR($C$72="",$C$74=""),"",($C$72/60)*$C$74) ->  | H93: =IF(OR($H$72="",$H$74=""),"",($H$72/60)*$H$74) ->  | N93: =IF(OR($N$72="",$N$74=""),"",($N$72/60)*$N$74) -> 
B95: Werkzeug [€ / Baum] | C95: =IF(OR($C$68="",$C$76=""),"",($C$76/60)*$C$68) -> 0.25 € | H95: =IF(OR($H$68="",$H$76=""),"",($H$76/60)*$H$68) -> 0.50 € | N95: =IF(OR($N$68="",$N$76=""),"",($N$76/60)*$N$68) -> 1.00 €
B97: Behandlungsmittel [€ / Baum] | C97: =IF(OR($C$51="",$C$78=""),"",$C$51*$C$78) ->  | H97: =IF(OR($H$51="",$H$78=""),"",$H$51*$H$78) ->  | N97: =IF(OR($N$51="",$N$78=""),"",$N$51*$N$78) -> 
B99: Maßnahme insgesamt (unverzinst) [€ / Baum] | C99: =SUM($C$89,$C$91,$C$93,$C$95,$C$97) -> 4.28 € | H99: =SUM($H$89,$H$91,$H$93,$H$95,$H$97) -> 9.62 € | N99: =SUM($N$89,$N$91,$N$93,$N$95,$N$97) -> 21.63 €
B101: Maßnahme insgesamt (unverzinst) [€ / ha] | C101: =IF(OR($C$41="",$C$99=""),"",$C$99*$C$41) -> 154.08 € | H101: =IF(OR($J$41="",$H$99=""),"",$H$99*$J$41) -> 317.43 € | N101: =IF(OR($P$41="",$N$99=""),"",$N$99*$P$41) -> 649.05 €
B103: Zinskosten bis Alter U [€ / Baum] | C103: =IF(OR($C$82="",$C$99=""),"",($C$99)*($C$82-1)) -> 38.65 € | H103: =IF(OR($H$82="",$H$99=""),"",($H$99)*($H$82-1)) -> 73.61 € | N103: =IF(OR($N$82="",$N$99=""),"",($N$99)*($N$82-1)) -> 139.83 €
B105: Maßnahme 1 insgesamt (aufgezinst bis Alter U) [€ / Baum] | C105: =SUM($C$99,$C$103) -> 42.93 € | H105: =SUM($H$99,$H$103) -> 83.23 € | N105: =SUM($N$99,$N$103) -> 161.47 €
B107: Maßnahme insgesamt (aufgezinst bis Alter U) [€ / ha] | C107: =IF(OR($C$105="",$C$41=""),"",$C$105*$C$41) -> 1,545.43 € | H107: =IF(OR($H$105="",$J$41=""),"",$H$105*$J$41) -> 2,746.43 € | N107: =IF(OR($N$105="",$P$41=""),"",$N$105*$P$41) -> 4,844.05 €
B108: III C. Gesamtkalkulation | C108: Stufe I | H108: Stufe II | N108: Stufe III
B109: Gesamtkosten je ha (aufgezinst bis Alter U) [€ / ha] | C109: =SUM($C$107) -> 1,545.43 € | H109: =SUM($C$107,$H$107) -> 4,291.86 € | N109: =SUM($C$107,$H$107,$N$107) -> 9,135.91 €
B111: Erwarteter Anteil geästeter Bäume mit Wertholz [%] | C111: 75.0 | E111: !
B113: Erwartete Anzahl geästeter Bäume / ha mit Wertholz [St.] | C113: =ROUNDDOWN(IF(OR($C$41="",$C$111="",$C$111=0),0,($C$41/100)*$C$111),0) -> 27
B115: Umlegung der Kosten je ha auf die erwartete Anzahl geästeter
B116: Bäume mit Wertholzanteil (aufgezinst bis Alter U) [€ /Baum] | C116: =IF(OR($C$109="",$C$113="",$C$113=0),"",$C$109/$C$113) -> 57.24 € | H116: =IF(OR($H$109="",$C$113="",$C$113=0),"",$H$109/$C$113) -> 158.96 € | N116: =IF(OR($N$109="",$C$113="",$C$113=0),"",$N$109/$C$113) -> 338.37 €
B117: ="Diesen Betrag muß jeder der erwarteten " &C113&" Erntebäume min. zusätzlich erbringen!" -> Diesen Betrag muß jeder der erwarteten 27 Erntebäume min. zusätzlich erbringen!
B119: IV. Zu erwartende Sortierung und erzielbare Erlöse | C119: =IF(AND($N$37>0,$P$41>0,$N$68>0),"Stufe III",IF(AND($H$37>0,$J$41>0,$H$68>0),"Stufe II",IF(AND($C$37>0,$C$41>0,$C$68>0),"Stufe I",""))) -> Stufe III | H119: =IF(AND($H$37>0,$J$41>0,$H$68>0),"Stufe II",IF(AND($C$37>0,$C$41>0,$C$68>0),"Stufe I","")) -> Stufe II | J119: =IF(AND($C$37>0,$C$41>0,$C$68>0),"Stufe I","") -> Stufe I | N119: Ohne | O119: W e r t ä s t u n g
B120: fm / Baum | C120: =$C$127+$C$137+$C$147 -> 9.57 | H120: =$H$127+$H$137+$H$147 -> 9.62 | J120: =$J$127+$J$137+$J$147 -> 9.65 | N120: =$N$127+$N$137+$N$147 -> 9.64 | O120: =IF((($N$120-$C$120)/$C$120)*100>2,(($N$120-$C$120)/$C$120)*100,"") ->  | P120: =IF((($N$120-$C$120)/$C$120)*100>2,"% Vol.-Diff.","") -> 
B121: ="Güte-Kl. A Länge "&$C$119&" [m]" -> Güte-Kl. A Länge Stufe III [m] | C121: =IF(AND($N$37="",$H$37="",$C$37=""),0,IF(AND($N$37>0,$N$68>0),$N$37,IF(AND($H$37>0,$H$68>0),$H$37,IF(AND($C$37>0,$C$68>0),$C$37,0)))) -> 10.0 | D121: A | E121: =IF(AND($H$119=$C$119,$H$166<>$C$166),"??","") ->  | H121: =IF(AND($H$37="",$C$37=""),0,IF(AND($H$37>0,$H$68>0),$H$37,IF(AND($C$37>0,$C$68>0),$C$37,0))) -> 6.0 | J121: =IF(AND($H$37="",$C$37=""),0,IF(AND($C$37>0,$C$68>0),$C$37,IF($C$37>0,$C$37,0))) -> 2.5 | N121: 0.0 | P121: Abkürzg.-Verz.
B123: Durchmesser o. R. [cm] | C123: =IF(OR($O$23="",$O$23=0),"",$O$23+$C$21-($C$121*0.5)*$C$21) -> 78.8 | H123: =IF($C$123="","",IF($H$121/2<=$C$121,($O$23+$C$21)-($H$121/2)*$C$21,($O$23+$C$21)-(($C$121*$C$21)+(($H$121/2-$C$121)*$C$23)))) -> 79.4 | J123: =IF($C$123="","",IF($J$121/2<=$C$121,($O$23+$C$21)-($J$121/2)*$C$21,($O$23+$C$21)-(($C$121*$C$21)+(($J$121/2-$C$121)*$C$23)))) -> 79.9 | N123: =IF($C$123="","",IF($N$121/2<=$C$121,($O$23+$C$21)-($N$121/2)*$C$21,($O$23+$C$21)-(($C$121*$C$21)+(($N$121/2-$C$121)*$C$23)))) -> 80.30 | P123: GAZ
B125: Geästetes Holz (Wertholz-Stück) [€ / Efm o. R.] | C125: 400.00 € | E125: ! | H125: =$C$125 -> 400.00 € | J125: =$C$125 -> 400.00 € | N125: =$C$125 -> 400.00 € | P125: Gesamt-Ar-
B127: Masse [Efm o. R.] | C127: =IF(OR($C$121="",$C$123=""),"",($C$123/100*$C$123/100)/4*3.14159*$C$121) -> 4.88 | H127: =IF(OR($H$121="",$H$123=""),"",($H$123/100*$H$123/100)/4*3.14159*$H$121) -> 2.97 | J127: =IF(OR($J$121="",$J$123=""),"",($J$123/100*$J$123/100)/4*3.14159*$J$121) -> 1.25 | N127: =IF(OR($N$121="",$N$123=""),"",($N$123/100*$N$123/100)/4*3.14159*$N$121) -> 0.00 | P127: beits-Zeit für
B129: Erlös [€] | C129: =IF(OR($C$125="",$C$127=""),"",$C$125*$C$127) -> 1,950.75 € | H129: =IF(OR($H$125="",$H$127=""),"",$H$125*$H$127) -> 1,188.34 € | J129: =IF(OR($J$125="",$J$127=""),"",$J$125*$J$127) -> 501.71 € | N129: =IF(OR($N$125="",$N$127=""),"",$N$125*$N$127) -> 0.00 € | P129: Ästungs-Stufe
B131: ="Güte-Kl. B Länge (Restlänge vor C-Stück) "&$C$119&" [m]" -> Güte-Kl. B Länge (Restlänge vor C-Stück) Stufe III [m] | C131: 5.0 | D131: B | E131: ! | H131: =IF(AND($C$121="",$C$131=""),"",IF(AND($C$121>0,OR($C$131="",$C$131=0),OR($H$121="",$H$121=0)),$C$121,IF($H$121>0,$C$121+$C$131-$H$121,$C$121+$C$131))) -> 9.0 | J131: =IF(AND($C$121="",$C$131=""),"",IF(AND($C$121>0,OR($C$131="",$C$131=0),OR($J$121="",$J$121=0)),$C$121,IF($J$121>0,$C$121+$C$131-$J$121,$C$121+$C$131))) -> 12.5 | N131: =IF(AND($C$121="",$C$131=""),"",IF(AND($C$121>0,OR($C$131="",$C$131=0),OR($N$121="",$N$121=0)),$C$121,IF($N$121>0,$C$121+$C$131-$N$121,$C$121+$C$131))) -> 15.0 | P131: I-III in Minuten
B133: Durchmesser o. R. [cm] | C133: =IF(OR($C$131="",$C$131=0),"",$C$123-(($C$121*0.5*$C$21)+$C$131*0.5*($C$23))) -> 75.30 | H133: =IF($C$133="","",IF(($H$121+$H$131/2)>$C$121,($O$23+$C$21)-($C$121*$C$21)-($H$121-$C$121+$H$131/2)*$C$23,($O$23+$C$21)-($H$121+$H$131/2)*$C$21)) -> 76.90 | J133: =IF($C$133="","",IF(($J$121+$J$131/2)>$C$121,($O$23+$C$21)-($C$121*$C$21)-($J$121-$C$121+$J$131/2)*$C$23,($O$23+$C$21)-($J$121+$J$131/2)*$C$21)) -> 77.7 | N133: =IF($C$133="","",IF(($N$121+$N$131/2)>$C$121,($O$23+$C$21)-($C$121*$C$21)-($N$121-$C$121+$N$131/2)*$C$23,($O$23+$C$21)-($N$121+$N$131/2)*$C$21)) -> 78.1 | P133: d1,3 (= BHD)
B135: Preis [€ / Efm o. R.] | C135: 200.00 € | E135: ! | H135: =$C$135 -> 200.00 € | J135: =$C$135 -> 200.00 € | N135: =$C$135 -> 200.00 € | P135: Durchmesser
B137: Masse [Efm o. R.] | C137: =IF(OR($C$131="",$C$133=""),"",($C$133/100*$C$133/100)/4*3.14159*$C$131) -> 2.23 | H137: =IF(OR($H$131="",$H$133=""),"",($H$133/100*$H$133/100)/4*3.14159*$H$131) -> 4.18 | J137: =IF(OR($J$131="",$J$133=""),"",($J$133/100*$J$133/100)/4*3.14159*$J$131) -> 5.92 | N137: =IF(OR($N$131="",$N$133=""),"",($N$133/100*$N$133/100)/4*3.14159*$N$131) -> 7.18 | P137: in 1,3m Höhe
B139: Erlös [€] | C139: =IF(OR($C$135="",$C$137=""),"",$C$135*$C$137) -> 445.33 € | H139: =IF(OR($H$135="",$H$137=""),"",$H$135*$H$137) -> 836.02 € | J139: =IF(OR($J$135="",$J$137=""),"",$J$135*$J$137) -> 1,184.66 € | N139: =IF(OR($N$135="",$N$137=""),"",$N$135*$N$137) -> 1,435.35 € | P139: Rm
B141: ="Güte-Kl. C Länge "&$C$119&" [m]" -> Güte-Kl. C Länge Stufe III [m] | C141: 7.0 | D141: C | H141: =$C$141 -> 7.0 | J141: =$C$141 -> 7.0 | N141: =$C$141 -> 7.0 | P141: Radius in der
B143: Durchmesser o. R. [cm] | C143: =IF(OR($C$141="",$C$141=0),"",$C$133-(($C$131*0.5)*$C$23)-(($C$141*0.5)*($C$23+1))) -> 67.0 | H143: =$C$143 -> 67.0 | J143: =$C$143 -> 67.0 | N143: =$C$143 -> 67.0 | P143: Mitte d. A-Stamm-
B145: Preis [€ / Efm o. R.] | C145: 50.00 € | H145: =$C$145 -> 50.00 € | J145: =$C$145 -> 50.00 € | N145: =$C$145 -> 50.00 € | P145: (Werholz)-stückes
B147: Masse [Efm o. R.] | C147: =IF(OR($C$141="",$C$143=""),"",($C$143/100*$C$143/100)/4*3.14159*$C$141) -> 2.47 | H147: =IF(OR($N$141="",$N$143=""),"",($N$143/100*$N$143/100)/4*3.14159*$N$141) -> 2.47 | J147: =IF(OR($N$141="",$N$143=""),"",($N$143/100*$N$143/100)/4*3.14159*$N$141) -> 2.47 | N147: =IF(OR($N$141="",$N$143=""),"",($N$143/100*$N$143/100)/4*3.14159*$N$141) -> 2.47 | P147: lfm=lfd.Meter;fm=m³
B149: Erlös [€] | C149: =IF(OR($C$145="",$C$147=""),"",$C$145*$C$147) -> 123.40 € | H149: =IF(OR($H$145="",$H$147=""),"",$H$145*$H$147) -> 123.40 € | J149: =IF(OR($J$145="",$J$147=""),"",$J$145*$J$147) -> 123.40 € | N149: =IF(OR($N$145="",$N$147=""),"",$N$145*$N$147) -> 123.40 € | P149: ZinF =Aufzinsg.=>U
B153: V. Wirtschaftlichkeit der Maßnahmen: Wertästung bis | C153: =IF(AND($N$37>0,$P$41>0,$N$68>0),"Stufe III",IF(AND($H$37>0,$J$41>0,$H$68>0),"Stufe II",IF(AND($C$37>0,$C$41>0,$C$68>0),"Stufe I",""))) -> Stufe III | H153: =IF(AND($H$37>0,$J$41>0,$H$68>0),"Stufe II",IF(AND($C$37>0,$C$41>0,$C$68>0),"Stufe I","")) -> Stufe II | J153: =IF(AND($C$37>0,$C$41>0,$C$68>0),"Stufe I","") -> Stufe I | N153: Ohne Ästung! | P153: Zusammenstellung
B155: Durchschnittserlös [€ / fm] | C155: =IF(C141>0,$C$162/($C$127+$C$137+$C$147),$C$162/($C$127+$C$137)) -> 263.23 € | H155: =IF(H141>0,$H$162/($H$127+$H$137+$H$147),$H$162/($H$127+$H$137)) -> 223.29 € | J155: =IF(J141>0,$J$162/($J$127+$J$137+$J$147),$J$162/($J$127+$J$137)) -> 187.63 € | N155: =IF(N141>0,$N$162/($N$127+$N$137+$N$147),$N$162/($N$127+$N$137)) -> 161.62 € | O155: ZinsF/LS | P155: =$C$82 -> 10.030 | Q155: =$J$80 -> 2.5
B156: Güte-Kl. A Erlös / Baum [€] | C156: =IF($C$129="","",$C$129) -> 1,950.75 € | H156: =IF($H$129="","",$H$129) -> 1,188.34 € | J156: =IF($J$129="","",$J$129) -> 501.71 € | N156: =IF($N$129="","",$N$129) -> 0.00 € | O156: =$C$125 -> 400 € | P156: =$C$121&"/ "&$H$121&" / "&$J$121&" / "&$N$121&"m" -> 10/ 6 / 2,5 / 0m | Q156: =$D$121 -> A
B158: B Erlös / Baum [€] | C158: =IF($C$139="","",$C$139) -> 445.33 € | H158: =IF($H$139="","",$H$139) -> 836.02 € | J158: =IF($J$139="","",$J$139) -> 1,184.66 € | N158: =IF($N$139="","",$N$139) -> 1,435.35 € | O158: =$C$135 -> 200 € | P158: =$C$131&" / "&$H$131&" / "&$J$131&" / "&$N$131&"m" -> 5 / 9 / 12,5 / 15m | Q158: =$D$131 -> B
B160: C Erlös / Baum [€] | C160: =IF($C$149="","",$C$149) -> 123.40 € | H160: =IF($H$149="","",$H$149) -> 123.40 € | J160: =IF($J$149="","",$J$149) -> 123.40 € | N160: =IF($N$149="","",$N$149) -> 123.40 € | O160: =$C$145 -> 50 € | P160: =$C$141&" / "&$H$141&" / "&$J$141&" / "&$N$141&"m" -> 7 / 7 / 7 / 7m | Q160: =$D$141 -> C
B162: Gesamterlös / Baum [€ / Baum] | C162: =IF(AND($C$156="",$C$158="",$C$160=""),"",SUM($C$156,$C$158,$C$160)) -> 2,519.48 € | H162: =IF(AND($H$156="",$H$158="",$H$160=""),"",SUM($H$156,$H$158,$H$160)) -> 2,147.76 € | J162: =IF(AND($J$156="",$J$158="",$J$160=""),"",SUM($J$156,$J$158,$J$160)) -> 1,809.77 € | N162: =IF(AND($N$156="",$N$158="",$N$160=""),"",SUM($N$156,$N$158,$N$160)) -> 1,558.74 € | O162: Bäume | P162: =$P$41&" / "&$J$41&" / "&$C$41&" / "&"0St." -> 30 / 33 / 36 / 0St. | Q162: =$C$113 -> 27
B164: Ertragswert (Mehrerlös: Baum geästet zu ungeastet) [€ / Baum] | C164: =IF(OR($C$162="",$N$162=""),"",$C$162-$N$162) -> 960.73 € | H164: =IF(OR($H$162="",$N$162=""),"",$H$162-$N$162) -> 589.01 € | J164: =IF(OR($N$162="",$J$162=""),"",$J$162-$N$162) -> 251.02 € | M164: Arbeitskraft / h | O164: =$C$64 -> 37.20 € | P164: =$N$68&"/ "&$H$68&" / "&$C$68& " /0" -> 20/ 10 / 5 /0 | Q164: GAZ
B166: abzgl. Ästungsaufwand (aufgezinst bis Alter U) [€ / Baum] | C166: =IF(OR($N$109="",$C$113="",$C$113=0),"",$N$109/$C$113) -> 338.37 € | H166: =IF(OR($H$109="",$C$113="",$C$113=0),"",$H$109/$C$113) -> 158.96 € | J166: =IF(OR($C$109="",$C$113="",$C$113=0),"",$C$109/$C$113) -> 57.24 € | M166: Rm /astfr.Schicht | O166: =$C$123/2 -> 39.4 | P166: =IF(OR($C$19="",$C$19=0,$O$23="",$O$23=0),"",$O$166-(($C$19+$C$21)-($C$121/2)*$C$21)/2) -> 31.0 | Q166: cm
B168: = Mehrertrag je geästeter Erntebaum (netto) [€ / Baum] | C168: =IF(OR($C$164="",$C$166=""),"",$C$164-$C$166) -> 622.37 € | H168: =IF(OR($H$164="",$H$166=""),"",$H$164-$H$166) -> 430.06 € | J168: =IF(OR($J$164="",$J$166=""),"",$J$164-$J$166) -> 193.78 € | M168: Vol.: astig/astfr. | O168: =IF(OR($C$121="",$O$166="",$P$166=""),"",(($O$166-$P$166)/100*($O$166-$P$166)/100)*3.14159*$C$121) -> 0.22 | P168: =$C$127-$O$168 -> 4.66 | Q168: fm
B170: Rentabilität aller Maßnahme(n) bis Stufe ... [Faktor] | C170: =IF(OR($C$166="",$C$168=""),"",$C$168/$C$166) -> 1.84 | H170: =IF(OR($H$166="",$H$168=""),"",$H$168/$H$166) -> 2.71 | J170: =IF(OR($J$166="",$J$168=""),"",$J$168/$J$166) -> 3.39 | M170: Vol.-%: " " / " " | O170: =$O$168/$C$127*100 -> 4.5 | P170: =$P$168/$C$127*100 -> 95.5 | Q170: V%
B172: Grenzertrag der Ästungs-Stufe ... [€ / Baum] | C172: =$C$168-$H$168 -> 192.31 € | H172: =$H$168-$J$168 -> 236.27 € | J172: =$J$168 -> 193.78 € | M172: Kosten: lfm / fm | O172: =IF(OR($C$121="",$C$166=""),"",$C$166/$C$121) -> 33.84 | P172: =IF(AND($C$127>0,$C$166>0),$C$166/$C$127,"") -> 69.38 | Q172: €
B174: Rentabilität der Einzelmaßnahme: Stufe... [Faktor] | C174: =IF(OR($C$166="",$C$168=""),"",$C$172/($C$166-$H$166)) -> 1.07 | H174: =IF(OR($H$166="",$H$168=""),"",$H$172/($H$166-$J$166)) -> 2.32 | J174: =IF(OR($J$166="",$J$168=""),"",$J$172/$J$166) -> 3.39 | M174: d1,3/astfr.Schicht | O174: =$O$23 -> 80.0 | P174: =IF(OR($C$19="",$O$23=""),"",IF(($O$23-$C$19)/2<20,"Zu gering!",($O$23-$C$19)/2)) -> 31.0 | Q174: cm
B178: IV-1. Zu erwartende Sortierung und erzielbare Erlöse
B179: IV-1 A1. Variante 3 mit Wertästung (nur Maßnahme 1)
B180: GKl. A Länge [m] | C180: 5.0
B182: GKl. A Durchmesser o. R. [cm] | C182: 76.0
B184: GKl. A Preis [€/Efm o. R.] | C184: 200.00 €
B186: GKl. A Masse [Efm o. R.] | C186: =IF(OR($C$180="",$C$182=""),"",($C$182/100*$C$182/100)/4*3.14159*$C$180) -> 2.27
B188: GKl. A Erlös [€] | C188: =IF(OR($C$184="",$C$186=""),"",$C$184*$C$186) -> 453.65 €
B190: GKl. B Länge [m] | C190: 22.0
B192: GKl. B Durchmesser o. R. [cm] | C192: 60.0
B194: GKl. B Preis [ €/ Efm o. R.] | C194: 96.00 €
B196: GKl. B Masse [Efm o. R.] | C196: =IF(OR($C$190="",$C$192=""),"",($C$192/100*$C$192/100)/4*3.14159*$C$190) -> 6.22
B198: GKl. B Erlös [€] | C198: =IF(OR($C$194="",$C$196=""),"",$C$194*$C$196) -> 597.15 €
B200: GKl. C Länge [m] | C200: 5.0
B202: GKl. C Durchmesser o. R. [cm] | C202: 39.0
B204: GKl. C Preis [€/Efm o. R.] | C204: 81.60 €
B206: GKl. C Masse [Efm o. R.] | C206: =IF(OR($C$200="",$C$202=""),"",($C$202/100*$C$202/100)/4*3.14159*$C$200) -> 0.60
B208: GKl. C Erlös [€] | C208: =IF(OR($C$204="",$C$206=""),"",$C$204*$C$206) -> 48.74 €
B210: Programmerstellung:
B212: K.-H. Schmitz; LB WuH NRW; LuVFA Arnsberger Wald -SPA Waldbau-
B214: Bemerkung
